Workbook

Sheet Indice
A1: MINISTERIO DE HACIENDA
A2: DIRECCIÓN GENERAL DE PRESUPUESTO
A3: DIRECCIÓN DE ESTUDIOS ECONÓMICOS Y SEGUIMIENTO FINANCIERO
B8: Indice
B9: Gráfico 1
B10: Gráfico 2
B11: Gráfico 3
B12: Tabla 1
B13: Gráfico 4
B14: Gráfico 5
B15: Gráfico 6
B16: Gráfico 7
B17: Gráfico 8
B18: Gráfico 9
B19: Tabla 2
B20: Tabla 3
B21: Gráfico 10
B22: Gráfico 11
B23: Gráfico 12
B24: Gráfico 13
B25: Gráfico 14
B26: Tabla 4
B27: Tabla 5
B28: Mapa 1
B29: Tabla 6
B30: Tabla 7
B31: Tabla 8
B32: Tabla 9
B33: Tabla 10
B34: Tabla 11
B35: Tabla 12
B36: Tabla 13
B37: Gráfico 15
B38: Figura 1
B39: Figura 2
B40: Figura 3
B41: Figura 4
B42: Tabla 14
B43: Tabla 15
B44: Gráfico 16
B45: Gráfico 17
B46: Gráfico 18
B47: Gráfico 19
B48: Tablas 16
B49: Tablas 17
B50: Tablas 18
B51: Tabla 19
B52: Tabla 20
B53: Tabla 21
B54: Tabla 22
B55: Tabla 23
B56: Tabla 24
B57: Tabla 25
B58: Tabla 26
B59: Tabla 27
B60: Tabla 28
B61: Tabla 29
B62: Tabla 30
B63: Tabla 31
B64: Tabla 32
B65: Tabla 33
B66: Tabla 34
B67: Tabla 35
B68: Tabla 36
B69: Tabla 37
B70: Tabla 38
B71: Tabla 39

Sheet Económico Ingresos (hidden)
C1: Indice
C2: Ingresos de Gobierno Central por Clasificación Económica (Enero - Marzo 2021)
C3: Valores en millones RD$ | M3: PIB Nominal (Millones RD$) | N3: 4936862200000
C4: DETALLE | D4: 2020 | E4: 2021 | I4: Variación 2021/2020 | K4: %PIB
D5: Percibido | E5: Presupuesto Inicial | F5: Estimación | G5: Percibido | H5: Estimado vs. Percibido
I6: Absoluta | J6: Relativa
D7: 1 | E7: 2 | F7: 3 | G7: 4 | H7: 5 = 4/3 | I7: 6 = (4-1) | J7: 7 = 6/1 | K7: 8=(4/PIB)
C8: 1.1 - Ingresos Corrientes | D8: 1.601223581e+11 | E8: =E9+E16+E19+E22+E25+E28+E29 -> 656616381791 | F8: =F9+F16+F19+F22+F25+F28+F29 -> 1.527877626e+11 | G8: 1.845720738e+11 | H8: 1.208029169 | I8: =G8-D8 -> 2.444971572e+10 | J8: =I8/D8 -> 0.1526939524 | K8: =G8/$N$3 -> 0.03738651522
C9: 1.1.1 - Impuestos | D9: 1.467508659e+11 | E9: 605936356314 | F9: 1.445893128e+11 | G9: 1.675700944e+11 | H9: 1.158938314 | I9: 2.081922845e+10 | J9: 0.1418678406 | K9: =G9/$N$3 -> 0.03394263149
C10: 1.1.1.1 - Impuestos sobre el ingreso, las utilidades y las ganancias de capital | D10: 4.861593179e+10 | E10: 198305463771 | F10: 4.763958497e+10 | G10: 5.644844038e+10 | H10: 1.184906216 | I10: 7832508592 | J10: 0.161109914 | K10: 0.01143407251
C11: 1.1.1.3 - Impuestos sobre la propiedad | D11: 6398764290 | E11: 29124499696 | F11: 7224845294 | G11: 8246098567 | H11: 1.141352961 | I11: 1847334277 | J11: 0.2887017232 | K11: 0.001670311674
C12: 1.1.1.4 - Impuestos sobre los bienes y servicios | D12: 8.235548741e+10 | E12: 341256177005 | F12: 8.145501245e+10 | G12: 9.266486393e+10 | H12: 1.137620155 | I12: 1.030937652e+10 | J12: 0.1251814159 | K12: 0.01876999199
C13: 1.1.1.5 - Impuestos sobre el comercio y las transacciones internacionales/comercio exterior | D13: 9184255373 | E13: 36571429740 | F13: 8102972531 | G13: 9968296399 | H13: 1.230202418 | I13: 784041025.6 | J13: 0.08536794696 | K13: 0.002019156297
C14: 1.1.1.6 - Impuestos ecológicos | D14: 196172788.9 | E14: 677728808 | F14: 166630593.9 | G14: 242080578.2 | H14: 1.452797908 | I14: 45907789.24 | J14: 0.2340171106 | K14: 4.903531198e-05
C15: 1.1.1.9 - Impuestos diversos | D15: 254264.91 | E15: 1057294 | F15: 266978.1555 | G15: 314511.17 | H15: 1.178040838 | I15: 60246.26 | J15: 0.2369428798 | K15: 6.37066941e-08
C16: 1.1.2 - Contribuciones a la seguridad social | D16: 621601808.1 | E16: 2605834807 | F16: 652320800.5 | G16: 587655362.9 | H16: 0.900868656 | I16: -33946445.22 | J16: -0.05461123951 | K16: 0.0001190341839
C17: 1.1.2.1 - Contribuciones de los empleados | D17: 225795193.7 | E17: 768404073 | F17: =183547512.8865+53663003.1945 -> 237210516.1 | G17: 267768856.2 | H17: 1.128823716 | I17: 41973662.53 | J17: 0.1858926306 | K17: 5.423867335e-05
C18: 1.1.2.2 - Contribuciones de los empleadores | D18: 395806614.4 | E18: 1837430734 | F18: 415110284.4 | G18: 319886506.6 | H18: 0.7706060741 | I18: -75920107.75 | J18: -0.1918111143 | K18: 6.479551052e-05
C19: 1.1.3 - Ventas de bienes y servicios | D19: 6475506718 | E19: 23655956821 | F19: 5022494776 | G19: 4597719712 | H19: 0.9154254842 | I19: -1877787006 | J19: -0.2899830219 | K19: 0.00093130404
C20: 1.1.3.1 - Ventas de establecimientos no de mercado | D20: 5336882681 | E20: 18947730026 | F20: =F19-F21 -> 4947756615 | G20: 3816229856 | H20: 0.7713050889 | I20: -1520652825 | J20: -0.2849327812 | K20: 0.0007730071656
C21: 1.1.3.3 - Derechos administrativos | D21: 1138624037 | E21: 4708226795 | F21: 74738160.61 | G21: 781489855.8 | H21: 10.45636994 | I21: -357134180.9 | J21: -0.3136541733 | K21: 0.0001582968744
C22: 1.1.4 - Rentas de la propiedad | D22: 1527287908 | E22: 13308027306 | F22: 15222198.24 | G22: 6877863552 | H22: 451.8311641 | I22: 5350575644 | J22: 3.503318277 | K22: 0.001393164985
C23: 1.1.4.1 - Intereses | D23: 791834596.3 | E23: 301681040 | F23: 15180034.72 | G23: 6517686631 | H23: 429.3591387 | I23: 5725852035 | J23: 7.231121325 | K23: 0.001320208336
C24: 1.1.4.2 - Rentas de la propiedad distinta de intereses | D24: 735453312.1 | E24: 13006346266 | F24: =F22-F23 -> 42163.527 | G24: 360176920.8 | H24: 8542.38121 | I24: -375276391.3 | J24: -0.5102654174 | K24: 7.295664861e-05
C25: 1.1.6 - Transferencias corrientes recibidas | D25: 900664000 | E25: =E26+E27 -> 1003043267 | F25: 330696950 | G25: 1990995966 | H25: 6.020605771 | I25: 1090331966 | J25: 1.210586818 | K25: 0.0004032917843
C26: 1.1.6.1 - Transferencias del sector privado | D26: 664000 | E26: 3043267 | F26: 696950 | G26: 12089500 | H26: 17.34629457 | I26: 11425500 | J26: 17.20707831 | K26: 2.448822655e-06
C27: 1.1.6.2 - Transferencias del sector público | D27: 900000000 | E27: 1000000000 | F27: 330000000 | G27: 1978906466 | H27: 5.99668626 | I27: 1078906466 | J27: 1.198784962 | K27: 0.0004008429617
C28: 1.1.7 - Multas y sanciones pecuniarias | D28: 37408511.86 | E28: 78083503 | F28: 13666581.01 | G28: 290650880 | H28: 21.26727086 | I28: 253242368.2 | J28: 6.769645612 | K28: 5.8873606e-05
C29: 1.1.9 - Otros ingresos corrientes | D29: 3809023210 | E29: 10029079773 | F29: 2164048437 | G29: 2657093948 | H29: 1.227834786 | I29: -1151929262 | J29: -0.3024211716 | K29: 0.0005382151335
C30: 1.2 - Ingresos de capital | D30: 2444290338 | E30: =E33 -> 87315942000 | F30: =F33 -> 2408933333 | G30: 2706658312 | H30: 1.123592037 | I30: 262367974.2 | J30: 0.1073391201 | K30: 0.0005482547826
C31: 1.2.1 - Venta (disposición) de activos no financieros (a valores brutos) | D31: 11408777.59 | E31: 0 | F31: 0 | G31: 23522000 | H31: - | I31: 12113222.41 | J31: 1.061745863 | K31: 4.764564828e-06
C32: 1.2.1.1 - Venta de activos fijos | D32: 11408777.59 | E32: 0 | F32: 0 | G32: 23522000 | H32: - | I32: 12113222.41 | J32: 1.061745863 | K32: 4.764564828e-06
C33: 1.2.4 - Transferencias de capital recibidas | D33: 2401063500 | E33: =E34 -> 87315942000 | F33: 2408933333 | G33: 2603697500 | H33: 1.080850791 | I33: 202634000 | J33: 0.08439343649 | K33: 0.0005273992659
C34: 1.2.4.2 - Transferencias del sector publico | D34: 2401063500 | E34: 87315942000 | F34: 2408933333 | G34: 2603697500 | H34: 1.080850791 | I34: 202634000 | J34: 0.08439343649 | K34: 0.0005273992659
C35: 1.2.5 - Recuperación de inversiones financieras realizadas con fines de política | D35: 31818060.38 | E35: 0 | F35: 0 | G35: 79438812.13 | H35: - | I35: 47620751.75 | J35: 1.49665791 | K35: 1.609095189e-05
C36: 1.2.5.4 - Recuperación de préstamos realizados con fines de política | D36: 31818060.38 | E36: 0 | F36: 0 | G36: 79438812.13 | H36: - | I36: 47620751.75 | J36: 1.49665791 | K36: 1.609095189e-05
C37: Total general (1.1 + 1.2) | D37: 1.625666484e+11 | E37: =E8+E30 -> 743932323791 | F37: =F8+F30 -> 1.551966959e+11 | G37: 1.872787321e+11 | H37: 1.206718552 | I37: 2.471208369e+10 | J37: 0.1520120143 | K37: 0.03793477
C38: Donaciones | D38: =D39+D40 -> 335638081.4 | E38: =E39+E40 -> 2381511760 | F38: =F39+F40 -> 260749351.4 | G38: 85612582.6 | H38: 0.3283328689 | I38: -250025498.8 | J38: -0.7449258968 | K38: 1.734149732e-05
C39: Donaciones Corrientes | D39: 31761245.7 | E39: 549847567 | F39: 106900494.9 | G39: 64757959.06 | H39: 0.6057779161 | I39: 32996713.36 | J39: 1.03889859 | K39: 1.311723043e-05
C40: Donaciones de Capital | D40: 303876835.7 | E40: 1831664193 | F40: 153848856.4 | G40: 20854623.54 | H40: 0.1355526718 | I40: -283022212.2 | J40: -0.9313714601 | K40: 4.224266892e-06
C41: Total de Ingresos con Donaciones | D41: =D37+D38 -> 1.629022865e+11 | E41: =E37+E38 -> 746313835551 | F41: =F37+F38 -> 1.554574452e+11 | G41: 1.873643447e+11 | H41: 1.205245232 | I41: 2.446205819e+10 | J41: 0.1501639954 | K41: 0.0379521115
C42: Notas:
C43: Cifras preliminares
C44: Fecha de registro al 15 de abril 2021 / Fecha de recaudación al 31 de marzo 2021
C45: Se utilizó el PIB del Panorama Macroeconómico actualizado al 23 de marzo 2021, elaborado por el Ministerio de Economía Planificación y Desarrollo
C46: Fuente: SIGEF

Sheet Gráfico 1
A1: MINISTERIO DE HACIENDA
A2: DIRECCIÓN GENERAL DE PRESUPUESTO
A3: DIRECCIÓN DE ESTUDIOS ECONÓMICOS Y SEGUIMIENTO FINANCIERO
B7: Gráfico 1. Panorama de las perspectivas de la economía mundial 2021
C23: Fuente: Fondo Monetario Internacional

Sheet Gráfico 2
A1: MINISTERIO DE HACIENDA
A2: DIRECCIÓN GENERAL DE PRESUPUESTO
A3: DIRECCIÓN DE ESTUDIOS ECONÓMICOS Y SEGUIMIENTO FINANCIERO
B6: Gráfico 2. Panorama de las proyecciones de crecimiento de la región ALyC
C39: Fuente: Fondo Monetario Internacional

Sheet Gráfico 3
A1: MINISTERIO DE HACIENDA
A2: DIRECCIÓN GENERAL DE PRESUPUESTO
A3: DIRECCIÓN DE ESTUDIOS ECONÓMICOS Y SEGUIMIENTO FINANCIERO
C5: Gráfico 4. Evolución de los Precios del Petróleo (Promedio Mensual)
C6: Valores en %
C18: Nota:* Cifras Preliminares
C19: Fuente: Banco Central
B22: Fuente: Pink Sheet, Banco Mundial
C28: 2021
C29: Enero | D29: Febrero | E29: Marzo | F29: Abril | G29: Mayo | H29: Junio | I29: Julio | J29: Agosto | K29: Septiembre
C30: 52.1 | D30: 59.06 | E30: 62.35 | F30: 61.71 | G30: 65.18 | H30: 71.38 | I30: 72.46 | J30: 67.73 | K30: 71.56

Sheet Tabla 1
A1: MINISTERIO DE HACIENDA
A2: DIRECCIÓN GENERAL DE PRESUPUESTO
A3: DIRECCIÓN DE ESTUDIOS ECONÓMICOS Y SEGUIMIENTO FINANCIERO
B7: Tabla 1. Tasas de Crecimiento por Actividad Económica Enero - Septiembre 2021
C8: Valores en %
C9: TASAS DE CRECIMIENTO POR ACTIVIDAD ECONOMICA
C10: Actividad Economica | D10: 2020 | E10: 2021
D11: Ene-Sept.
C12: Agropecuario | D12: 3.8 | E12: 1.6
C13: Explotación de Minas y Canteras | D13: -14.1 | E13: 6.9
C14: Manufactura Local | D14: -3.7 | E14: 11.5
C15: Manufactura de Zonas Francas | D15: -6.6 | E15: 24.2
C16: Construcción | D16: -15.8 | E16: 30
C17: Servicios | D17: -7.1 | E17: 8.6
C18: Energía y Agua | D18: 1.1 | E18: 4.2
C19: Comercio | D19: -4.2 | E19: 11.1
C20: Hoteles, Bares y Restaurantes | D20: -47.5 | E20: 31.8
C21: Transporte y Almacenamiento | D21: -9.5 | E21: 13.7
C22: Comunicaciones | D22: 2.1 | E22: 4
C23: Servicios financieros | D23: 9.2 | E23: -1.4
C24: Actividades Inmobiliarias y de Alquiler | D24: 4.2 | E24: 2.6
C25: Administración Pública y Defensa | D25: 2.1 | E25: -3.8
C26: Enseñanza | D26: -2.6 | E26: -1.7
C27: Salud | D27: 12.4 | E27: 4.1
C28: Otras actividades de servicios | D28: -11.9 | E28: -4.8
C29: IMAE | D29: -8.1 | E29: 12.7
C30: Nota:* Cifras Preliminares
C31: Fuente: Banco Central de la República Dominicana

Sheet Gráfico 4
A1: MINISTERIO DE HACIENDA
A2: DIRECCIÓN GENERAL DE PRESUPUESTO
A3: DIRECCIÓN DE ESTUDIOS ECONÓMICOS Y SEGUIMIENTO FINANCIERO
C5: Gráfico 4. Inflación Interanual
C6: Enero-Septiembre 2021
C7: Valores en %
C15: 2021
C16: Enero | D16: Febrero | E16: Marzo | F16: Abril | G16: Mayo | H16: Junio | I16: Julio | J16: Agosto | K16: Septiembre
C17: 6.22704839 | D17: 7.08770174 | E17: 8.296510603 | F17: 9.645264192 | G17: 10.48082068 | H17: 9.319367674 | I17: 7.876041242 | J17: 7.897097716 | K17: 7.738118445
B26: Nota:* Cifras Preliminares
B27: Fuente: Banco Central de la República Dominicana

Sheet Gráfico 5
A1: MINISTERIO DE HACIENDA
A2: DIRECCIÓN GENERAL DE PRESUPUESTO
A3: DIRECCIÓN DE ESTUDIOS ECONÓMICOS Y SEGUIMIENTO FINANCIERO
C5: Gráfico 4. Comportamiento del Mercado de Trabajo
C6: Abril-Junio 2020/2021
C7: Valores en %
C29: 2021
C30: Enero | D30: Febrero | E30: Marzo | F30: Abril | G30: Mayo | H30: Junio | I30: Julio | J30: Agosto | K30: Septiembre
C31: 792839517.4 | D31: Fuente: Banco Central de la República Dominicana | J31: 872047887.1 | K31: 829623080.5

Sheet Gráfico 6
A1: MINISTERIO DE HACIENDA
A2: DIRECCIÓN GENERAL DE PRESUPUESTO
A3: DIRECCIÓN DE ESTUDIOS ECONÓMICOS Y SEGUIMIENTO FINANCIERO
C5: Gráfico 4. Evolución de las Remesas
C6: Valores en US$ millones
C18: Nota:* Cifras Preliminares
C19: Fuente: Banco Central
B22: Nota: *Cifras Preliminares
B23: Fuente: Banco Central de la República Dominicana
C28: 2021
C29: Enero | D29: Febrero | E29: Marzo | F29: Abril | G29: Mayo | H29: Junio | I29: Julio | J29: Agosto | K29: Septiembre
C30: 792839517.4 | D30: 760958880.5 | E30: 994889301.2 | F30: 910809026.5 | G30: 933752196.9 | H30: 869822861.8 | I30: 896567423.1 | J30: 872047887.1 | K30: 829623080.5

Sheet Gráfico 7
A1: MINISTERIO DE HACIENDA
A2: DIRECCIÓN GENERAL DE PRESUPUESTO
A3: DIRECCIÓN DE ESTUDIOS ECONÓMICOS Y SEGUIMIENTO FINANCIERO
B6: Gráfico 7. Distribución de los Ingresos Corrientes
B7: Julio-Septiembre 2021
B24: Excluye donaciones.
B25: Fuente: Sistema de Información de la Gestión Financiera (SIGEF).
B27: Ingresos Corrientes
B28: Impuestos | C28: 0.945
B29: Ventas de bienes y servicios | C29: 0.031
B30: Otros ingresos corrientes | C30: 0.02371592113
B31: Total general | C31: =SUM(C28:C30) -> 0.9997159211

Sheet Gráfico 8
A1: MINISTERIO DE HACIENDA
A2: DIRECCIÓN GENERAL DE PRESUPUESTO
A3: DIRECCIÓN DE ESTUDIOS ECONÓMICOS Y SEGUIMIENTO FINANCIERO
B7: Gráfico 8. Distribución de los Ingresos de Capital
B8: Julio-Septiembre 2021
B24: Excluye donaciones.
B25: Fuente: Sistema de Información de la Gestión Financiera (SIGEF).
B27: Ingresos de Capital | C27: Julio-Septiembre
B28: Transferencias de capital recibidas | C28: 0.9639933327
B29: Recuperación de inversiones financieras realizadas con fines de política | C29: 0.02303072539
B30: Venta de activos no financieros | C30: 0.01297594194
B31: Total general | C31: =SUM(C28:C30) -> 1

Sheet Gráfico 9
A1: MINISTERIO DE HACIENDA
A2: DIRECCIÓN GENERAL DE PRESUPUESTO
A3: DIRECCIÓN DE ESTUDIOS ECONÓMICOS Y SEGUIMIENTO FINANCIERO
B8: Gráfico 9. Distribución de las Donaciones
B9: Julio-Septiembre 2021
B27: Excluye donaciones.
B28: Fuente: Sistema de Información de la Gestión Financiera (SIGEF).
B30: Donaciones
B31: Donaciones Corrientes | C31: 0.7172149184
B32: Donaciones de Capital | C32: 0.2827850816
B33: Total general | C33: =SUM(C31:C32) -> 1

Sheet Tabla 2
B1: MINISTERIO DE HACIENDA
B2: DIRECCIÓN GENERAL DE PRESUPUESTO
B3: DIRECCIÓN DE ESTUDIOS ECONÓMICOS Y SEGUIMIENTO FINANCIERO
B7: Tabla 2. Ingresos del Gobierno Central por la Clasificación Económica Central
B8: Enero-Septiembre 2020 y 2021
B9: Valores en millones RD$
B10: DETALLE | C10: 2020 | D10: 2021 | J10: VARIACIÓN 2021/2020 | L10: % PIB
B11: DETALLE | C11: RECAUDADO | D11: PRESUPUESTO INICIAL | E11: PRESUPUESTO APROBADO LEY NO. 166-21 | F11: ESTIMADO | G11: RECAUDADO | H11: RECAUDADO VS. ESTIMADO | I11: % DE CUMPLIMIENTO | N11: PIB Nominal (Millones RD$) | O11: 5.294508964e+12
J12: ABSOLUTA | K12: RELATIVA
C13: 1 | D13: 2 | E13: 3 | F13: 4 | G13: 5 | H13: 6 = (5/4) | I13: 7 = (5/3) | J13: 8 = 5-1 | K13: 9 = 8/1 | L13: 9 = (5/PIB)
B14: 1.1 - Ingresos Corrientes | C14: 4.493724229e+11 | D14: 656616381791 | E14: 7.536422142e+11 | F14: 5.694384017e+11 | G14: 6.159656681e+11 | H14: =G14/F14 -> 1.081707286 | I14: =G14/E14 -> 0.8173184258 | J14: =G14-C14 -> 1.665932452e+11 | K14: =J14/C14 -> 0.3707242293 | L14: =G14/$C$64 -> 0.1163404713
B15: 1.1.1 - Impuestos | C15: 3.924050398e+11 | D15: 605936356314 | E15: 7.028926666e+11 | F15: 5.315478941e+11 | G15: 5.70615689e+11 | H15: =G15/F15 -> 1.073498165 | I15: =G15/E15 -> 0.8118105595 | J15: =G15-C15 -> 1.782106492e+11 | K15: =J15/C15 -> 0.4541497461 | L15: =G15/$C$64 -> 0.1077749973
B16: 1.1.1.1 - Impuestos sobre el ingreso, las utilidades y las ganancias de capital | C16: 1.375312743e+11 | D16: 198305463771 | E16: 2.412008309e+11 | F16: 1.896013085e+11 | G16: 2.052628205e+11 | H16: 1.082602342 | I16: 0.8510037871 | J16: 6.773154626e+10 | K16: 0.4924810493 | L16: 0.03876900048
B17: 1.1.1.1.1 - De personas físicas | C17: 4.464610565e+10 | D17: 56397426783 | E17: 6.80530874e+10 | F17: 5.145872451e+10 | G17: 5.205077869e+10 | H17: 1.011505419 | I17: 0.7648555073 | J17: 7404673036 | K17: 0.1658526075 | L17: 0.009831087084
B18: 1.1.1.1.2 - De empresas y otras corporaciones | C18: 6.749350563e+10 | D18: 107219148802 | E18: 1.386092815e+11 | F18: 1.120511292e+11 | G18: 1.215781707e+11 | H18: 1.085024056 | I18: 0.877128641 | J18: 5.408466509e+10 | K18: 0.8013313962 | L18: 0.02296306826
B19: 1.1.1.1.3 - Otros impuestos sobre los ingresos | C19: 2.539166299e+10 | D19: 34688888186 | E19: 3.453846195e+10 | F19: 2.609145474e+10 | G19: 3.163387112e+10 | H19: 1.212422666 | I19: 0.9159027164 | J19: 6242208132 | K19: 0.2458369164 | L19: 0.005974845135
B20: 1.1.1.3 - Impuestos sobre la propiedad | C20: 1.665989595e+10 | D20: 29124499696 | E20: 3.339885417e+10 | F20: 2.619631433e+10 | G20: 3.237373613e+10 | H20: 1.235812631 | I20: 0.9693067901 | J20: 1.571384018e+10 | K20: 0.9432135844 | L20: 0.006114587085
B21: 1.1.1.4 - Impuestos sobre los bienes y servicios | C21: 2.15544658e+11 | D21: 341256177005 | E21: 3.821827668e+11 | F21: 2.830126953e+11 | G21: 2.985189784e+11 | H21: 1.054790062 | I21: 0.7810895842 | J21: 8.297432039e+10 | K21: 0.3849518757 | L21: 0.05638275059
B22: 1.1.1.5 - Impuestos sobre el comercio y las transacciones internacionales/comercio exterior | C22: 2.226452267e+10 | D22: 36571429740 | E22: 4.514679551e+10 | F22: 3.202055912e+10 | G22: 3.367705373e+10 | H22: 1.05173222 | I22: 0.7459456059 | J22: 1.141253106e+10 | K22: 0.5125881758 | L22: 0.006360751103
B23: 1.1.1.6 - Impuestos ecológicos | C23: 404025960.6 | D23: 677728808 | E23: 962725339.9 | F23: 716507468.3 | G23: 781946806.7 | H23: 1.091330993 | I23: 0.8122221098 | J23: 377920846.1 | K23: 0.9353875318 | L23: 0.0001476901469
B24: 1.1.1.9 - Impuestos diversos | C24: 662953.87 | D24: 1057294 | E24: 693974.9186 | F24: 509476.9206 | G24: 1153410.32 | H24: 2.263910834 | I24: 1.662034591 | J24: 490456.45 | K24: 0.7398047921 | L24: 2.178502913e-07
B25: 1.1.2 - Contribuciones a la seguridad social | C25: 1882402925 | D25: 2605834807 | E25: 2486619604 | F25: 1837334698 | G25: 2347415516 | H25: 1.277619978 | I25: 0.9440187444 | J25: 465012591.6 | K25: 0.2470313797 | L25: 0.000443367937
B26: 1.1.2.1 - Contribuciones de los empleados | C26: 687046562 | D26: 1005508231 | E26: 1065305678 | F26: 804451235.7 | G26: 856506537.1 | H26: 1.064709082 | I26: 0.8040007245 | J26: 169459975.1 | K26: 0.2466499135 | L26: 0.0001617726106
B27: 1.1.2.1.1 - Contribuciones de empleados del sector público | C27: 534902740.9 | D27: 768404073 | E27: 858220276.2 | F27: 660721254 | G27: 856506537.1 | H27: 1.296320546 | I27: 0.9980031477 | J27: 321603796.2 | K27: 0.6012378916 | L27: 0.0001617726106
B28: 1.1.2.1.2 - Contribuciones de empleados del sector privado | C28: 152143821.1 | D28: 237104158 | E28: 207085402 | F28: 143729981.7 | G28: 0 | H28: 0 | I28: 0 | J28: -152143821.1 | K28: -1 | L28: 0
B29: 1.1.2.2 - Contribuciones de los empleadores | C29: 1195356363 | D29: 1600326576 | E29: 1421313926 | F29: 1032883462 | G29: 1490908979 | H29: 1.443443558 | I29: 1.048965294 | J29: 295552616.5 | K29: 0.2472506323 | L29: 0.0002815953263
B30: 1.1.2.2.1 - Contribuciones de empleadores del sector público | C30: 1195356363 | D30: 1600326576 | E30: 1421313926 | F30: 1032883462 | G30: 1490908979 | H30: 1.443443558 | I30: 1.048965294 | J30: 295552616.5 | K30: 0.2472506323 | L30: 0.0002815953263
B31: 1.1.3 - Ventas de bienes y servicios | C31: 1.3658443e+10 | D31: 23655956821 | E31: 2.213529863e+10 | F31: 1.595601695e+10 | G31: 1.669134956e+10 | H31: 1.046084973 | I31: 0.7540602835 | J31: 3032906560 | K31: 0.2220536088 | L31: 0.003152577449
B32: 1.1.3.1 - Ventas de establecimientos no de mercado | C32: 10694382328 | D32: 18699805283 | E32: 1.766325631e+10 | F32: 1.272002362e+10 | G32: 1.299898119e+10 | H32: 1.021930586 | I32: 0.7359334519 | J32: 2304598858 | K32: 0.2154962098 | L32: 0.002455181637
B33: 1.1.3.2 - Ventas de establecimientos de mercado | C33: 0 | D33: 0 | E33: 0 | F33: 0 | G33: 450936773.3 | H33: 0 | I33: 0 | J33: 450936773.3 | K33: 0 | L33: 8.517065064e-05
B34: 1.1.3.3 - Derechos administrativos | C34: 2964060675 | D34: 4956151538 | E34: 4472042326 | F34: 3235993335 | G34: 3241431604 | H34: 1.001680556 | I34: 0.724821316 | J34: 277370928.7 | K34: 0.09357801985 | L34: 0.0006122251612
B35: 1.1.4 - Rentas de la propiedad | C35: 1.693078979e+10 | D35: 13308027306 | E35: 1.362627617e+10 | F35: 1.000093774e+10 | G35: 1.455601486e+10 | H35: 1.455465001 | I35: 1.068231311 | J35: -2374774928 | K35: -0.1402636828 | L35: 0.002749266261
B36: 1.1.4.1 - Intereses | C36: 4188341394 | D36: 301681040 | E36: 835478897.1 | F36: 710358165.9 | G36: 8713773337 | H36: 12.26673213 | I36: 10.42967497 | J36: 4525431943 | K36: 1.080483064 | L36: 0.001645813313
B37: 1.1.4.1.1 - Intereses internos | C37: 2714948843 | D37: 301681040 | E37: 835478897.1 | F37: 710358165.9 | G37: 4735486695 | H37: 6.666336677 | I37: 5.667990792 | J37: 2020537852 | K37: 0.7442268599 | L37: 0.0008944147093
B38: 1.1.4.1.2 - Intereses externos | C38: 1473392551 | D38: 0 | E38: 0 | F38: 0 | G38: 3978286642 | H38: 0 | I38: 0 | J38: 2504894091 | K38: 1.700086029 | L38: 0.0007513986036
B39: 1.1.4.2 - Rentas de la propiedad distinta de intereses | C39: 1.274244839e+10 | D39: 13006346266 | E39: 1.279079728e+10 | F39: 9290579575 | G39: 5842241523 | H39: 0.628834991 | I39: 0.4567535077 | J39: -6900206871 | K39: -0.5415134249 | L39: 0.001103452948
B40: 1.1.4.2.1 - Dividendos y retiros de las cuasisociedades | C40: 1.067830752e+10 | D40: 7000000000 | E40: 7000000000 | F40: 3500000000 | G40: 0 | H40: 0 | I40: 0 | J40: -1.067830752e+10 | K40: -1 | L40: 0
B41: 1.1.4.2.2 - Arrendamientos de activos tangibles no producidos | C41: 2064140870 | D41: 6006346266 | E41: 5790797277 | F41: 5790579575 | G41: 5842241523 | H41: 1.008921723 | I41: 1.008883793 | J41: 3778100653 | K41: 1.830350199 | L41: 0.001103452948
B42: 1.1.6 - Transferencias y donaciones corrientes recibidas | C42: 16401750500 | D42: 1003043267 | E42: 2662778708 | F42: 2662011777 | G42: 2870067420 | H42: 1.078157296 | I42: 1.077846766 | J42: -1.353168308e+10 | K42: -0.8250145666 | L42: 0.0005420837776
B43: 1.1.6.1 - Transferencias del sector privado | C43: 1750500 | D43: 3043267 | E43: 13872241.83 | F43: 13105311.26 | G43: 12470500 | H43: 0.951560764 | I43: 0.898953475 | J43: 10720000 | K43: 6.123964582 | L43: 2.355364791e-06
B44: 1.1.6.2 - Transferencias del sector público | C44: 16400000000 | D44: 1000000000 | E44: 2648906466 | F44: 2648906466 | G44: 2857596920 | H44: 1.078783625 | I44: 1.078783625 | J44: -1.354240308e+10 | K44: -0.8257562854 | L44: 0.0005397284128
B45: 1.1.7 - Multas y sanciones pecuniarias | C45: 65712422.29 | D45: 78083503 | E45: 236939187.6 | F45: 189589628 | G45: 1027209721 | H45: 5.418069182 | I45: 4.335330645 | J45: 961497298.6 | K45: 14.63189554 | L45: 0.0001940141622
B46: 1.1.9 - Otros ingresos corrientes | C46: 8028284497 | D46: 10029079773 | E46: 9601635263 | F46: 7244616783 | G46: 7857922033 | H46: 1.084656686 | I46: 0.8183941399 | J46: -170362463.3 | K46: -0.02122028229 | L46: 0.001484164459
B47: *Ingresos por diferencial del gas licuado de petróleo | C47: 6214378632 | D47: 9953133132 | E47: 9496031127 | F47: 7157720206 | G47: 7167681752 | H47: 1.00139172 | I47: 0.7548081567 | J47: 953303119.6 | K47: 0.153402806 | L47: 0.001353795376
B48: *Otros ingresos corrientes | C48: 1813905864 | D48: 75946641 | E48: 105604135.8 | F48: 86896576.99 | G48: 690240281.5 | H48: 7.943239025 | I48: 6.536110317 | J48: -1123665583 | K48: -0.6194729313 | L48: 0.0001303690836
B49: 1.2 - Ingresos de capital | C49: 7270740833 | D49: 87315942000 | E49: 10341698021 | F49: 7770222617 | G49: 8069988628 | H49: 1.038578819 | I49: 0.7803349713 | J49: 799247795.5 | K49: 0.1099265967 | L49: 0.001524218522
B50: 1.2.1 - Venta (disposición) de activos no financieros (a valores brutos) | C50: 11408777.59 | D50: 0 | E50: 25140000 | F50: 25140000 | G50: 59741100 | H50: 2.376336516 | I50: 2.376336516 | J50: 48332322.41 | K50: 4.236415517 | L50: 1.128359597e-05
B51: 1.2.4 - Transferencias de capital recibidas | C51: 7146390500 | D51: 87315942000 | E51: 10316558000 | F51: 7745082500 | G51: 7744151000 | H51: 0.9998797301 | I51: 0.7506525917 | J51: 597760500 | K51: 0.08364509328 | L51: 0.001462675964
B52: 1.2.4.1 - Transferencias del sector privado | C52: 0 | D52: 0 | E52: 0 | F52: 0 | G52: 0 | H52: 0 | I52: 0 | J52: 0 | K52: 0 | L52: 0
B53: 1.2.4.2 - Transferencias del sector publico | C53: 7146390500 | D53: 87315942000 | E53: 10316558000 | F53: 7745082500 | G53: 7744151000 | H53: 0.9998797301 | I53: 0.7506525917 | J53: 597760500 | K53: 0.08364509328 | L53: 0.001462675964
B54: 1.2.5 - Recuperación de inversiones financieras realizadas con fines de política | C54: 112941555.1 | D54: 0 | E54: 0 | F54: 0 | G54: 266096528.1 | H54: 0 | I54: 0 | J54: 153154973.1 | K54: 1.356055112 | L54: 5.025896263e-05
B55: Total de Ingresos (1.1 + 1.2) | C55: 4.566431638e+11 | D55: 743932323791 | E55: =E49+E14 -> 7.639839122e+11 | F55: 5.772086243e+11 | G55: =G49+G14 -> 6.240356567e+11 | H55: 1.081126703 | I55: 0.8168177978 | J55: 1.67392493e+11 | K55: 0.3665717704 | L55: 0.1178646898
B56: Donaciones | C56: 1338745765 | D56: 2381511760 | E56: 2381511760 | F56: 1607699228 | G56: 325272924 | H56: 0.2023220005 | I56: 0.1365825395 | J56: -1013472841 | K56: -0.7570315945 | L56: 6.143590014e-05
B57: Donaciones Corrientes | C57: 649361532.7 | D57: 549847567 | E57: 549847567 | F57: 393271715 | G57: 237000806.3 | H57: 0.6026388301 | I57: 0.4310300172 | J57: -412360726.4 | K57: -0.6350248755 | L57: 4.476351025e-05
B58: Donaciones de Capital | C58: 689384232.4 | D58: 1831664193 | E58: 1831664193 | F58: 1214427513 | G58: 88272117.71 | H58: 0.07268619723 | I58: 0.04819230405 | J58: -601112114.7 | K58: -0.8719551252 | L58: 1.667238989e-05
B59: Total de Ingresos con Donaciones | C59: 4.579819095e+11 | D59: 7.463138356e+11 | E59: 7.66365424e+11 | F59: 5.788163236e+11 | G59: 6.243609297e+11 | H59: 1.078685767 | I59: 0.814703939 | J59: 1.663790201e+11 | K59: 0.3632873191 | L59: 0.1179261257
B62: Marco Macroeconómico revisado al 26 de agosto de 2021 | C62: 2021
B64: PIB nominal (Millones RD$) | C64: 5.294508964e+12

Sheet Tabla 3
B1: MINISTERIO DE HACIENDA
B2: DIRECCIÓN GENERAL DE PRESUPUESTO
B3: DIRECCIÓN DE ESTUDIOS ECONÓMICOS Y SEGUIMIENTO FINANCIERO
B7: Tabla 3. Ingresos del Gobierno Central por la Clasificación Económica Central
B8: Trimestral 2020 y 2021
B9: Valores en millones RD$
C10: DETALLE | D10: 1ER TRIMESTRE | E10: 2DO TRIMESTRE | F10: 3ER TRIMESTRE | I10: DEVENGADO ACUMULADO
D13: RECAUDADO | F13: ESTIMADO | G13: RECAUDADO | H13: RECAUDADO VS ESTIMADO
D14: 1 | E14: 2 | F14: 3 | G14: 4 | H14: 5 = (4/3) | I14: 6 = 1+2+4
C15: 1.1 - Ingresos Corrientes | D15: 1.847914198e+11 | E15: 2.202181129e+11 | F15: 1.811944393e+11 | G15: 2.109561355e+11 | H15: 1.164252812 | I15: 6.159656681e+11
C16: 1.1.1 - Impuestos | D16: 1.675772454e+11 | E16: 2.035893992e+11 | F16: 1.682185459e+11 | G16: 1.994490444e+11 | H16: 1.185654313 | I16: 5.70615689e+11
C17: 1.1.1.1 - Impuestos sobre el ingreso, las utilidades y las ganancias de capital | D17: 5.644857737e+10 | E17: 8.096606105e+10 | F17: 5.706779205e+10 | G17: 6.784818211e+10 | H17: 1.188904979 | I17: 2.052628205e+11
C18: 1.1.1.1.1 - De personas físicas | D18: 1.850075976e+10 | E18: 1.713820527e+10 | F18: 1.689173931e+10 | G18: 1.641181366e+10 | H18: 0.971588145 | I18: 5.205077869e+10
C19: 1.1.1.1.2 - De empresas y otras corporaciones | D19: 2.958760047e+10 | E19: 5.308496815e+10 | F19: 3.224892236e+10 | G19: 3.89056021e+10 | H19: 1.206415572 | I19: 1.215781707e+11
C20: 1.1.1.1.3 - Otros impuestos sobre los ingresos | D20: 8360217143 | E20: 1.074288764e+10 | F20: 7927130391 | G20: 1.253076634e+10 | H20: 1.580744321 | I20: 3.163387112e+10
C21: 1.1.1.3 - Impuestos sobre la propiedad | D21: 8246098467 | E21: 1.196085974e+10 | F21: 7023999663 | G21: 1.216677792e+10 | H21: 1.732172338 | I21: 3.237373613e+10
C22: 1.1.1.4 - Impuestos sobre los bienes y servicios | D22: 9.266969892e+10 | E22: 9.924738585e+10 | F22: 9.285481863e+10 | G22: 1.066018936e+11 | H22: 1.148049129 | I22: 2.985189784e+11
C23: 1.1.1.5 - Impuestos sobre el comercio y las transacciones internacionales/comercio exterior | D23: 9970475589 | E23: 1.1149329e+10 | F23: 1.104417133e+10 | G23: 1.255724914e+10 | H23: 1.137002385 | I23: 3.367705373e+10
C24: 1.1.1.6 - Impuestos ecológicos | D24: 242080578.2 | E24: 265581354.9 | F24: 227653044.7 | G24: 274284873.7 | H24: 1.204837273 | I24: 781946806.7
C25: 1.1.1.9 - Impuestos diversos | D25: 314511.17 | E25: 182164.52 | F25: 111139.2406 | G25: 656734.63 | H25: 5.909115688 | I25: 1153410.32
C26: 1.1.2 - Contribuciones a la seguridad social | D26: 587655362.9 | E26: 924429330.8 | F26: 634853137 | G26: 835330822.8 | H26: 1.315785926 | I26: 2347415516
C27: 1.1.2.1 - Contribuciones de los empleados | D27: 267768856.2 | E27: 288200396.9 | F27: 263020852.6 | G27: 300537284 | H27: 1.142636719 | I27: 856506537.1
C28: 1.1.2.1.1 - Contribuciones de empleados del sector público | D28: 267768856.2 | E28: 288200396.9 | F28: 217979939 | G28: 300537284 | H28: 1.37873827 | I28: 856506537.1
C29: 1.1.2.1.2 - Contribuciones de empleados del sector privado | D29: 0 | E29: 0 | F29: 45040913.58 | G29: 0 | H29: 0 | I29: 0
C30: 1.1.2.2 - Contribuciones de los empleadores | D30: 319886506.6 | E30: 636228933.9 | F30: 371832284.5 | G30: 534793538.8 | H30: 1.438265479 | I30: 1490908979
C31: 1.1.2.2.1 - Contribuciones de empleadores del sector público | D31: 319886506.6 | E31: 636228933.9 | F31: 371832284.5 | G31: 534793538.8 | H31: 1.438265479 | I31: 1490908979
C32: 1.1.3 - Ventas de bienes y servicios | D32: 4731651454 | E32: 5341866784 | F32: 5791457363 | G32: 6617831325 | H32: 1.142688431 | I32: 1.669134956e+10
C33: 1.1.3.1 - Ventas de establecimientos no de mercado | D33: 3814701395 | E33: 3907823050 | F33: 4579087157 | G33: 5276456741 | H33: 1.152294455 | I33: 1.299898119e+10
C34: 1.1.3.2 - Ventas de establecimientos de mercado | D34: 135460204.6 | E34: 164751273.6 | F34: 0 | G34: 150725295.1 | H34: 0 | I34: 450936773.3
C35: 1.1.3.3 - Derechos administrativos | D35: 781489854.6 | E35: 1269292461 | F35: 1212370206 | G35: 1190649288 | H35: 0.982083923 | I35: 3241431604
C36: 1.1.4 - Rentas de la propiedad | D36: 6877863552 | E36: 7096589423 | F36: 3594325416 | G36: 581561885.6 | H36: 0.1618000093 | I36: 1.455601486e+10
C37: 1.1.4.1 - Intereses | D37: 6517686631 | E37: 1659060026 | F37: 94138995.99 | G37: 537026680.6 | H37: 5.70461449 | I37: 8713773337
C38: 1.1.4.1.1 - Intereses internos | D38: 2539399989 | E38: 1659060026 | F38: 94138995.99 | G38: 537026680.6 | H38: 5.70461449 | I38: 4735486695
C39: 1.1.4.1.2 - Intereses externos | D39: 3978286642 | E39: 0 | F39: 0 | G39: 0 | H39: 0 | I39: 3978286642
C40: 1.1.4.2 - Rentas de la propiedad distinta de intereses | D40: 360176920.8 | E40: 5437529397 | F40: 3500186420 | G40: 44535205.06 | H40: 0.0127236666 | I40: 5842241523
C41: 1.1.4.2.1 - Dividendos y retiros de las cuasisociedades | D41: 0 | E41: 0 | F41: 3500000000 | G41: 0 | H41: 0 | I41: 0
C42: 1.1.4.2.2 - Arrendamientos de activos tangibles no producidos | D42: 360176920.8 | E42: 5437529397 | F42: 186420.2379 | G42: 44535205.06 | H42: 238.8968364 | I42: 5842241523
C43: 1.1.6 - Transferencias y donaciones corrientes recibidas | D43: 2060559450 | E43: 399748984.6 | F43: 340639884.7 | G43: 409758984.6 | H43: 1.202909592 | I43: 2870067420
C44: 1.1.6.1 - Transferencias del sector privado | D44: 12089500 | E44: 185500 | F44: 639884.7183 | G44: 195500 | H44: 0.3055237833 | I44: 12470500
C45: 1.1.6.2 - Transferencias del sector público | D45: 2048469950 | E45: 399563484.6 | F45: 340000000 | G45: 409563484.6 | H45: 1.204598484 | I45: 2857596920
C46: 1.1.7 - Multas y sanciones pecuniarias | D46: 290650880 | E46: 302621225.2 | F46: 51765142.3 | G46: 433937615.7 | H46: 8.382815084 | I46: 1027209721
C47: 1.1.9 - Otros ingresos corrientes | D47: 2665793648 | E47: 2563457959 | F47: 2562852471 | G47: 2628670426 | H47: 1.025681523 | I47: 7857922033
C48: *Ingresos por diferencial del gas licuado de petróleo | D48: 2210619441 | E48: 2364639460 | F48: 2535742539 | G48: 2592422851 | H48: 1.02235255 | I48: 7167681752
C49: *Otros ingresos corrientes | D49: 455174207.5 | E49: 198818499.3 | F49: 27109932.86 | G49: 36247574.76 | H49: 1.337058817 | I49: 690240281.5
C50: 1.2 - Ingresos de capital | D50: 2706846312 | E50: 2696584454 | F50: 2571475548 | G50: 2666557862 | H50: 1.03697578 | I50: 8069988628
C51: 1.2.1 - Venta (disposición) de activos no financieros (a valores brutos) | D51: 23710000 | E51: 1430000 | F51: 0 | G51: 34601100 | H51: 0 | I51: 59741100
C52: 1.2.4 - Transferencias de capital recibidas | D52: 2603697500 | E52: 2569909500 | F52: 2571475500 | G52: 2570544000 | H52: 0.9996377566 | I52: 7744151000
C53: 1.2.4.1 - Transferencias del sector privado | D53: 0 | E53: 0 | F53: 0 | G53: 0 | H53: 0 | I53: 0
C54: 1.2.4.2 - Transferencias del sector publico | D54: 2603697500 | E54: 2569909500 | F54: 2571475500 | G54: 2570544000 | H54: 0.9996377566 | I54: 7744151000
C55: 1.2.5 - Recuperación de inversiones financieras realizadas con fines de política | D55: 79438812.13 | E55: 125244954.1 | F55: 0 | G55: 61412761.86 | H55: 0 | I55: 266096528.1
C56: Total de Ingresos (1.1 + 1.2) | D56: 1.874982661e+11 | E56: 2.229146973e+11 | F56: 1.837659148e+11 | G56: 2.136226933e+11 | H56: 1.162471797 | I56: 6.240356567e+11
C57: Donaciones | D57: 85612582.6 | E57: 62374833.58 | F57: 738872423.6 | G57: 177285507.8 | H57: 0.2399406205 | I57: 325272924
C58: Donaciones Corrientes | D58: 64757959.06 | E58: 45091036.2 | F58: 186586890.7 | G58: 127151811 | H58: 0.6814616531 | I58: 237000806.3
C59: Donaciones de Capital | D59: 20854623.54 | E59: 17283797.38 | F59: 552285532.9 | G59: 50133696.79 | H59: 0.09077495934 | I59: 88272117.71
C60: Total de Ingresos con Donaciones | D60: 1.875838787e+11 | E60: 2.229770722e+11 | F60: 1.845047872e+11 | G60: 2.137999788e+11 | H60: 1.158777406 | I60: 6.243609297e+11

Sheet Gráfico 10
A1: MINISTERIO DE HACIENDA
A2: DIRECCIÓN GENERAL DE PRESUPUESTO
A3: DIRECCIÓN DE ESTUDIOS ECONÓMICOS Y SEGUIMIENTO FINANCIERO
C7: Gráfico 10. Ingresos del Gobierno Central por Entidad Recaudadora
C8: Enero-Septiembre 2020 y 2021
C9: Valores en millones RD$
C26: Excluye donaciones.
C27: Fuente: Sistema de Información de la Gestión Financiera (SIGEF).
C29: Recaudadora | D29: Recaudado 2020 | E29: Presupuesto Aprobado | F29: Recaudado 2021
C30: TN | D30: 5.471236867e+10 | E30: 41135573230 | F30: 3.681291918e+10
C31: DGA | D31: 8.556812873e+10 | E31: 176813391450 | F31: 1.326341793e+11
C32: DGII | D32: 3.163626664e+11 | E32: 546034947512 | F32: 4.545885583e+11
C33: Total general | D33: =SUM(D30:D32) -> 4.566431638e+11 | E33: =SUM(E30:E32) -> 763983912192 | F33: 6.240356567e+11

Sheet Gráfico 11
A1: MINISTERIO DE HACIENDA
A2: DIRECCIÓN GENERAL DE PRESUPUESTO
A3: DIRECCIÓN DE ESTUDIOS ECONÓMICOS Y SEGUIMIENTO FINANCIERO
B6: Gráfico 11. Ingresos de la Dirección General de Impuestos Internos
B7: Enero-Septiembre 2020 y 2021
B8: Valores en millones RD$
B22: Excluye donaciones.
B23: Fuente: Sistema de Información de la Gestión Financiera (SIGEF).
B25: Dirección General de Impuestos Internos | C25: 2020 | D25: 2021
B26: Enero-Septiembre | C26: 3.163626664e+11 | D26: 4.545885583e+11
B27: Julio-Septiembre | C27: 1.151237741e+11 | D27: 1.556454447e+11

Sheet Gráfico 12
A1: MINISTERIO DE HACIENDA
A2: DIRECCIÓN GENERAL DE PRESUPUESTO
A3: DIRECCIÓN DE ESTUDIOS ECONÓMICOS Y SEGUIMIENTO FINANCIERO
B7: Gráfico 12. Ingresos de la Dirección General de Aduanas
B8: Enero-Septiembre 2020 y 2021
B9: Valores en millones RD$
B24: Excluye donaciones.
B25: Fuente: Sistema de Información de la Gestión Financiera (SIGEF).
B27: Dirección General de Aduanas | C27: 2020 | D27: 2021
B28: Enero-Septiembre | C28: 8.556812873e+10 | D28: 1.326341793e+11
B29: Julio-Septiembre | C29: 3.169488175e+10 | D29: 4.774066293e+10

Sheet Gráfico 13
A1: MINISTERIO DE HACIENDA
A2: DIRECCIÓN GENERAL DE PRESUPUESTO
A3: DIRECCIÓN DE ESTUDIOS ECONÓMICOS Y SEGUIMIENTO FINANCIERO
D8: Gráfico 13. Ingresos de la Tesorería Nacional
D9: Enero-Septiembre 2020 y 2021
D10: Valores en millones RD$
D25: Excluye donaciones.
D26: Fuente: Sistema de Información de la Gestión Financiera (SIGEF).
D28: Tesorería Nacional | E28: 2020 | F28: 2021
D29: Enero-Septiembre | E29: 5.471236867e+10 | F29: 3.681291918e+10
D30: Julio-Septiembre | E30: 2.424598796e+10 | F30: 1.023658569e+10

Sheet Gráfico 14
A1: MINISTERIO DE HACIENDA
A2: DIRECCIÓN GENERAL DE PRESUPUESTO
A3: DIRECCIÓN DE ESTUDIOS ECONÓMICOS Y SEGUIMIENTO FINANCIERO
C7: Gráfico 14. Distribución del Gasto del Gobierno Central por Clasificación Económica
C8: Enero-Septiembre 2021
C9: Valores en RD$ millones
D11: 2020 | E11: 2021
C12: Gastos corrientes | D12: ='Tabla 4'!C12 -> 5.378771062e+11 | E12: ='Tabla 4'!H12 -> 5.701549248e+11
C13: Gastos de capital | D13: ='Tabla 4'!C24 -> 8.472014235e+10 | E13: ='Tabla 4'!H24 -> 4.562066248e+10
C26: Notas: *Cifras preliminares
C27: Fuente: Sistema de Información de la Gestión Financiera (SIGEF).

Sheet Tabla 4
A1: MINISTERIO DE HACIENDA
A2: DIRECCIÓN GENERAL DE PRESUPUESTO
A3: DIRECCIÓN DE ESTUDIOS ECONÓMICOS Y SEGUIMIENTO FINANCIERO
B6: Tabla 4. Gastos del Gobierno Central por Clasificación Económica (Enero - Septiembre 2021)
B7: Valores en millones RD$ | P7: PIB Nominal (Millones RD$) | Q7: 5.294508964e+12
B8: DETALLE | C8: 2020 | D8: 2021 | L8: VARIACIÓN 2021/2020 | N8: EJECUCIÓN % PIB
C9: EJECUCIÓN | D9: PRESUPUESTO INICIAL | E9: PRESUPUESTO APROBADO LEY NO. 166-21 | F9: PROGRAMADO | G9: COMPROMETIDO | H9: EJECUCIÓN | I9: PAGADO | J9: EJECUTADO VS. PROGRAMADO | K9: % DE CUMPLIMIENTO EJECUCIÓN
L10: ABS. | M10: REL.
C11: 1 | D11: 2 | E11: 3 | F11: 4 | G11: 5 | H11: 6 | I11: 7 | J11: 8 = (6/4) | K11: 9 = 6/3 | L11: 10 = (6)-(1) | M11: 11 = 10/1 | N11: 12 = (6/PIB)
B12: 2.1 - Gastos corrientes | C12: 5.378771062e+11 | D12: 768220844934 | E12: 8.452350859e+11 | F12: 5.950662746e+11 | G12: 5.954183517e+11 | H12: 5.701549248e+11 | I12: 5.521228822e+11 | J12: =H12/F12 -> 0.9581368481 | K12: =H12/E12 -> 0.67455189 | L12: =H12-C12 -> 3.227781851e+10 | M12: =L12/C12 -> 0.06000965302 | N12: =H12/$Q$7 -> 0.1076879704
B13: 2.1.2 - Gastos de consumo | C13: 2.200746055e+11 | D13: 313475539067 | E13: 3.616482573e+11 | F13: 2.444296072e+11 | G13: 2.602858558e+11 | H13: 2.353238242e+11 | I13: 2.29737972e+11 | J13: =H13/F13 -> 0.9627468084 | K13: =H13/E13 -> 0.6506980733 | L13: =H13-C13 -> 1.524921871e+10 | M13: =L13/C13 -> 0.0692911328 | N13: =H13/$Q$7 -> 0.04444677038
B14: 2.1.2.1 - Remuneraciones | C14: 1.51037571e+11 | D14: 209164590451 | E14: 2.160179186e+11 | F14: 1.524715428e+11 | G14: 1.765230579e+11 | H14: 1.570549198e+11 | I14: 1.568304493e+11 | J14: 1.03006054 | K14: 0.7270457969 | L14: 6017348726 | M14: 0.03984007876 | N14: 0.02966373668
B15: 2.1.2.2 - Bienes y servicios | C15: 6.900153194e+10 | D15: 100401938348 | E15: 1.417213284e+11 | F15: 8.952200421e+10 | G15: 8.368956305e+10 | H15: 7.819566965e+10 | I15: 7.283505579e+10 | J15: 0.8734798818 | K15: 0.5517565389 | L15: 9194137714 | M15: 0.1332454143 | N15: 0.01476920149
B16: 2.1.2.4 - Impuestos sobre los productos, la producción y las importaciones de las empresas | C16: 35502508.06 | D16: 112513250 | E16: 112513250 | F16: 52389146.01 | G16: 73234782.6 | H16: 73234782.6 | I16: 72466903.64 | J16: 1.397899912 | K16: 0.6508991839 | L16: 37732274.54 | M16: 1.062805886 | N16: 1.38322143e-05
B17: 2.1.2.7 - 5 % que se asigna durante el ejercicio para gasto corriente | C17: 0 | D17: 3380145672 | E17: 3380145672 | F17: 1863231855 | G17: 0 | H17: 0 | I17: 0 | J17: 0 | K17: 0 | L17: 0 | M17: - | N17: 0
B18: 2.1.2.8 - 1 % que se asigna durante el ejercicio para gasto corriente por calamidad publica | C18: 0 | D18: 416351346 | E18: 416351346 | F18: 520439182.5 | G18: 0 | H18: 0 | I18: 0 | J18: 0 | K18: 0 | L18: 0 | M18: - | N18: 0
B19: 2.1.3 - Prestaciones de la seguridad social | C19: 3.024145716e+10 | D19: 45951048903 | E19: 50951048903 | F19: 2.974730355e+10 | G19: 3.237514192e+10 | H19: 3.232337003e+10 | I19: 3.232239498e+10 | J19: 1.086598319 | K19: 0.6344004829 | L19: 2081912866 | M19: 0.06884300761 | N19: 0.006105074192
B20: 2.1.4 - Intereses de la deuda | C20: 1.058962689e+11 | D20: 184836130000 | E20: 157865454286 | F20: 1.280486729e+11 | G20: 1.209270054e+11 | H20: 1.208965324e+11 | I20: 1.107028864e+11 | J20: 0.9441451415 | K20: 0.7658200643 | L20: 1.500026346e+10 | M20: 0.141650538 | N20: 0.02283432386
B21: 2.1.5 - Subvenciones otorgadas a empresas | C21: 111025432.2 | D21: 0 | E21: 6000000000 | F21: 0 | G21: 3498409730 | H21: 3498409730 | I21: 2736958582 | J21: - | K21: 0.5830682884 | L21: 3387384298 | M21: 30.50998523 | N21: 0.0006607618864
B22: 2.1.6 - Transferencias corrientes | C22: 1.813315799e+11 | D22: 223692311423 | E22: 2.685045099e+11 | F22: 1.92688556e+11 | G22: 1.775617645e+11 | H22: 1.773426141e+11 | I22: 1.758524959e+11 | J22: 0.9203588305 | K22: 0.6604828132 | L22: -3988965815 | M22: -0.02199818596 | N22: 0.03349557349
B23: 2.1.9 - Otros gastos corrientes | C23: 222169359.9 | D23: 265815541 | E23: 265815541 | F23: 152134948.1 | G23: 770174351.2 | H23: 770174351.2 | I23: 770174351.2 | J23: 5.062442002 | K23: 2.897401515 | L23: 548004991.4 | M23: 2.46660922 | N23: 0.0001454666252
B24: 2.2 - Gastos de capital | C24: 8.472014235e+10 | D24: 123157955971 | E24: 131355196248 | F24: 8.464019784e+10 | G24: 4.992650827e+10 | H24: 4.562066248e+10 | I24: 4.155591372e+10 | J24: 0.538995225 | K24: 0.3473076344 | L24: -3.909947987e+10 | M24: -0.4615133873 | N24: 0.008616599347
B25: 2.2.1 - Construcciones en proceso | C25: 1.932335829e+10 | D25: 30479010985 | E25: 30960800811 | F25: 4.322509489e+10 | G25: 1.114195925e+10 | H25: 1.051822382e+10 | I25: 8889873310 | J25: 0.2433360493 | K25: 0.3397271241 | L25: -8805134472 | M25: -0.4556730946 | N25: 0.001986628768
B26: 2.2.2 - Activos fijos (formación bruta de capital fijo) | C26: 3.571398243e+10 | D26: 44127092095 | E26: 49509035158 | F26: 1.922632343e+10 | G26: 1.600295472e+10 | H26: 1.239432463e+10 | I26: 1.081244467e+10 | J26: 0.6446539129 | K26: 0.2503447016 | L26: -2.33196578e+10 | M26: -0.6529559632 | N26: 0.002340977174
B27: 2.2.4 - Objetos de valor | C27: 905790 | D27: 15705520 | E27: 15705520 | F27: 3326576.292 | G27: 40454 | H27: 40454 | I27: 40454 | J27: 0.01216085141 | K27: 0.002575782273 | L27: -865336 | M27: -0.9553384339 | N27: 7.640746343e-09
B28: 2.2.5 - Activos no producidos | C28: 1303433975 | D28: 1196164756 | E28: 1194000337 | F28: 1430326156 | G28: 700518008.5 | H28: 627037729.2 | I28: 583045959.5 | J28: 0.4383879344 | K28: 0.5251570789 | L28: -676396245.9 | M28: -0.5189340303 | N28: 0.000118431706
B29: 2.2.6 - Transferencias de capital | C29: 2.837846186e+10 | D29: 45893698340 | E29: 48229370147 | F29: 2.075512678e+10 | G29: 2.208103584e+10 | H29: 2.208103584e+10 | I29: 2.127050932e+10 | J29: 1.063883448 | K29: 0.4578338008 | L29: -6297426017 | M29: -0.2219086449 | N29: 0.004170554058
B30: 2.2.8 - Gastos de capital, reserva presupuestaria | C30: 0 | D30: 1446284275 | E30: 1446284275 | F30: 0 | G30: 0 | H30: 0 | I30: 0 | J30: - | K30: 0 | L30: 0 | M30: - | N30: 0
B31: TOTAL | C31: 6.225972486e+11 | D31: 891378800905 | E31: 9.765902822e+11 | F31: =F12+F24 -> 6.797064724e+11 | G31: 6.4534486e+11 | H31: 6.157755872e+11 | I31: 5.936787959e+11 | J31: 0.9059433921 | K31: 0.6305362632 | L31: -6821661354 | M31: -0.01095678044 | N31: 0.1163045698
B32: Notas: *Cifras preliminares
B33: Fecha de registro al 15 de Octubre 2021 / Fecha de imputación al 30 de septiembre 2021
B34: Se utilizó el PIB del Panorama Macroeconómico actualizado al 26 de agosto 2021, elaborado por el Ministerio de Economía Planificación y Desarrollo
B35: Fuente: Datos del SIGEF

Sheet Tabla 5
A1: MINISTERIO DE HACIENDA
A2: DIRECCIÓN GENERAL DE PRESUPUESTO
A3: DIRECCIÓN DE ESTUDIOS ECONÓMICOS Y SEGUIMIENTO FINANCIERO
C6: Tabla 5. Gastos del Gobierno Central por Clasificación Económica Trimestral
C7: Valores en millones RD$
C8: DETALLE | D8: 1ER TRIMESTRE | E8: 2DO TRIMESTRE | F8: 3ER TRIMESTRE | I8: DEVENGADO ACUMULADO
D11: DEVENGADO | F11: PROGRAMADO | G11: DEVENGADO | H11: EJECUTADO VS. PROGRAMADO
D12: 1 | E12: 2 | F12: 3 | G12: 4 | H12: 5 = 4/3 | I12: 6 = 1+2+4
C13: 2.1 - Gastos corrientes | D13: 1.721009754e+11 | E13: 2.043517562e+11 | F13: 2.000051246e+11 | G13: 1.937021931e+11 | H13: =G13/F13 -> 0.9684861498 | I13: =D13+E13+G13 -> 5.701549248e+11
C14: 2.1.2 - Gastos de consumo | D14: 6.984331204e+10 | E14: 7.937637675e+10 | F14: 9.396947532e+10 | G14: 8.610413541e+10 | H14: =G14/F14 -> 0.9162989909 | I14: =D14+E14+G14 -> 2.353238242e+11
C15: 2.1.2.1 - Remuneraciones | D15: 5.014273974e+10 | E15: 5.178835501e+10 | F15: 5.311720149e+10 | G15: 5.512382501e+10 | H15: 1.037777282 | I15: 1.570549198e+11
C16: 2.1.2.2 - Bienes y servicios | D16: 1.968569894e+10 | E16: 2.755893213e+10 | F16: 4.083778765e+10 | G16: 3.095103858e+10 | H16: 0.7579019423 | I16: 7.819566965e+10
C17: 2.1.2.4 - Impuestos sobre los productos, la producción y las importaciones de las empresas | D17: 14873360.54 | E17: 29089605.36 | F17: 14486169.67 | G17: 29271816.7 | H17: 2.020673329 | I17: 73234782.6
C18: 2.1.2.7 - 5 % que se asigna durante el ejercicio para gasto corriente | D18: 0 | E18: 0 | F18: 0 | G18: 0 | H18: - | I18: 0
C19: 2.1.2.8 - 1 % que se asigna durante el ejercicio para gasto corriente por calamidad publica | D19: 0 | E19: 0 | F19: 0 | G19: 0 | H19: - | I19: 0
C20: 2.1.3 - Prestaciones de la seguridad social | D20: 1.061177201e+10 | E20: 1.068429171e+10 | F20: 8539127129 | G20: 1.102730631e+10 | H20: 1.291385658 | I20: 3.232337003e+10
C21: 2.1.4 - Intereses de la deuda | D21: 3.471997441e+10 | E21: 5.366379879e+10 | F21: 3.11635692e+10 | G21: 3.251275915e+10 | H21: 1.04329382 | I21: 1.208965324e+11
C22: 2.1.5 - Subvenciones otorgadas a empresas | D22: 229146564.7 | E22: 1053925994 | F22: 0 | G22: 2215337172 | H22: - | I22: 3498409730
C23: 2.1.6 - Transferencias corrientes | D23: 5.66410033e+10 | E23: 5.951653609e+10 | F23: 6.625532288e+10 | G23: 6.118507469e+10 | H23: 0.9234741004 | I23: 1.773426141e+11
C24: 2.1.9 - Otros gastos corrientes | D24: 55767081.75 | E24: 56826889.75 | F24: 77630115.05 | G24: 657580379.7 | H24: 8.470686657 | I24: 770174351.2
C25: 2.2 - Gastos de capital | D25: 9460936653 | E25: 1.735987783e+10 | F25: 3.413583854e+10 | G25: 1.879984799e+10 | H25: 0.5507363754 | I25: 4.562066248e+10
C26: 2.2.1 - Construcciones en proceso | D26: 1258578293 | E26: 3124505819 | F26: 1.986050269e+10 | G26: 6135139709 | H26: 0.3089116023 | I26: 1.051822382e+10
C27: 2.2.2 - Activos fijos (formación bruta de capital fijo) | D27: 2789023735 | E27: 4870856447 | F27: 7528313069 | G27: 4734444449 | H27: 0.6288851707 | I27: 1.239432463e+10
C28: 2.2.4 - Objetos de valor | D28: 0 | E28: 0 | F28: 351529.3829 | G28: 40454 | H28: 0.1150799961 | I28: 40454
C29: 2.2.5 - Activos no producidos | D29: 53075837.99 | E29: 367530858.9 | F29: 805951086 | G29: 206431032.3 | H29: 0.2561334501 | I29: 627037729.2
C30: 2.2.6 - Transferencias de capital | D30: 5360258788 | E30: 8996984708 | F30: 5940720166 | G30: 7723792348 | H30: 1.300144112 | I30: 2.208103584e+10
C31: 2.2.8 - Gastos de capital, reserva presupuestaria | D31: 0 | E31: 0 | F31: 0 | G31: 0 | H31: - | I31: 0
C32: TOTAL | D32: 1.815619121e+11 | E32: 2.21711634e+11 | F32: =F13+F25 -> 2.341409632e+11 | G32: 2.125020411e+11 | H32: 0.9075816475 | I32: 6.157755872e+11
C33: Notas: *Cifras preliminares
C34: Fecha de registro al 15 de Octubre 2021 / Fecha de imputación al 30 de septiembre 2021
C35: Fuente: Datos del SIGEF

Sheet Mapa 1
B1: MINISTERIO DE HACIENDA
B2: DIRECCIÓN GENERAL DE PRESUPUESTO
B3: DIRECCIÓN DE ESTUDIOS ECONÓMICOS Y SEGUIMIENTO FINANCIERO
C7: Mapa 1. Inversión Pública del Gobierno Central por Provincia (Enero-Septiembre 2021) En RD$ millones

Sheet Tabla 6
B1: MINISTERIO DE HACIENDA
B2: DIRECCIÓN GENERAL DE PRESUPUESTO
B3: DIRECCIÓN DE ESTUDIOS ECONÓMICOS Y SEGUIMIENTO FINANCIERO
C7: Tabla 6. Gastos de Gobierno Central por Clasificación Institucional
C8: Enero - Septiembre 2021 | Q8: PIB Nominal (Millones RD$) | R8: 5.294508964e+12
C9: Valores en millones RD$
C10: DETALLE | D10: 2020 | E10: 2021 | M10: Variación 2021/2020 | O10: EJECUCIÓN % PIB
D11: EJECUCIÓN | E11: PRESUPUESTO INICIAL | F11: PRESUPUESTO APROBADO Ley No. 166-21 | G11: PROGRAMADO | H11: COMPROMETIDO | I11: EJECUCIÓN | J11: PAGADO | K11: EJECUTADO VS. PROGRAMADO | L11: % DE CUMPLIMIENTO EJECUCIÓN
M12: Absoluta | N12: Relativa
D13: 1 | E13: 2 | F13: 3 | G13: 4 | H13: 5 | I13: 6 | J13: 7 | K13: 8 = (6/4) | L13: 9 = (6/3) | M13: 10 = (6)-(1) | N13: 11 = 10/1 | O13: 12 = (6/PIB)
C14: PODER LEGISLATIVO | D14: =D16+D15 -> 6269399409 | E14: =E16+E15 -> 7818719836 | F14: 7818719836 | G14: =G16+G15 -> 5864039877 | H14: 5864039781 | I14: 5864039781 | J14: 5864039781 | K14: =I14/G14 -> 0.9999999836 | L14: =I14/F14 -> 0.7499999877 | M14: =I14-D14 -> -405359628.3 | N14: =M14/D14 -> -0.06465685176 | O14: =I14/$R$8 -> 0.001107570092
C15: 0101 - SENADO DE LA REPÚBLICA | D15: 2101834317 | E15: 2635779124 | F15: 2635779124 | G15: 1976834343 | H15: 1976834308 | I15: 1976834308 | J15: 1976834308 | K15: =I15/G15 -> 0.9999999823 | L15: =I15/F15 -> 0.7499999869 | M15: =I15-D15 -> -125000008.2 | N15: =M15/D15 -> -0.05947186572 | O15: =I15/$R$8 -> 0.0003733744379
C16: 0102 - CÁMARA DE DIPUTADOS | D16: 4167565093 | E16: 5182940712 | F16: 5182940712 | G16: 3887205534 | H16: 3887205473 | I16: 3887205473 | J16: 3887205473 | K16: 0.9999999843 | L16: 0.7499999882 | M16: -280359620 | N16: -0.06727180351 | O16: 0.0007341956543
C17: PODER EJECUTIVO | D17: =SUM(D18:D39) -> 4.22714349e+11 | E17: =SUM(E18:E39) -> 603583899414 | F17: 6.883553784e+11 | G17: =SUM(G18:G39) -> 4.816655881e+11 | H17: 4.519690973e+11 | I17: 4.226260235e+11 | J17: 4.109994356e+11 | K17: 0.8774262351 | L17: 0.6139648745 | M17: -88325511.45 | N17: -0.0002089484581 | O17: 0.07982345982
C18: 0201 - PRESIDENCIA DE LA REPÚBLICA | D18: 6.902217107e+10 | E18: 67976353801 | F18: 92918780271 | G18: 6.992359403e+10 | H18: 5.466619262e+10 | I18: 5.240746054e+10 | J18: 5.088139577e+10 | K18: 0.7494960931 | L18: 0.5640136514 | M18: -1.661471053e+10 | N18: -0.2407155595 | O18: 0.009898455343
C19: 0202 - MINISTERIO DE INTERIOR Y POLICÍA | D19: 2.77113242e+10 | E19: 43276034668 | F19: 45367374879 | G19: 3.226525454e+10 | H19: 3.059040807e+10 | I19: 2.980536839e+10 | J19: 2.937378511e+10 | K19: 0.9237605224 | L19: 0.6569780259 | M19: 2094044192 | N19: 0.07556637051 | O19: 0.005629486813
C20: 0203 - MINISTERIO DE DEFENSA | D20: 2.233612806e+10 | E20: 33199958317 | F20: 35341482117 | G20: 2.411726e+10 | H20: 2.317679828e+10 | I20: 2.267491087e+10 | J20: 2.241214781e+10 | K20: 0.9401943204 | L20: 0.6415947921 | M20: 338782807.1 | N20: 0.01516748141 | O20: 0.004282722161
C21: 0204 - MINISTERIO DE RELACIONES EXTERIORES | D21: 6930859095 | E21: 10207451310 | F21: 9389461389 | G21: 5594653696 | H21: 5379640758 | I21: 5261573742 | J21: 5167576960 | K21: 0.9404645986 | L21: 0.5603701346 | M21: =I21-D21 -> -1669285352 | N21: -0.2408482599 | O21: 0.0009937793625
C22: 0205 - MINISTERIO DE HACIENDA | D22: 1.399690529e+10 | E22: 21532543437 | F22: 21857141529 | G22: 1.427506301e+10 | H22: 1.321429613e+10 | I22: 1.277350885e+10 | J22: 1.263949066e+10 | K22: 0.8948127828 | L22: 0.5844089373 | M22: -1223396436 | N22: -0.0874047806 | O22: 0.002412595567
C23: 0206 - MINISTERIO DE EDUCACIÓN | D23: 1.356825439e+11 | E23: 194510200000 | F23: 1.961591065e+11 | G23: 1.428976363e+11 | H23: 1.513117474e+11 | I23: 1.294867111e+11 | J23: 1.263079791e+11 | K23: 0.906150126 | L23: 0.6601106289 | M23: -6195832719 | N23: -0.04566418452 | O23: 0.02445679326
C24: 0207 - MINISTERIO DE SALUD PÚBLICA Y ASISTENCIA SOCIAL | D24: 6.737662913e+10 | E24: 107449061312 | F24: 1.483201739e+11 | G24: 9.22598064e+10 | H24: 9.970967659e+10 | I24: 9.862359069e+10 | J24: 9.627924319e+10 | K24: 1.068976779 | L24: 0.6649371295 | M24: 3.124696156e+10 | N24: 0.4637655811 | O24: 0.0186275236
C25: 0208 - MINISTERIO DE DEPORTES Y RECREACIÓN | D25: 1435249763 | E25: 2833726697 | F25: 3015092203 | G25: 1885125536 | H25: 1947076829 | I25: 1733559432 | J25: 1668288467 | K25: 0.9195989332 | L25: 0.5749606695 | M25: 298309668.5 | N25: 0.2078451264 | O25: 0.0003274259131
C26: 0209 - MINISTERIO DE TRABAJO | D26: 1586112664 | E26: 2031641613 | F26: 2073075623 | G26: 1457923365 | H26: 1311334405 | I26: 1269059709 | J26: 1261682320 | K26: 0.8704570761 | L26: 0.612162767 | M26: -317052954.4 | N26: -0.1998930856 | O26: 0.0002396935614
C27: 0210 - MINISTERIO DE AGRICULTURA | D27: 8362619744 | E27: 13835081458 | F27: 13689835123 | G27: 9728350877 | H27: 1.018228219e+10 | I27: 1.003163227e+10 | J27: 9966696429 | K27: 1.031175005 | L27: 0.7327796266 | M27: 1669012525 | N27: 0.1995801048 | O27: 0.001894723824
C28: 0211 - MINISTERIO DE OBRAS PÚBLICAS Y COMUNICACIONES | D28: 2.658795818e+10 | E28: 48788599383 | F28: 49209997443 | G28: 3.800257764e+10 | H28: 2.21829203e+10 | I28: 2.172849115e+10 | J28: 1.982538134e+10 | K28: 0.5717636144 | L28: 0.4415462767 | M28: -4859467026 | N28: -0.1827694701 | O28: 0.004103967204
C29: 0212 - MINISTERIO DE INDUSTRIA, COMERCIO Y MIPYMES (MICM) | D29: 4140772083 | E29: 7108358376 | F29: 13987866796 | G29: 9044046647 | H29: 5545322422 | I29: 5396408864 | J29: 4565063720 | K29: 0.5966807862 | L29: 0.3857921256 | M29: 1255636781 | N29: 0.3032373566 | O29: 0.001019246336
C30: 0213 - MINISTERIO DE TURISMO | D30: 4647384152 | E30: 5989263956 | F30: 6577911720 | G30: 4000722939 | H30: 2150686368 | I30: 2005551896 | J30: 1819875649 | K30: 0.5012973722 | L30: 0.3048918838 | M30: -2641832256 | N30: -0.5684557527 | O30: 0.0003787984702
C31: 0214 - PROCURADURÍA GENERAL DE LA REPÚBLICA | D31: 9143123280 | E31: 7005559301 | F31: 8912171241 | G31: 5893428252 | H31: 6673932113 | I31: 6673932113 | J31: 6673932113 | K31: 1.132436305 | L31: 0.748855911 | M31: -2469191166 | N31: -0.2700599227 | O31: 0.001260538448
C32: 0215 - MINISTERIO DE LA MUJER | D32: 415756874.4 | E32: 1090587821 | F32: 1166387821 | G32: 702362018 | H32: 721077800.6 | I32: 697279773.4 | J32: 690233916.9 | K32: 0.9927640669 | L32: 0.5978112604 | M32: 281522899.1 | N32: 0.6771334798 | O32: 0.0001316986671
C33: 0216 - MINISTERIO DE CULTURA | D33: 1663068762 | E33: 2587888533 | F33: 2998793205 | G33: 1812128183 | H33: 1969448377 | I33: 1852607200 | J33: 1818907080 | K33: 1.022337833 | L33: 0.6177842462 | M33: 189538437.9 | N33: 0.1139690927 | O33: 0.0003499110517
C34: 0217 - MINISTERIO DE LA JUVENTUD | D34: 554501076.6 | E34: 660711909 | F34: 684638478.7 | G34: 467320241.4 | H34: 483500371 | I34: 388376064.4 | J34: 373104561.8 | K34: 0.8310704952 | L34: 0.5672717449 | M34: -166125012.2 | N34: -0.2995936693 | O34: 7.335450126e-05
C35: 0218 - MINISTERIO DE MEDIO AMBIENTE Y RECURSOS NATURALES | D35: 8968636899 | E35: 12790477309 | F35: 14428729569 | G35: 1.164003533e+10 | H35: 7765432705 | I35: 7176711860 | J35: 6956768861 | K35: 0.6165541303 | L35: 0.49739042 | M35: -1791925039 | N35: -0.1997990396 | O35: 0.001355500937
C36: 0219 - MINISTERIO DE EDUCACIÓN SUPERIOR CIENCIA Y TECNOLOGÍA | D36: 9329863780 | E36: 15363014394 | F36: 1.547389861e+10 | G36: 1.064937688e+10 | H36: 9882706075 | I36: 9712707052 | J36: 9578395154 | K36: 0.912044635 | L36: 0.6276832552 | M36: 382843271.1 | N36: 0.04103417586 | O36: 0.001834486846
C37: 0220 - MINISTERIO DE ECONOMÍA, PLANIFICACIÓN Y DESARROLLO | D37: 1452636516 | E37: 2970299999 | F37: 2832170645 | G37: 2097526188 | H37: 1482884870 | I37: 1398452293 | J37: 1342030378 | K37: 0.6667150575 | L37: 0.493774023 | M37: -54184222.54 | N37: -0.03730060614 | O37: 0.0002641325764
C38: 0221 - MINISTERIO DE ADMINISTRACIÓN PÚBLICA | D38: 532227920.9 | E38: 1014051490 | F38: 1058116804 | G38: 642296002.4 | H38: 599588084.5 | I38: 546044655.6 | J38: 532274366.8 | K38: 0.8501448764 | L38: 0.5160532878 | M38: 13816734.63 | N38: 0.02596018376 | O38: 0.0001031341451
C39: 0222 - MINISTERIO DE ENERGIA Y MINAS | D39: 837876624.8 | E39: 1363034330 | F39: 2893172537 | G39: 2309099988 | H39: 1022144548 | I39: 982084951.2 | J39: 865182715.3 | K39: 0.4253107082 | L39: 0.3394491475 | M39: 144208326.5 | N39: 0.1721116477 | O39: 0.0001854912246
C40: PODER JUDICIAL | D40: =D41 -> 6464447485 | E40: =E41 -> 8737865213 | F40: 8768985415 | G40: =G41 -> 6553398909 | H40: 6541697509 | I40: 6541697509 | J40: 6541697509 | K40: 0.9982144531 | L40: 0.7460039217 | M40: 77250023.91 | N40: 0.01194998089 | O40: 0.001235562647
C41: 0301 - PODER JUDICIAL | D41: 6464447485 | E41: 8737865213 | F41: 8768985415 | G41: 6553398909 | H41: 6541697509 | I41: 6541697509 | J41: 6541697509 | K41: 0.9982144531 | L41: 0.7460039217 | M41: 77250023.91 | N41: 0.01194998089 | O41: 0.001235562647
C42: ORGANISMOS ESPECIALES | D42: =SUM(D43:D47) -> 1.508446046e+10 | E42: =SUM(E43:E47) -> 7427621816 | F42: 7427621816 | G42: =SUM(G43:G47) -> 5565366742 | H42: 5660259402 | I42: 5660259402 | J42: 5650264402 | K42: 1.017050567 | L42: 0.7620554119 | M42: -9424201060 | N42: -0.6247622236 | O42: 0.001069081088
C43: 0401 - JUNTA CENTRAL ELECTORAL | D43: 1.28973183e+10 | E43: 4511291957 | F43: 4511291957 | G43: 3383468968 | H43: 3383368962 | I43: 3383368962 | J43: 3383368962 | K43: 0.9999704427 | L43: 0.749977832 | M43: -9513949336 | N43: -0.7376688019 | O43: 0.0006390335695
C44: 0402 - CÁMARA DE CUENTAS | D44: 730627046.1 | E44: 974248087 | F44: 974248087 | G44: 730686065.2 | H44: 760139149.4 | I44: 760139149.4 | J44: 760139149.4 | K44: 1.040308808 | L44: 0.7802316058 | M44: 29512103.25 | N44: 0.04039284257 | O44: 0.0001435712272
C45: 0403 - TRIBUNAL CONSTITUCIONAL | D45: 881528877.1 | E45: 1175371875 | F45: 1175371875 | G45: 881528906.2 | H45: 944528751 | I45: 944528751 | J45: 944528751 | K45: 1.071466567 | L45: 0.8035999253 | M45: 62999873.91 | N45: 0.07146660257 | O45: 0.0001783978
C46: 0404 - DEFENSOR DEL PUEBLO | D46: 123950000 | E46: 165328228 | F46: 165328228 | G46: 118646551 | H46: 121186288.7 | I46: 121186288.7 | J46: 111191289 | K46: 1.021405913 | L46: 0.7330042192 | M46: -2763711.32 | N46: -0.02229698524 | O46: 2.288905157e-05
C47: 0405 - TRIBUNAL SUPERIOR ELECTORAL ( TSE) | D47: 451036242 | E47: 601381669 | F47: 601381669 | G47: 451036251.7 | H47: 451036251.6 | I47: 451036251.6 | J47: 451036251.6 | K47: 0.9999999998 | L47: 0.7499999998 | M47: 9.620000184 | N47: 2.132866339e-08 | O47: 8.518943961e-05
C48: OTROS | D48: =SUM(D49:D50) -> 1.720645922e+11 | E48: =SUM(E49:E50) -> 263810694626 | F48: 264219576737 | G48: =SUM(G49:G50) -> 1.800580788e+11 | H48: 1.753097659e+11 | I48: 1.75083567e+11 | J48: 1.646233586e+11 | K48: 0.9723727375 | L48: 0.6626441886 | M48: 3018974822 | N48: 0.0175455902 | O48: 0.03306889614
C49: 0998 - ADMINISTRACION DE DEUDA PUBLICA Y ACTIVOS FINANCIEROS | D49: 1.058697642e+11 | E49: 184836130000 | F49: 157865454286 | G49: 1.280415507e+11 | H49: 1.208378388e+11 | I49: 1.208073657e+11 | J49: 1.106197197e+11 | K49: 0.9435012701 | L49: 0.7652552374 | M49: 1.493760144e+10 | N49: 0.1410941221 | O49: 0.02281748251
C50: 0999 - ADMINISTRACION DE OBLIGACIONES DEL TESORO NACIONAL | D50: 6.619482796e+10 | E50: 78974564626 | F50: 106354122451 | G50: 5.201652816e+10 | H50: 5.447192718e+10 | I50: 5.427620134e+10 | J50: 5.400363884e+10 | K50: 1.043441446 | L50: 0.5103347204 | M50: -1.191862662e+10 | N50: -0.1800537442 | O50: 0.01025141363
C51: TOTAL | D51: =D14+D17+D40+D42+D48 -> 6.225972486e+11 | E51: 891378800905 | F51: 9.765902822e+11 | G51: 6.797064724e+11 | H51: 6.4534486e+11 | I51: 6.157755872e+11 | J51: 5.936787959e+11 | K51: 0.9059433921 | L51: 0.6305362632 | M51: -6821661354 | N51: -0.01095678044 | O51: 0.1163045698
C52: Notas: *Cifras preliminares
C53: Fecha de registro al 15 de Octubre 2021 / Fecha de imputación al 30 de septiembre 2021
C54: Se utilizó el PIB del Panorama Macroeconómico actualizado al 26 de agosto 2021, elaborado por el Ministerio de Economía Planificación y Desarrollo
C55: Fuente: Datos del SIGEF

Sheet Tabla 7
A1: MINISTERIO DE HACIENDA
A2: DIRECCIÓN GENERAL DE PRESUPUESTO
A3: DIRECCIÓN DE ESTUDIOS ECONÓMICOS Y SEGUIMIENTO FINANCIERO
C8: Tabla 7. Gastos de Gobierno Central por Clasificación Institucional Trimestral
C9: Valores en millones RD$
C10: DETALLE | D10: 1ER TRIMESTRE | E10: 2DO TRIMESTRE | F10: 3ER TRIMESTRE | I10: DEVENGADO ACUMULADO
D13: DEVENGADO | F13: PROGRAMADO | G13: DEVENGADO | H13: EJECUTADO VS. PROGRAMADO
D14: 1 | E14: 2 | F14: 3 | G14: 4 | H14: 5 = 4/3 | I14: 6 = 1+2+4
C15: PODER LEGISLATIVO | D15: 1954679925 | E15: 1954679926 | F15: =SUM(F16:F17) -> 1954679959 | G15: 1954679930 | H15: =G15/F15 -> 0.9999999851 | I15: =D15+E15+G15 -> 5864039781
C16: 0101 - SENADO DE LA REPÚBLICA | D16: 658944768 | E16: 658944768 | F16: 658944781.2 | G16: 658944772.4 | H16: =G16/F16 -> 0.9999999867 | I16: =D16+E16+G16 -> 1976834308
C17: 0102 - CÁMARA DE DIPUTADOS | D17: 1295735157 | E17: 1295735158 | F17: 1295735178 | G17: 1295735158 | H17: 0.9999999842 | I17: 3887205473
C18: PODER EJECUTIVO | D18: 1.253127001e+11 | E18: 1.446837639e+11 | F18: =SUM(F19:F40) -> 1.812270425e+11 | G18: 1.526300194e+11 | H18: 0.842203334 | I18: 422626483431
C19: 0201 - PRESIDENCIA DE LA REPÚBLICA | D19: 1.889302133e+10 | E19: 1.733482996e+10 | F19: 2.501549878e+10 | G19: 1.617960925e+10 | H19: 0.6467833957 | I19: 5.240746054e+10
C20: 0202 - MINISTERIO DE INTERIOR Y POLICÍA | D20: 9551088578 | E20: 9904020703 | F20: 1.149933098e+10 | G20: 1.035025911e+10 | H20: 0.9000748937 | I20: 2.980536839e+10
C21: 0203 - MINISTERIO DE DEFENSA | D21: 7053603962 | E21: 7368970255 | F21: 8816711538 | G21: 8252336655 | H21: 0.9359880516 | I21: 2.267491087e+10
C22: 0204 - MINISTERIO DE RELACIONES EXTERIORES | D22: 1645080587 | E22: 1679607800 | F22: 1548063558 | G22: 1936885356 | H22: 1.251166559 | I22: 5261573742
C23: 0205 - MINISTERIO DE HACIENDA | D23: 4055919205 | E23: 4327645380 | F23: 4697070547 | G23: 4389944268 | H23: 0.9346132285 | I23: 1.277350885e+10
C24: 0206 - MINISTERIO DE EDUCACIÓN | D24: 3.969060762e+10 | E24: 4.427337693e+10 | F24: 4.863945449e+10 | G24: 4.552272658e+10 | H24: 0.9359218161 | I24: 1.294867111e+11
C25: 0207 - MINISTERIO DE SALUD PÚBLICA Y ASISTENCIA SOCIAL | D25: 2.631930942e+10 | E25: 3.636801145e+10 | F25: 3.810850964e+10 | G25: 3.593626974e+10 | H25: 0.9429985608 | I25: 9.862359062e+10
C26: 0208 - MINISTERIO DE DEPORTES Y RECREACIÓN | D26: 388451935.9 | E26: 564634292.8 | F26: 627681487 | G26: 780473203.1 | H26: 1.243422372 | I26: 1733559432
C27: 0209 - MINISTERIO DE TRABAJO | D27: 385963025.4 | E27: 403733727 | F27: 465089061.5 | G27: 479362957 | H27: 1.030690671 | I27: 1269059709
C28: 0210 - MINISTERIO DE AGRICULTURA | D28: 2742745530 | E28: 3458263559 | F28: 3237005500 | G28: 3830623180 | H28: 1.183384823 | I28: 1.003163227e+10
C29: 0211 - MINISTERIO DE OBRAS PÚBLICAS Y COMUNICACIONES | D29: 4315646893 | E29: 7141631762 | F29: 1.803390325e+10 | G29: 1.027121249e+10 | H29: 0.5695501608 | I29: 2.172849115e+10
C30: 0212 - MINISTERIO DE INDUSTRIA, COMERCIO Y MIPYMES (MICM) | D30: 1196435413 | E30: 1317463361 | F30: 5579344921 | G30: 2882510089 | H30: 0.5166395214 | I30: 5396408864
C31: 0213 - MINISTERIO DE TURISMO | D31: 733230937 | E31: 531609415.6 | F31: 1264692364 | G31: 740711543.5 | H31: 0.5856851553 | I31: 2005551896
C32: 0214 - PROCURADURÍA GENERAL DE LA REPÚBLICA | D32: 2171511883 | E32: 2024681316 | F32: 2078448678 | G32: 2477738914 | H32: 1.19210974 | I32: 6673932113
C33: 0215 - MINISTERIO DE LA MUJER | D33: 234821308.8 | E33: 231098275.4 | F33: 227806343 | G33: 231360189.3 | H33: 1.015600296 | I33: 697279773.4
C34: 0216 - MINISTERIO DE CULTURA | D34: 581831448.6 | E34: 634037056.3 | F34: 590862606.5 | G34: 636738694.9 | H34: 1.077642565 | I34: 1852607200
C35: 0217 - MINISTERIO DE LA JUVENTUD | D35: 120285363.7 | E35: 113418964.1 | F35: 153775416.1 | G35: 154671736.7 | H35: 1.005828764 | I35: 388376064.4
C36: 0218 - MINISTERIO DE MEDIO AMBIENTE Y RECURSOS NATURALES | D36: 1307111917 | E36: 2820288775 | F36: 4405858600 | G36: 3049311169 | H36: 0.6921037296 | I36: 7176711860
C37: 0219 - MINISTERIO DE EDUCACIÓN SUPERIOR CIENCIA Y TECNOLOGÍA | D37: 3081777693 | E37: 3301321017 | F37: 3549680006 | G37: 3329608342 | H37: 0.9380023936 | I37: 9712707052
C38: 0220 - MINISTERIO DE ECONOMÍA, PLANIFICACIÓN Y DESARROLLO | D38: 455222043 | E38: 391731796.1 | F38: 837186767.9 | G38: 551498454.1 | H38: 0.6587519956 | I38: 1398452293
C39: 0221 - MINISTERIO DE ADMINISTRACIÓN PÚBLICA | D39: 139809196.7 | E39: 189381171 | F39: 182480469.5 | G39: 216854287.8 | H39: 1.188369848 | I39: 546044655.5
C40: 0222 - MINISTERIO DE ENERGIA Y MINAS | D40: 249224775.4 | E40: 304006957.8 | F40: 1668587524 | G40: 428853218.1 | H40: 0.2570157166 | I40: 982084951.2
C41: PODER JUDICIAL | D41: 2180565836 | E41: 2180565836 | F41: =F42 -> 2184466303 | G41: 2180565836 | H41: 0.9982144532 | I41: 6541697509
C42: 0301 - PODER JUDICIAL | D42: 2180565836 | E42: 2180565836 | F42: 2184466303 | G42: 2180565836 | H42: 0.9982144532 | I42: 6541697509
C43: ORGANISMOS ESPECIALES | D43: 1549072730 | E43: 2166579459 | F43: =SUM(F44:F48) -> 2010757879 | G43: 1944607213 | H43: 0.9671016255 | I43: 5660259402
C44: 0401 - JUNTA CENTRAL ELECTORAL | D44: 812722987.2 | E44: 1442922987 | F44: 1285372989 | G44: 1127722987 | H44: 0.8773507741 | I44: 3383368962
C45: 0402 - CÁMARA DE CUENTAS | D45: 240519328.1 | E45: 243329319 | F45: 243562021.7 | G45: 276290502.2 | H45: 1.134374318 | I45: 760139149.4
C46: 0403 - TRIBUNAL CONSTITUCIONAL | D46: 293842917 | E46: 293842917 | F46: 293842968.7 | G46: 356842917 | H46: 1.214400054 | I46: 944528751
C47: 0404 - DEFENSOR DEL PUEBLO | D47: 51642080 | E47: 36138819 | F47: 37634481.99 | G47: 33405389.68 | H47: 0.8876271949 | I47: 121186288.7
C48: 0405 - TRIBUNAL SUPERIOR ELECTORAL ( TSE) | D48: 150345417.2 | E48: 150345417.2 | F48: 150345417.2 | G48: 150345417.2 | H48: 0.9999999998 | I48: 451036251.6
C49: OTROS | D49: 5.05648935e+10 | E49: 7.072604484e+10 | F49: =SUM(F50:F51) -> 4.676401652e+10 | G49: 5.379262869e+10 | H49: 1.150299583 | I49: 1.75083567e+11
C50: 0998 - ADMINISTRACION DE DEUDA PUBLICA Y ACTIVOS FINANCIEROS | D50: 3.464080775e+10 | E50: 5.366379879e+10 | F50: 3.11635692e+10 | G50: 3.250275915e+10 | H50: 1.042972932 | I50: 1.208073657e+11
C51: 0999 - ADMINISTRACION DE OBLIGACIONES DEL TESORO NACIONAL | D51: 1.592408575e+10 | E51: 1.706224605e+10 | F51: 1.560044732e+10 | G51: 2.128986954e+10 | H51: 1.364696095 | I51: 5.427620134e+10
C52: TOTAL | D52: 1.815619121e+11 | E52: 2.21711634e+11 | F52: =F15+F18+F41+F43+F49 -> 2.341409632e+11 | G52: 2.125025011e+11 | H52: 0.9075836121 | I52: 6.157760472e+11
C53: Notas: *Cifras preliminares
C54: Fecha de registro al 15 de Octubre 2021 / Fecha de imputación al 30 de septiembre 2021
C55: Fuente: Datos del SIGEF

Sheet Tabla 8
B1: MINISTERIO DE HACIENDA
B2: DIRECCIÓN GENERAL DE PRESUPUESTO
B3: DIRECCIÓN DE ESTUDIOS ECONÓMICOS Y SEGUIMIENTO FINANCIERO
C6: Tabla 8. Programación y Ejecución de Metas Físicas - Ministerio de Educación
C7: Enero-Septiembre 2021
C8: PROGRAMA | D8: PRODUCTOS | E8: UNIDAD DE MEDIDA | F8: META PROGRAMADA | G8: META LOGRADA | H8: % CUMPLIMIENTO EJECUCIÓN FISICA | I8: DEVENGADO (RD$ MILLONES)
C10: Formación y desarrollo de la carrera docente | D10: Bachilleres de 16 a 25 años acceden a programas de becas de formación docentes de Excelencia nivel de grado | E10: Cantidad de estudiantes becados con el programa de formación docente de excelencia a nivel de grado | F10: 700 | G10: 410 | H10: =G10/F10 -> 0.5857142857 | I10: 212625197.7
D11: Bachilleres menores de 25 años cursando en el programa de Formación Docente de Excelencia a nivel de grado. | E11: Cantidad de estudiantes beneficiados con el programa de Formación Docente de Excelencia a nivel de grado | F11: 715 | G11: 451 | H11: =G11/F11 -> 0.6307692308 | I11: 563163407
D12: Comunidades aledañas a los recintos participan de los programas de extensión | E12: Cantidad de comunitarios beneficiados de los programas de extensión | F12: 1200 | G12: 1564 | H12: 1.303333333 | I12: 5631983.8
C13: Desarrollo infantil para niños y niñas de 0 a 4 años y 11 meses | D13: Familias reciben servicios de acompañamiento conforme al manual establecido | E13: Cantidad de familias de niños y niñas en CAFI que reciben al menos el 70% de las visitas programadas en el período de un año | F13: 128815 | G13: 50079 | H13: 0.3887668362 | I13: 928024507.5
D14: Niños y niñas de 0 a 4 años y 11 meses con seguimiento de salud y nutrición según manual | E14: Número de niños y niñas en los CAIPI que reciben alimentación de acuerdo al requerimiento calórico y nutricional de su edad | F14: 29602 | G14: 630 | H14: 0.02128234579 | I14: 26197820
D15: Niños y niñas de 0 a 4 años y 11 meses reciben atención de acuerdo a su condición | E15: Número de niños y niñas con señales de alertas en el desarrollo que son atendidos | F15: 700 | G15: 1072 | H15: 1.531428571 | I15: 168308262.7
D16: Niños y niñas de 0 a 4 años y 11 meses reciben servicio educativo del nivel inicial | E16: Cantidad de niños y niñas de 0 a 4 años y 11 meses que reciben servicios educativos | F16: 74781 | G16: 75715 | H16: 1.012489804 | I16: 922349717.2
C17: Gestión y coordinación de los servicios de bienestar magisterial | D17: Pensionados y jubilados del sistema educativo reciben servicios de pensiones y jubilaciones | E17: No. Personas jubiladas y pensionadas con servicios | F17: 32737 | G17: 32632 | H17: 0.99679262 | I17: 8954709269
C18: Instalaciones escolares segura, inclusivas y sostenibles | D18: Construcción y ampliación de planteles escolares (Fase 2-sorteo 3 ) | E18: Número de aulas | F18: 1125 | G18: 141 | H18: 0.1253333333 | I18: 42239835.71
D19: Construcción y equipamiento de estancias infantiles | E19: Número de estancias | F19: 15 | G19: 2 | H19: 0.1333333333 | I19: 34436119.31
C20: Gestión y coordinación de la cooperación internacional educativa | D20: Sistema educativo recibe los beneficios de la gestión de proyectos de cooperación internacional para la educación pre-universitaria | E20: Número de proyectos firmados | F20: 5 | G20: 0 | H20: 0 | I20: 34436120.31
C21: Servicios técnicos pedagógicos | D21: Autoridades educativas y sociedad civil reciben las evaluaciones e investigaciones para la mejora de la calidad educativa pre-universitaria | E21: Cantidad de evaluaciones e investigaciones socializadas | F21: 12 | G21: 12 | H21: 1 | I21: 128777627.4
D22: Estudiantes y docentes reciben servicios de educación física y recreativa escolar | E22: Cantidad de estudiantes impactados por la practica de actividad física y deporte escolar | F22: 72000 | G22: 0 | H22: 0 | I22: 195955472.3
C23: TOTAL DEVENGADO | I23: =SUM(I10:I22) -> 1.221685534e+10
C24: Notas: *Cifras preliminares
C25: Solo fueron considerados productos con metas físicas programadas y/o ejecutadas
C26: Fecha de Registro al 18 de octubre
C27: Fuente: Datos del SIGEF

Sheet Tabla 9
B1: MINISTERIO DE HACIENDA
B2: DIRECCIÓN GENERAL DE PRESUPUESTO
B3: DIRECCIÓN DE ESTUDIOS ECONÓMICOS Y SEGUIMIENTO FINANCIERO
C8: Tabla 9. Programación y Ejecución de Metas Físicas - Ministerio de Salud Pública y Asistencia Social
C10: Enero-Septiembre 2021
C11: PROGRAMA | D11: PRODUCTOS | E11: UNIDAD DE MEDIDA | F11: META PROGRAMADA | G11: META LOGRADA | H11: % CUMPLIMIENTO EJECUCIÓN FISICA | I11: DEVENGADO (RD$ MILLONES)
C13: Asistencia social | D13: Personas de escasos recursos que reciben ayudas económicas y en especie | E13: No. de ayudas economicas y en especie otorgadas | F13: 54288 | G13: 51570 | H13: =G13/F13 -> 0.949933687 | I13: 89276648.21
C14: Atención a enfermedades de alto costo | D14: Beneficiarios que reciben ayudas médicas directas | E14: No. de beneficiarios con ayuda médica directa | F14: 1125 | G14: 814 | H14: 0.7235555556 | I14: 35123531.43
D15: Beneficiarios que reciben medicamentos de alto costo | E15: No. de beneficiarios que reciben ayudas médicas directa | F15: 9624 | G15: 28741 | H15: 2.986388196 | I15: 812961394.5
C16: Control de enfermedades prevenibles por vacunas | D16: Mujeres y niñas de 9 años cubiertas con vacunas de dT-A y HPV respectivamente | E16: No. de mujeres y niñas con vacuna de DT-A y HPV aplicada | F16: 932178 | G16: 749545 | H16: 0.8040792638 | I16: 17480461.96
D17: Niños/as de 0 a 5 años vacunados (dosis aplicadas) según biológicos de esquema de vacunación oficial del MSP | E17: Número de niños/as con esquema de vacunación aplicada | F17: 3949830 | G17: 3640987 | H17: 0.9218085335 | I17: 431831467
D18: Personas viajando hacia zonas endémicas de fiebre amarilla (FA) y que se vacunan | E18: No. de personas viajeras con vacuna para fiebre amarilla aplicada | F18: 10958 | G18: 5085 | H18: 0.4640445337 | I18: 0
D19: Población de riesgo con vacunas de influenza y antirrábica humana | E19: No. de personas en riesgo con vacunas de influenza y antirrábica humana | F19: 151935 | G19: 268442 | H19: 1.766821338 | I19: 7949099.79
C20: Prevención y atención de la tuberculosis | D20: Pacientes TB con factores de baja adherencia reciben soporte nutricional en provincias priorizadas | E20: Número de pacientes con factores de baja adherencia reciben soporte nutricional | F20: 750 | G20: 0 | H20: 0 | I20: 0
D21: Personas con coinfección TB y VIH diagnosticada con acceso a medicamentos oportunamente | E21: No. de pacientes coinfectados TB VIH diagnósticados que reciben tratamiento antituberculosis | F21: 696 | G21: 438 | H21: 0.6293103448 | I21: 0
D22: Personas contacto de casos TB investigada, evaluada y referida para tratamiento preventivo (general, migrantes y personas privadas de libertad) | E22: No. de personas contacto de casos TB con tratamiento preventivo | F22: 10638 | G22: 2280 | H22: 0.2143260011 | I22: 8777928.51
D23: Personas diagnosticadas con TB y TB drogo-resistente con acceso a medicamentos oportunamente | E23: No. de personas diagnosticadas con TB y TB DR que reciben tratamiento | F23: 3300 | G23: 1898 | H23: 0.5751515152 | I23: 32316609.67
D24: Personas sintomáticos respiratorios detectados | E24: No. de casos de TB detectados en la red de servicios | F24: 81000 | G24: 28227 | H24: 0.3484814815 | I24: 38637128.4
C25: Prevención, diagnóstico y tratamiento VIH/SIDA | D25: Personal de salud monitorea el cumplimiento de los lineamientos establecidos en la guía de adherencia | E25: Número de informe | F25: 2 | G25: 0 | H25: 0 | I25: 98525.44
D26: Personas VIH+ que acceden a servicios de atención integral | E26: No. de casos VIH tratados de acuerdo a protocolos | F26: 64329 | G26: 41270 | H26: 0.6415458036 | I26: 5000000
D27: Población recibe información, educación para cambios de conducta | E27: Número de campañas | F27: 12 | G27: 9 | H27: 0.75 | I27: 0
D28: Sistema de salud recibe los beneficios del monitoreo y evaluación de los procesos de prevención del VIH y SIDA | E28: Número de informes de monitoreo y evaluación emitidos | F28: 9 | G28: 9 | H28: 1 | I28: 124653317.5
C29: Provisión de medicamentos, insumos sanitarios y reactivos de laboratorio | D29: Población vulnerable dispensada con medicamentos oportuno y bajo costo a través de las farmacias del pueblo | E29: Total de medicamentos dispensado a través de las farmacias del pueblo | F29: 587380624 | G29: 516282573 | H29: 0.8789574458 | I29: 666598979.4
D30: Red pública de prestación de servicios de salud abastecido de medicamentos, insumos sanitarios y reactivos de laboratorio | E30: Número de establecimientos abastecido de medicamentos | F30: 1980 | G30: 1949 | H30: 0.9843434343 | I30: 2572727783
C31: Rectoría, dirección y coordinación del Sistema Nacional de Salud | D31: Aseguramiento de la disponibilidad de los productos sanguíneos de manera oportuna según normativas | E31: No. de unidades de sangres disponible según normativa | F31: 14155 | G31: 7 | H31: 0.0004945249029 | I31: 1955553.59
C32: Salud colectiva | D32: Hogares y comunidades con estrategia integral de prevención y control de las arbovirosis implementada | E32: No. de hogares y comunidades con intervenciones de información educación y comunicación para prevención arbovirosis | F32: 850000 | G32: 744273 | H32: 0.8756152941 | I32: 17527172
D33: Hogares y comunidades prevenidos contra zoonosis | E33: No. de jornadas de vacunación en caninos y felinos para prevención y control de la rabia | F33: 1 | G33: 0 | H33: 0 | I33: 473891.84
D34: Personas diagnosticadas y tratadas de acuerdo normativas de malaria | E34: No. de personas alcanzadas con intervenciones contra la malaria | F34: 1050 | G34: 212 | H34: 0.2019047619 | I34: 7400240.29
C35: Salud materno neonatal | D35: Aseguramiento de la disponibilidad de métodos de planificación familiar en establecimientos según normativas | E35: No. de establecimientos con métodos de planificación familiar disponible según normativas | F35: 1200 | G35: 1424 | H35: 1.186666667 | I35: 543971.94
D36: Gestantes, puérperas y niños menores de 1 año reciben acompañamiento | E36: Número de gestantes, puerperas y niños menores de 1 año reciben acompañamiento | F36: 10000 | G36: 4493 | H36: 0.4493 | I36: 10519556.71
D37: Población en edad fértil informada y empoderada recibe paquete completo de promoción de salud sexual y reproductiva | E37: No. de personas informadas y empoderadas (promoción de mujeres en edad fértil que acceden a servicios de salud sexual y reproductiva) | F37: 225000 | G37: 122204 | H37: 0.5431288889 | I37: 2634310.32
C38: TOTAL DEVENGADO | I38: =SUM(I13:I37) -> 4884487572
C39: Notas: *Cifras preliminares
C40: Solo fueron considerados productos con metas físicas programadas y/o ejecutadas
C41: Fecha de Registro al 18 de octubre
C42: Fuente: Datos del SIGEF

Sheet Tabla 10
A1: MINISTERIO DE HACIENDA
A2: DIRECCIÓN GENERAL DE PRESUPUESTO
A3: DIRECCIÓN DE ESTUDIOS ECONÓMICOS Y SEGUIMIENTO FINANCIERO
B7: Tabla 10. Programación y Ejecución de Metas Físicas - Presidencia de la República
B9: Enero-Septiembre 2021
B10: PROGRAMA | C10: PRODUCTOS | D10: UNIDAD DE MEDIDA | E10: META PROGRAMADA | F10: META LOGRADA | G10: % CUMPLIMIENTO EJECUCIÓN FISICA | H10: DEVENGADO (RD$ MILLONES)
B12: Asistencia social integral | C12: Familias vulnerables reciben apoyo social integral | D12: No. de familias beneficiadas | E12: 315000 | F12: 450971 | G12: =F12/E12 -> 1.431653968 | H12: 643831670.9
C13: Personas vulnerables reciben raciones alimenticias | D13: No. de personas beneficiadas | E13: 429127 | F13: 438197 | G13: 1.021135934 | H13: 833151188.6
B14: Atención, prevención de desastres | C14: Ciudadanos reciben alertas de prevención para la mitigación y reducción de riesgos ante eventos de desastres naturales | D14: Cantidad de alertas emitidas para reducción de riesgos | E14: 35 | F14: 41 | G14: 1.171428571 | H14: 69593434.56
B15: Control fiscal | C15: Asesoría y capacitación en el fortalecimiento del control interno | D15: Cantidad de instituciones asesoradas y capacitadas | E15: 115 | F15: 287 | G15: 2.495652174 | H15: 20716643.07
C16: Instituciones públicas con contrato registrado conforme a lo establecido en la Ley 10 - 07 del Sistema Nacional de Control Interno | D16: Cantidad de contratos registrados | E16: 44000 | F16: 53358 | G16: 1.212681818 | H16: 16524691.84
C17: Instituciones públicas reciben servicios de auditoría interna | D17: Número de instituciones con auditoría interna realizada | E17: 80 | F17: 48 | G17: 0.6 | H17: 100795405.3
C18: Órdenes de pagos autorizadas conforme a la comprobación del cumplimiento del control previo de las normas vigentes | D18: Cantidad de órdenes de pagos autorizadas | E18: 163867 | F18: 198449 | G18: 1.211037 | H18: 542904997
B19: Coordinación y fomento de las actividades culturales | C19: Sociedad dominicana accede a eventos y festejos en conmemoración de jornadas patrióticas | D19: Cantidad de eventos y festejos patrios realizados | E19: 39 | F19: 49 | G19: 1.256410256 | H19: 26924649.83
B20: Desarrollo integral y protección al adulto mayor | C20: Adultos mayores reciben atención integral | D20: Cantidad de adultos mayores beneficiados | E20: 186348 | F20: 1348722 | G20: 7.237652135 | H20: 313378427.8
C21: Adultos mayores reciben atención y protección integral en centros modelos, según el método SECARE | D21: Cantidad de adultos mayores que reciben servicios | E21: 831 | F21: 831 | G21: 1 | H21: 28753641.91
C22: Adultos mayores reciben atención y protección integral permanente, según el método SECARE | D22: Cantidad de adultos mayores que reciben servicios | E22: 1161 | F22: 1090 | G22: 0.9388458226 | H22: 67517359.9
B23: Desarrollo social comunitario | C23: Comunidades de la zona fronteriza reciben asistencia social integral | D23: No. de comunidades de la zona fronteriza beneficiadas | E23: 150 | F23: 261 | G23: 1.74 | H23: 159490664.8
C24: Comunidades de zonas urbanas y rurales reciben asistencia social focalizada | D24: No. familias beneficiadas | E24: 44536 | F24: 38292 | G24: 0.8597988144 | H24: 410830143.8
C25: Comunidades en condición de pobreza reciben beneficios sociales para mejorar la condición de vida | D25: No. de familias beneficiadas | E25: 3193 | F25: 2548 | G25: 0.7979956154 | H25: 58913703.39
C26: Plan de desarrollo comunitario sostenible | D26: Número de comunidades beneficiadas | E26: 463 | F26: 554 | G26: 1.196544276 | H26: 157604649.3
B27: Desarrollo y promoción de la inclusión social, cultural y productiva | C27: Población pobre y vulnerable recibe apoyo integral para el desarrollo de capacidades sociales, culturales y productivas. | D27: Cantidad de personas beneficiadas | E27: 12725 | F27: 13854 | G27: 1.088722986 | H27: 263785359.8
B28: Dirección de Comunicación y Publicidad | C28: Sociedad y medios reciben servicios de comunicación gubernamental eficiente y oportuna | D28: Cantidad de acciones gubernamentales difundidas | E28: 15184 | F28: 15389 | G28: 1.013501054 | H28: 1037907082
B29: Fomento del sector inmobiliario del Estado | C29: Construcción masiva de viviendas de bajo costo, bajo alianza pública-privada, impulsadas | D29: Cantidad de metros cuadrados urbanizados | E29: 200000 | F29: 0 | G29: 0 | H29: 43150557.46
C30: Gestión de titulación de terrenos del Estado | D30: Cantidad de títulos gestionados | E30: 5000 | F30: 7360 | G30: 1.472 | H30: 76135383.79
B31: Formulación de políticas para la mitigación y adaptación al cambio climático | C31: Instituciones públicas y privadas reciben apoyo técnico para iniciativas de mitigación y adaptación al cambio climático | D31: Número de Iniciativas asistidas | E31: 19 | F31: 38 | G31: 2 | H31: 42363472
B32: Gestión integrada del control y reducción de la demanda de drogas y administración de bienes incautados | C32: Población participa en intervenciones de prevención y disminución del consumo de drogas | D32: Cantidad de personas intervenidas/sensibilizadas | E32: 12800 | F32: 10995 | G32: 0.858984375 | H32: 119786410.8
B33: Programación e implementación del gobierno electrónico y atención ciudadana. | C33: Ciudadanos reciben información de los servicios de las instituciones del Estado | D33: Cantidad de personas atendidas | E33: 645671 | F33: 800675 | G33: 1.240066535 | H33: 95357539.4
C34: Instituciones públicas reciben asesorías técnicas para la implementación y seguimiento del Gobierno Electrónico | D34: Cantidad de instituciones con GE implementada | E34: 225 | F34: 162 | G34: 0.72 | H34: 119145308
B35: Promoción del desarrollo y fortalecimiento del sector marítimo y marino nacional | C35: Proveer al Estado Dominicano las herramientas técnicas, científicas y jurídicas para lograr una correcta administración de sus recursos oceánicos. | D35: Informes técnicos elaborados | E35: 6 | F35: 6 | G35: 1 | H35: 45373180.03
B36: Promoción y fomento de la ética en el sector público | C36: Servidores públicos que participan en actividades para el desarrollo y fomento en temas de ética y transparencia gubernamental | D36: Número de actividades realizadas | E36: 54 | F36: 17 | G36: 0.3148148148 | H36: 111688260.5
B37: Protección social | C37: Encuesta de pobreza multidimensional | D37: Cantidad de muestra efectiva | E37: 30537 | F37: 30537 | G37: 1 | H37: 42708071.85
C38: Gestión de pago subsidios sociales | D38: Cantidad de nóminas tramitadas | E38: 803784 | F38: 838300 | G38: 1.042941885 | H38: 262498602.4
C39: Gestión del programa de transferencias condicionadas y subsidios focalizados | D39: Cantidad de familias que se le verifican sus corresponsabilidades de salud y educación | E39: 798844 | F39: 754902 | G39: 0.9449930149 | H39: 461709937.8
C40: Hogares en situación de pobreza reciben apoyo a través de subsidios sociales | D40: Hogares en situación de pobreza reciben subsidios sociales | E40: 2878893 | F40: 4038669 | G40: 1.402854847 | H40: 29568076359
C41: Personas vulnerables reciben apoyo económico a través de los subsidios sociales | D41: No. de personas que reciben subsidios sociales | E41: 442317 | F41: 402277 | G41: 0.9094766875 | H41: 807764701.3
B42: Servicio de comunicación y análisis de información estratégica | C42: Autoridades reciben informes de análisis de información estratégica de medios de comunicación y estudios de campo | D42: Informe redactado según lineamientos y en el tiempo establecido | E42: 2028 | F42: 2141 | G42: 1.055719921 | H42: 94882008.52
B43: Servicio integral de emergencias | C43: Ciudadanos reciben atención de emergencias | D43: Cantidad de emergencias atendidas | E43: 542488 | F43: 530049 | G43: 0.9770704605 | H43: 893302489.5
B44: TOTAL DEVENGADO | H44: =SUM(H12:H43) -> 3.7536566e+10
B45: Notas: *Cifras preliminares
B46: Solo fueron considerados productos con metas físicas programadas y/o ejecutadas
B47: Fecha de Registro al 18 de octubre
B48: Fuente:Datos del SIGEF

Sheet Tabla 11
B1: MINISTERIO DE HACIENDA
B2: DIRECCIÓN GENERAL DE PRESUPUESTO
B3: DIRECCIÓN DE ESTUDIOS ECONÓMICOS Y SEGUIMIENTO FINANCIERO
C7: Tabla 11. Programación y Ejecución de Metas Físicas - Ministerio de Interior y Policía
C9: Enero-Septiembre 2021
C10: PROGRAMA | D10: PRODUCTOS | E10: UNIDAD DE MEDIDA | F10: META PROGRAMADA | G10: META LOGRADA | H10: % CUMPLIMIENTO EJECUCIÓN FISICA | I10: DEVENGADO (RD$ MILLONES)
C12: Asistencia y prevención para seguridad ciudadana | D12: Ciudadanos expuestos a violencia, crímenes y delitos que participan en las actividades de prevención | E12: Cantidad de ciudadanos beneficiados por las actividades de prevención | F12: 15408 | G12: 17167 | H12: =G12/F12 -> 1.114161475 | I12: 39301507.06
D13: Negocios controlados en cumplimiento de horario de expendio de bebidas alcohólicas | E13: Cantidad de negocios de expendio de bebidas alcohólicas controlados (inspeccionados) | F13: 19600 | G13: 36059 | H13: =G13/F13 -> 1.839744898 | I13: 75953367.33
D14: Negocios que comercializan armas de fuego controlados y regulados en sus operaciones | E14: Cantidad de negocios controlados y regulados | F14: 0 | G14: 29 | H14: - | I14: 5026285.01
C15: Formación y cultura de la P.N | D15: Miembros policiales reciben capacitación y entrenamiento | E15: Cantidad de miembros formados y entrenados | F15: 5471 | G15: 10973 | H15: 2.00566624 | I15: 104284659.9
C16: Investigación, formación y capacitación | D16: Investigación y estudios migratorios | E16: Número de estudios e informes técnicos realizados | F16: 4 | G16: 2 | H16: 0.5 | I16: 64860286.38
C17: Reducción de crímenes y delitos que afectan a la seguridad ciudadana | D17: Delegaciones con servicio de patrullaje preventivo/proactivo en el municipio de Los Alcarrizos | E17: Cantidad de cuadrantes patrullados | F17: 90 | G17: 71 | H17: 0.7888888889 | I17: 33208602.39
C18: Servicios de control y regulación migratoria | D18: Extranjeros regulados en territorio nacional | E18: Cantidad de extranjeros regulados | F18: 68755 | G18: 20071 | H18: 0.2919205876 | I18: 24918370.48
D19: Extranjeros residentes con estatus migratorio regulados a través de las naturalizaciones | E19: Cantidad de personas naturalizadas | F19: 231 | G19: 133 | H19: 0.5757575758 | I19: 24852232.78
D20: Nacionales y extranjeros autorizados a salir y entrar hacia territorio nacional | E20: Cantidad de extranjeros regulados | F20: 13684853 | G20: 4639575 | H20: 0.3390299479 | I20: 207088935.4
C21: Servicios de ordenamiento y asistencia del transporte terreste | D21: Servicios de investigaciones de accidente de tránsito | E21: Accidentes de tránsito registrados | F21: 330 | G21: 360 | H21: 1.090909091 | I21: 21611960
D22: Zonas con tránsito vehicular viabilizados y controlados | E22: Número de zonas controladas | F22: 850020 | G22: 1105409 | H22: 1.300450578 | I22: 158859037
C23: Servicios de salud, seguridad y bienestar social de la P.N | D23: Miembros activos, en proceso de retiro, jubilados y pensionados, P.N., que reciben asistencia social. | E23: Servicios entregados a Miembros, P.N., en trámite de Pensión, Pensionados, Jubilados P.N. y sus Dependientes. | F23: 21501 | G23: 21605 | H23: 1.004836984 | I23: 87640585.95
D24: Miembros activos, pensionados, jubilados, familiares directos y ciudadanos civiles reciben servicios de salud | E24: Personas atendidas. | F24: 168100 | G24: 191419 | H24: 1.138720999 | I24: 156308290.6
D25: Miembros retirados con servicios de salud y asistencia social. | E25: Número de miembros retirados asistidos. | F25: 8500 | G25: 7002 | H25: 0.8237647059 | I25: 40868253.41
C26: Servicios de seguridad ciudadana y orden público | D26: Ciudadanos querellantes reciben atención policial | E26: Cantidad de denuncias resueltas | F26: 41356 | G26: 36475 | H26: 0.8819760132 | I26: 882401400
D27: Zonas con servicios de patrullaje preventivo/proactivo | E27: Cantidad de zonas con servicios de patrullaje focalizado. | F27: 49300 | G27: 47815 | H27: 0.9698782961 | I27: 6672928001
D28: Zonas turísticas con servicios de patrullaje preventivo / proactivo | E28: Cantidad de zonas con servicios de seguridad turística | F28: 4006 | G28: 4006 | H28: 1 | I28: 278550934.4
C29: TOTAL DEVENGADO | I29: =SUM(I12:I28) -> 8878662709
C30: Notas: *Cifras preliminares
C31: Solo fueron considerados productos con metas físicas programadas y/o ejecutadas
C32: Fecha de Registro al 18 de octubre
C33: Fuente: SIGEF

Sheet Tabla 12
B1: MINISTERIO DE HACIENDA
B2: DIRECCIÓN GENERAL DE PRESUPUESTO
B3: DIRECCIÓN DE ESTUDIOS ECONÓMICOS Y SEGUIMIENTO FINANCIERO
C6: Tabla 11. Programación y Ejecución de Metas Físicas - Ministerio de Defensa
C8: Enero-Septiembre 2021
C9: PROGRAMA | D9: PRODUCTOS | E9: UNIDAD DE MEDIDA | F9: META PROGRAMADA | G9: META LOGRADA | H9: % EJECUCIÓN FISICA | I9: DEVENGADO (RD$ MILLONES)
C11: Defensa aérea | D11: Servicios de protección para la defensa aérea | E11: Operativos realizados | F11: 9000 | G11: 16353 | H11: =G11/F11 -> 1.817 | I11: 2726498412
C12: Defensa nacional | D12: Personas físicas y jurídicas reguladas para la prestación de servicios de seguridad y vigilancia privada | E12: Certificaciones de regulación emitidas | F12: 145 | G12: 142 | H12: 0.9793103448 | I12: 46567972.73
D13: Personas reciben servicios de seguridad y protección en el Metro y Teleférico de Santo Domingo. | E13: Cantidad de personas que se benefician del servicio de seguridad | F13: 75000000 | G13: 50764203 | H13: 0.67685604 | I13: 224148392.6
D14: Servicio de seguridad aeroportuaria | E14: Cantidad de inspecciones realizadas en los diferentes aeropuertos del pais. | F14: 12315114 | G14: 15825122 | H14: 1.285016282 | I14: 672638433.1
D15: Servicio de vigilancia y seguridad de las áreas protegidas identificadas | E15: Operativos realizado | F15: 11100 | G15: 15831 | H15: 1.426216216 | I15: 81789224.28
D16: Servicios de seguridad portuaria | E16: Cant. de barcos inspeccionados a nivel nacional | F16: 2756 | G16: 2499 | H16: 0.9067489115 | I16: 67609416.64
D17: Usuarios acceden a servicios de información cartográfica | E17: Cartografías emitidas y actualizadas | F17: 4 | G17: 4 | H17: 1 | I17: 26769915.46
D18: Zona fronteriza asegurada y controlada | E18: Cantidad de operativos realizados | F18: 4800 | G18: 5393 | H18: 1.123541667 | I18: 212311913.8
C19: Defensa naval | D19: Dragado y limpieza de antepuertos, puertos, ríos y presas | E19: Operativos realizados | F19: 5360 | G19: 5395 | H19: 1.006529851 | I19: 62208735.42
D20: Instituciones y personas que se dedican a la pesca, reguladas y asesoradas. | E20: Inspecciones realizadas. | F20: 2164 | G20: 417 | H20: 0.1926987061 | I20: 29094089.61
D21: Servicios de protección para la defensa naval | E21: Operativos realizados | F21: 46800 | G21: 49743 | H21: 1.062884615 | I21: 634994810.8
C22: Defensa terrestre | D22: Servicios de protección para la defensa terrestre | E22: Operativos realizados | F22: 43740 | G22: 43740 | H22: 1 | I22: 4699536531
C23: Educación y capacitación militar | D23: Civiles y militares reciben capacitación en derechos humanos y derecho internacional humanitario. | E23: Estudiantes activos | F23: 808 | G23: 810 | H23: 1.002475248 | I23: 17725298.34
D24: Civiles y militares reciben capacitación en seguridad y defensa nacional y geopolítica | E24: Estudiantes activos | F24: 369 | G24: 402 | H24: 1.089430894 | I24: 21282112.9
D25: Civiles y miltares reciben capacitación técnico vocacional | E25: Números de estudiantes activos que reciben formación vocacional | F25: 22500 | G25: 17180 | H25: 0.7635555556 | I25: 421134394.9
D26: Estudiantes de educación media reciben los programas de formación ciudadana fundamentados en la metodología de instrucción militar | E26: Número de estudiantes activos que reciben adiestramiento | F26: 8500 | G26: 7857 | H26: 0.9243529412 | I26: 38275260.37
D27: Niños/as y jóvenes reciben educación básica y media | E27: Estudiantes activos | F27: 4500 | G27: 0 | H27: 0 | I27: 6615139.67
C28: Servicio de salud | D28: Civiles y militares reciben servicios de salud, HMRL | E28: Personas atendidas | F28: 361595 | G28: 361595 | H28: =G28/F28 -> 1 | I28: 287382689.1
D29: Civiles y militares reciben servicios de salud. | E29: Personas atendidas | F29: 48784 | G29: 53921 | H29: =G29/F29 -> 1.105300918 | I29: 126570641.3
C30: Servicios de salud y asistencia social | D30: Civiles y militares reciben servicios de salud | E30: No. de personas atendidas | F30: 60500 | G30: 58935 | H30: 0.9741322314 | I30: 233934670
D31: Militares y sus dependientes directos acceden a planes de beneficios sociales | E31: Cantidad de militares y dependientes beneficiados | F31: 1400 | G31: 1400 | H31: 1 | I31: 63651590.34
C32: TOTAL DEVENGADO | I32: =SUM(I11:I31) -> 1.070073964e+10
C33: Notas: *Cifras preliminares
C34: Solo fueron considerados productos con metas físicas programadas y/o ejecutadas
C35: Fecha de Registro al 18 de octubre
C36: Fuente: SIGEF

Sheet Tabla 13
B1: MINISTERIO DE HACIENDA
B2: DIRECCIÓN GENERAL DE PRESUPUESTO
B3: DIRECCIÓN DE ESTUDIOS ECONÓMICOS Y SEGUIMIENTO FINANCIERO
B7: Cuadro 12. Ejecución de Programas Prioritarios
B9: Enero-Septiembre 2021
B10: Valores en RD$ millones
B11: No. | C11: PROGRAMA DE GOBIERNO | D11: FUNCIÓN | E11: PRESUPUESTO INICIAL 2021 | F11: PRESUPUESTO VIGENTE | G11: DEVENGADO | H11: % DE EJECUCIÓN | I11: % DE PARTICIPACIÓN
E13: 1 | F13: 2 | G13: 3 | H13: 4 = 3 / 2 | I13: 5 = 3 / TOTAL
B14: 1 | C14: Programa Supérate (Comer es Primero) | D14: Protección Social | E14: 16829997900 | F14: 3.082524419e+10 | G14: 2.490198476e+10 | H14: =G14/E14 -> 1.479619006 | I14: =G14/$G$58 -> 0.348334592
B15: 2 | C15: PROSOLI (Operativo Solidaridad) | D15: Protección Social | E15: 543881106 | F15: 671881106 | G15: 461709937.8 | H15: 0.8489170384 | I15: 0.006458502981
B16: 3 | C16: Seguro Familiar de Salud en el Régimen Subsidiado | D16: Salud | E16: 16860532000 | F16: 16860532000 | G16: 1.2645399e+10 | H16: 0.75 | I16: 0.1768866997
B17: 4 | C17: Bono Gas Hogar | D17: Protección Social | E17: 2628000000 | F17: 2559783280 | G17: 1874291867 | H17: 0.7132008628 | I17: 0.02621801833
B18: 5 | C18: Jornada Escolar Extendida | D18: Educación | E18: 25826458053 | F18: 2.432645805e+10 | G18: 1.805300804e+10 | H18: 0.6990121525 | I18: 0.2525295574
B19: 6 | C19: Incentivo a la Asistencia Escolar (ILAE) | D19: Protección Social | E19: 840000000 | F19: 840000000 | G19: 530701097.1 | H19: 0.6317870203 | I19: 0.007423566913
B20: 7 | C20: Envejecientes | D20: Protección Social | E20: 399996000 | F20: 403129000 | G20: 250038144.1 | H20: 0.6251016112 | I20: 0.003497590081
B21: 8 | C21: Programa PREPARATE | D21: Educación | E21: 6914924681 | F21: 5260332005 | G21: 3213690815 | H21: 0.4647470454 | I21: 0.04495383358
B22: 9 | C22: Bono Luz | D22: Protección Social | E22: 2050482188 | F22: 1809592663 | G22: 920943740.1 | H22: 0.4491352061 | I22: 0.01288236922
B23: 10 | C23: Programa Ampliado de Inmunización | D23: Salud | E23: 1047400308 | F23: 941423454.2 | G23: 470145794.5 | H23: 0.4488692536 | I23: 0.006576505651
B24: 11 | C24: Prevención y Control de la Tuberculosis | D24: Salud | E24: 178368505 | F24: 157324802.1 | G24: 79731666.58 | H24: 0.4470052972 | I24: 0.001115304576
B25: 12 | C25: Atención a la Primera Infancia y Familias Cariño | D25: Educación | E25: 7699474560 | F25: 7692646528 | G25: 2790837765 | H25: 0.3624711976 | I25: 0.03903886953
B26: 13 | C26: Programa de reducción embarazo entre jóvenes y adolescentes | D26: Protección Social | E26: 3040000 | F26: 2990000 | G26: 484701.9 | H26: 0.1594414145 | I26: 6.780119746e-06
B27: 14 | C27: Transformación digital en educación | D27: Educación | E27: 3158867613 | F27: 778829859.7 | G27: 471738882.9 | H27: 0.1493379719 | I27: 0.006598790132
B28: 15 | C28: Prevención y Control de Enfermedades Producidas por Vectores | D28: Salud | E28: 217967958 | F28: 205328960.1 | G28: 24927412.29 | H28: 0.1143627372 | I28: 0.000348690278
B29: 16 | C29: Atención Integral de Personas Viviendo con VIH | D29: Salud | E29: 1352974516 | F29: 1407311178 | G29: 137467849.2 | H29: 0.1016041674 | I29: 0.00192293135
B30: 17 | C30: Salud Materno Infantil | D30: Salud | E30: 222900000 | F30: 152556888.6 | G30: 13697838.97 | H30: 0.06145284419 | I30: 0.000191608468
B31: 18 | C31: Construcción, reparación y mantenimiento de aulas | D31: Educación | E31: 7011631235 | F31: 7044346204 | G31: 400525875.3 | H31: 0.05712306621 | I31: 0.005602646483
B32: 19 | C32: Riesgos Ambientales | D32: Salud | E32: 15505500 | F32: 14745500 | G32: 509368.26 | H32: 0.03285081165 | I32: 7.125158365e-06
B33: 20 | C33: Vigilancia Epidemiología | D33: Salud | E33: 7344000 | F33: 18600000 | G33: 89870.5 | H33: 0.01223726852 | I33: 1.25712887e-06
B34: 21 | C34: Promoción y Educación para la Salud | D34: Salud | E34: 70000000 | F34: 18719000 | G34: 713816.97 | H34: 0.01019738529 | I34: 9.985033137e-06
B35: 22 | C35: Salud Mental | D35: Salud | E35: 8869127 | F35: 9669127 | G35: 87615 | H35: 0.009878649838 | I35: 1.225578426e-06
B36: 23 | C36: Prevención y Control de la Zoonosis (Rabia) | D36: Salud | E36: 51851409 | F36: 50894339.51 | G36: 473891.84 | H36: 0.009139420686 | I36: 6.628906183e-06
B37: 24 | C37: Protección y Atención integral a mujeres víctimas de violencia | D37: Protección Social | E37: 122954831 | F37: 170529831 | G37: 320121.9 | H37: 0.002603573177 | I37: 4.477937502e-06
B38: 25 | C38: Progresando | D38: Protección Social | E38: 327860000 | F38: 0 | G38: 0 | H38: 0 | I38: 0
B39: 26 | C39: Prevención y Control de la Desnutrición | D39: Salud | E39: 40000000 | F39: 5000000 | G39: 0 | H39: 0 | I39: 0
B40: 27 | C40: Prevención y Control de Enfermedades Crónicas | D40: Salud | E40: 6500000 | F40: 6200000 | G40: 0 | H40: 0 | I40: 0
B41: 28 | C41: Salud Bucal | D41: Salud | E41: 6771800 | F41: 6471800 | G41: 0 | H41: 0 | I41: 0
B42: TOTAL PROGRAMAS SERVICIOS SOCIALES | D42: 28 | E42: =SUM(E14:E41) -> 94444553290 | F42: =SUM(F14:F41) -> 1.022405398e+11 | G42: =SUM(G14:G41) -> 6.724351987e+10 | H42: 0.7119893898 | I42: 0.9406175565
B43: 29 | C43: Programa Caminos Productivos | D43: Agropecuaria, caza, pesca y silvicultura | E43: 100094261 | F43: 100894261 | G43: 97964710.05 | H43: 0.978724545 | I43: 0.001370352509
B44: 30 | C44: Programa de Pignoración | D44: Agropecuaria, caza, pesca y silvicultura | E44: 406851900 | F44: 406851900 | G44: 305138925 | H44: 0.75 | I44: 0.004268352261
B45: 31 | C45: Programa de Fomento Pecuario | D45: Agropecuaria, caza, pesca y silvicultura | E45: 348444590 | F45: 350076660.5 | G45: 219282384.8 | H45: 0.6293178058 | I45: 0.003067371569
B46: 32 | C46: Programa de apoyo al sector agropecuario de fomento a la producción para el mercado local y exportación | D46: Agropecuaria, caza, pesca y silvicultura | E46: 4108752063 | F46: 1984567120 | G46: 1405941501 | H46: 0.3421821224 | I46: 0.01966662754
B47: 33 | C47: Programas de desarrollo rural agropecuario sostenible | D47: Agropecuaria, caza, pesca y silvicultura | E47: 1233209241 | F47: 631910058 | G47: 420211352.4 | H47: 0.3407461917 | I47: 0.005878011388
B48: 34 | C48: Programas de titulación de tierras en el área urbana y rural | D48: Agropecuaria, caza, pesca y silvicultura | E48: 46369521 | F48: 31240407.44 | G48: 10277250.3 | H48: 0.2216380519 | I48: 0.0001437605004
B49: 35 | C49: Programa de Apoyo a las Micros, Pequeñas y Medianas Empresas (PYMES) | D49: Asuntos Económicos, Comerciales y Laborales | E49: 1267044375 | F49: 801752795 | G49: 212047809.1 | H49: 0.167356261 | I49: 0.002966172688
B50: TOTAL PROGRAMAS SERVICIOS ECONÓMICOS | D50: 7 | E50: =SUM(E43:E49) -> 7510765951 | F50: =SUM(F43:F49) -> 4307293202 | G50: =SUM(G43:G49) -> 2670863933 | H50: 0.3556047346 | I50: 0.03736064845
B51: 36 | C51: Manejo sostenible de la cobertura forestal | D51: Protección de la biodiversidad y ordenación de desechos | E51: 460559986 | F51: 762633002 | G51: 411348226.6 | H51: 0.8931479917 | I51: 0.00575403198
B52: 37 | C52: Gestión sostenible de los recursos costeros y marinos | D52: Protección de la biodiversidad y ordenación de desechos | E52: 63344044 | F52: 61147999 | G52: 34747514.12 | H52: 0.548552191 | I52: 0.0004860560823
B53: 38 | C53: Conservación y manejo descentralizado e integral de cuencas hidrográficas | D53: Protección del Aire, Agua y Suelo | E53: 887700 | F53: 287700 | G53: 0 | H53: 0 | I53: 0
B54: TOTAL PROGRAMAS PROTECCIÓN MEDIO AMBIENTE | D54: 3 | E54: =SUM(E51:E53) -> 524791730 | F54: =SUM(F51:F53) -> 824068701 | G54: =SUM(G51:G53) -> 446095740.7 | H54: 0.850043389 | I54: 0.006240088062
B55: 39 | C55: Programa Seguridad Ciudadana | D55: Administración General | E55: 497978194 | F55: 769339567.3 | G55: 234911115.4 | H55: 0.4717297227 | I55: 0.003285989784
B56: 40 | C56: Sistema de Atención integral a Emergencia (9-1-1) | D56: Defensa Nacional | E56: 4500000000 | F56: 3900000000 | G56: 893302489.5 | H56: 0.1985116643 | I56: 0.01249571716
B57: TOTAL PROGRAMAS ADMINISTRACIÓN GENERAL | D57: 2 | E57: =SUM(E55:E56) -> 4997978194 | F57: =SUM(F55:F56) -> 4669339567 | G57: =SUM(G55:G56) -> 1128213605 | H57: 0.2257339991 | I57: 0.01578170694
B58: TOTAL | D58: 40 | E58: =E42+E50+E54+E57 -> 107478089165 | F58: =F42+F50+F54+F57 -> 1.120412412e+11 | G58: =G42+G50+G54+G57 -> 7.148869315e+10 | H58: 0.6651466704 | I58: 1
B59: Notas: *Cifras preliminares
B60: Fecha de registro al 15 de octubre 2021 / Fecha de imputación al 30 de septiembre 2021
B61: Fuente: SIGEF

Sheet Gráfico 15
B1: MINISTERIO DE HACIENDA
B2: DIRECCIÓN GENERAL DE PRESUPUESTO
B3: DIRECCIÓN DE ESTUDIOS ECONÓMICOS Y SEGUIMIENTO FINANCIERO
D8: Gráfico 15. Distribución del Gasto por Clasificación Funcional
D9: Enero-septiembre 2021
B11: Servicios Sociales | C11: 0.5135764704
B12: Intereses de la Deuda Pública | C12: 0.1963157432
B13: Servicios Generales | C13: 0.1642385387
B14: Servicios Económicos | C14: 0.1203679125
B15: Protección del Medio Ambiente | C15: 0.02
C16: 1
E32: Notas: *Cifras preliminares
E33: Fuente: Datos del SIGEF

Sheet Figura 1
B1: MINISTERIO DE HACIENDA
B2: DIRECCIÓN GENERAL DE PRESUPUESTO
B3: DIRECCIÓN DE ESTUDIOS ECONÓMICOS Y SEGUIMIENTO FINANCIERO
C8: Figura 1. Distribución funcional de Servicios Sociales
C19: Fuente: Datos del SIGEF

Sheet Figura 2
B1: MINISTERIO DE HACIENDA
B2: DIRECCIÓN GENERAL DE PRESUPUESTO
B3: DIRECCIÓN DE ESTUDIOS ECONÓMICOS Y SEGUIMIENTO FINANCIERO
D8: Figura 2. Distribución funcional de Administración General
D19: Fuente: Datos del SIGEF

Sheet Figura 3
B1: MINISTERIO DE HACIENDA
B2: DIRECCIÓN GENERAL DE PRESUPUESTO
B3: DIRECCIÓN DE ESTUDIOS ECONÓMICOS Y SEGUIMIENTO FINANCIERO
D9: Figura 3. Distribución funcional de Servicios Económicos
D21: Fuente: Datos del SIGEF

Sheet Figura 4
B1: MINISTERIO DE HACIENDA
B2: DIRECCIÓN GENERAL DE PRESUPUESTO
B3: DIRECCIÓN DE ESTUDIOS ECONÓMICOS Y SEGUIMIENTO FINANCIERO
D9: Figura 4. Distribución funcional de Protección del Medio Ambiente
D23: Fuente: Datos del SIGEF

Sheet Tabla 14
B1: MINISTERIO DE HACIENDA
B2: DIRECCIÓN GENERAL DE PRESUPUESTO
B3: DIRECCIÓN DE ESTUDIOS ECONÓMICOS Y SEGUIMIENTO FINANCIERO
C6: Tabla 14. Gastos de Gobierno Central por Clasificación Funcional
C7: Enero - Septiembre 2021 | M7: PIB Nominal (Millones RD$) | N7: 5.294508964e+12
C8: Valores en millones RD$
C9: DETALLE | D9: 2020 | E9: 2021 | J9: Variación 2021/2020 | L9: EJECUCIÓN % PIB
D10: EJECUCIÓN | E10: PRESUPUESTO INICIAL | F10: PRESUPUESTO APROBADO Ley No. 166-21 | G10: COMPROMETIDO | H10: EJECUCIÓN | I10: PAGADO
J11: Absoluta | K11: Relativa
D12: 1 | E12: 2 | F12: 3 | G12: 4 | H12: 5 | I12: 6 | J12: 7 = 5-1 | K12: 8 = 7/1 | L12: 9 = (5/PIB)
C13: 1 - SERVICIOS GENERALES | D13: 1.15978576e+11 | E13: 153374829243 | F13: 166205200000 | G13: 1.040459398e+11 | H13: 1.011336982e+11 | I13: 9.949946054e+10 | J13: =H13-D13 -> -1.48448778e+10 | K13: =J13/D13 -> -0.1279967242 | L13: =H13/$N$7 -> 0.01910161997
C14: 1.1 - Administración general | D14: 5.887756355e+10 | E14: 74961398519 | F14: 81971500000 | G14: 4.881058663e+10 | H14: 4.750593022e+10 | I14: 4.702750398e+10 | J14: =H14-D14 -> -1.137163333e+10 | K14: =J14/D14 -> -0.1931403516 | L14: =H14/$N$7 -> 0.008972679157
C15: 1.2 - Relaciones internacionales | D15: 6952666464 | E15: 10180523554 | F15: 9362500000 | G15: 5394785855 | H15: 5281700395 | I15: 5171445091 | J15: -1670966069 | K15: -0.2403345649 | L15: 0.0009975807825
C16: 1.3 - Defensa nacional | D16: 1.881130781e+10 | E16: 29730961943 | F16: 31863700000 | G16: 1.934684417e+10 | H16: 1.852909442e+10 | I16: 1.821674868e+10 | J16: -282213387.2 | K16: -0.01500232679 | L16: 0.003499681378
C17: 1.4 - Justicia, orden público y seguridad | D17: 3.133703814e+10 | E17: 38501945227 | F17: 43007500000 | G17: 3.049372316e+10 | H17: 2.981697313e+10 | I17: 2.908376279e+10 | J17: -1520065014 | K17: -0.04850697781 | L17: 0.005631678657
C18: 2 - SERVICIOS ECONÓMICOS | D18: 7.160384194e+10 | E18: 129938826397 | F18: 154454400000 | G18: 7.504738479e+10 | H18: 7.411967734e+10 | I18: 7.077860421e+10 | J18: 2515835394 | K18: 0.03513548053 | L18: 0.01399934873
C19: 2.1 - Asuntos económicos, comerciales y laborales | D19: 4918358838 | E19: 7878627350 | F19: 14799600000 | G19: 7730575515 | H19: 7551654368 | I19: 6713961638 | J19: 2633295530 | K19: 0.5354012622 | L19: 0.001426318176
C20: 2.2 - Agropecuaria, caza, pesca y silvicultura | D20: 8682735889 | E20: 13630854023 | F20: 13485600000 | G20: 1.004815565e+10 | H20: 9895098222 | I20: 9829479570 | J20: 1212362333 | K20: 0.1396290695 | L20: 0.001868935966
C21: 2.3 - Riego | D21: 6284899332 | E21: 7731561024 | F21: 9369800000 | G21: 4278775729 | H21: 4276919408 | I21: 4182737194 | J21: -2007979924 | K21: -0.3194927744 | L21: 0.0008078028458
C22: 2.4 - Energía y combustible | D22: 2.391870805e+10 | E22: 52046074129 | F22: 67177000000 | G22: 3.118828898e+10 | H22: 3.116209691e+10 | I22: 3.077816426e+10 | J22: 7243388862 | K22: 0.3028336166 | L22: 0.005885738814
C23: 2.5 - Minería, manufactura y construcción | D23: 107088657.4 | E23: 890787874 | F23: 899800000 | G23: 164016275 | H23: 150024907.5 | I23: 145877948.9 | J23: 42936250.09 | K23: 0.4009411558 | L23: 2.833594363e-05
C24: 2.6 - Transporte | D24: 2.218153929e+10 | E24: 39775378020 | F24: 40198000000 | G24: 1.819388186e+10 | H24: 1.779836641e+10 | I24: 1.603189085e+10 | J24: -4383172880 | K24: -0.1976045405 | L24: 0.003361665177
C25: 2.7 - Comunicaciones | D25: 565640345.7 | E25: 1528821197 | F25: 1528800000 | G25: 1122159423 | H25: 1119120226 | I25: 1115772112 | J25: 553479880.3 | K25: 0.978501418 | L25: 0.0002113737523
C26: 2.8 - Banca y seguros | D26: 227948078 | E26: 182203020 | F26: 182200000 | G26: 135081933 | H26: 135081933 | I26: 135081933 | J26: -92866145 | K26: -0.40740043 | L26: 2.551359039e-05
C27: 2.9 - Otros servicios económicos | D27: 4716923462 | E27: 6274519760 | F27: 6813700000 | G27: 2186449422 | H27: 2031314951 | I27: 1845638704 | J27: -2685608511 | K27: -0.5693559654 | L27: 0.0003836644653
C28: 3 - PROTECCIÓN DEL MEDIO AMBIENTE | D28: 2861062986 | E28: 6755359244 | F28: 6755400000 | G28: 4015584546 | H28: 3387590407 | I28: 3112118087 | J28: 526527420.8 | K28: 0.1840320969 | L28: 0.0006398308947
C29: 3.1 - Protección del aire, agua y suelo | D29: 846947316.7 | E29: 1477196960 | F29: 1477200000 | G29: 1392819249 | H29: 1179803186 | I29: 1144340055 | J29: 332855868.9 | K29: 0.3930065807 | L29: 0.0002228352419
C30: 3.2 - Protección de la biodiversidad y ordenación de desechos | D30: 2014115670 | E30: 5278162284 | F30: 5278200000 | G30: 2622765297 | H30: 2207787222 | I30: 1967778032 | J30: 193671551.9 | K30: 0.09615711491 | L30: 0.0004169956528
C31: 4 - SERVICIOS SOCIALES | D31: 3.262840034e+11 | E31: 416473656021 | F31: 491309800000 | G31: 3.413189454e+11 | H31: 3.16248089e+11 | I31: 3.095897267e+11 | J31: -1.003591448e+10 | K31: -0.03075821792 | L31: 0.05973133507
C32: 4.1 - Vivienda y servicios comunitarios | D32: 1.213713445e+10 | E32: 17669577548 | F32: 19479900000 | G32: 1.160126625e+10 | H32: 1.153378891e+10 | I32: 1.120185492e+10 | J32: -603345533.9 | K32: -0.04971070697 | L32: 0.002178443552
C33: 4.2 - Salud | D33: 6.500315834e+10 | E33: 97744003634 | F33: 136852000000 | G33: 9.108445849e+10 | H33: 8.996970966e+10 | I33: 8.767051376e+10 | J33: 2.496655132e+10 | K33: 0.3840821271 | L33: 0.01699302245
C34: 4.3 - Actividades deportivas, recreativas, culturales y religiosas | D34: 3748453853 | E34: 6205311481 | F34: 6797600000 | G34: 4649098475 | H34: 4237816240 | I34: 4090744297 | J34: 489362387.2 | K34: 0.1305504633 | L34: 0.0008004172377
C35: 4.4 - Educación | D35: 1.384189667e+11 | E35: 199017511706 | F35: 200787300000 | G35: 1.538682421e+11 | H35: 1.318499863e+11 | I35: 1.284933765e+11 | J35: -6568980457 | K35: -0.04745722796 | L35: 0.02490315668
C36: 4.5 - Protección social | D36: 1.069762901e+11 | E36: 95837251652 | F36: 127393100000 | G36: 8.011588009e+10 | H36: 7.865678789e+10 | I36: 7.813323723e+10 | J36: -2.83195022e+10 | K36: -0.2647269051 | L36: 0.01485629516
C37: 5 - INTERESES DE LA DEUDA PÚBLICA | D37: 1.058697642e+11 | E37: 184836130000 | F37: 157865500000 | G37: 1.209170054e+11 | H37: 1.208865324e+11 | I37: 1.106988864e+11 | J37: 1.501676811e+10 | K37: 0.1418418962 | L37: 0.02283243511
C38: 5.1 - Intereses y comisiones de deuda pública | D38: 1.058697642e+11 | E38: 184836130000 | F38: 157865500000 | G38: 1.209170054e+11 | H38: 1.208865324e+11 | I38: 1.106988864e+11 | J38: 1.501676811e+10 | K38: 0.1418418962 | L38: 0.02283243511
C39: TOTAL | D39: 6.225972486e+11 | E39: 891378800905 | F39: 976590300000 | G39: 6.4534486e+11 | H39: 6.157755872e+11 | I39: 5.936787959e+11 | J39: -6821661354 | K39: -0.01095678044 | L39: 0.1163045698
C40: Notas: *Cifras preliminares
C41: Fecha de registro al 15 de abril 2021 / Fecha de imputación al 31 de marzo 2021
C42: Se utilizó el PIB del Panorama Macroeconómico actualizado al 23 de marzo 2021, elaborado por el Ministerio de Economía Planificación y Desarrollo
C43: Fuente: Datos del SIGEF

Sheet Tabla 15
A1: MINISTERIO DE HACIENDA
B2: DIRECCIÓN GENERAL DE PRESUPUESTO
B3: DIRECCIÓN DE ESTUDIOS ECONÓMICOS Y SEGUIMIENTO FINANCIERO
C6: Tabla 15. Gastos del Gobierno Central relacionados al COVID-19
C7: Enero-Septiembre 2021
C8: Valores en RD$ millones
C9: CONCEPTO | D9: DEVENGADO
C11: Vacunas | D11: 2.117269132e+10
C12: Quédate en Casa | D12: 12822428750
C13: Deuda FASE año 2020 | D13: 5462632138
C14: Pruebas Rápidas de Antígenos y PCR | D14: 4683566454
C15: Supérate | D15: 4456171000
C16: FASE | D16: 1771644198
C17: Material Preventivo (Mascarillas, batas quirurgicas, etc.) | D17: 996575038.8
C18: Insumos, Equipos y reactivos | D18: 361043085.1
C19: Incentivo por labor humanitaria | D19: 360363035.5
C20: Medicamentos | D20: 316462866.5
C21: FASE Turismo | D21: 109972968.5
C22: Otros | D22: 536850570.1
C23: TOTAL | D23: =SUM(D11:D21) -> 5.251355086e+10
C24: Notas: *Cifras Preliminares
C25: Fecha de registro al 15 de octubre 2021
C26: Fuente: Datos del SIGEF

Sheet Gráfico 16
A1: MINISTERIO DE HACIENDA
B2: DIRECCIÓN GENERAL DE PRESUPUESTO
B3: DIRECCIÓN DE ESTUDIOS ECONÓMICOS Y SEGUIMIENTO FINANCIERO
B6: Gráfico 16. Resultado Económico del Gobierno Central
B7: Enero-Septiembre 2020 y 2021
B8: Valores en millones RD$
B22: Fuente: Sistema de Información de la Gestión Financiera (SIGEF).
B24: Resultado Económico | D24: 2020 | E24: 2021
B25: Enero-Septiembre | D25: -8.785532176e+10 | E25: 7.142133297e+10
B26: Julio-Septiembre | D26: -2.272612585e+10 | E26: 4.010722001e+10
B27: Fuente: Sistema de Información de la Gestión Financiera (SIGEF).

Sheet Gráfico 17
A1: MINISTERIO DE HACIENDA
B2: DIRECCIÓN GENERAL DE PRESUPUESTO
B3: DIRECCIÓN DE ESTUDIOS ECONÓMICOS Y SEGUIMIENTO FINANCIERO
C7: Gráfico 17. Resultado de Capital del Gobierno Central
C8: Enero-Septiembre 2020 y 2021
C9: Valores en millones RD$
C22: Fuente: Sistema de Información de la Gestión Financiera (SIGEF).
C24: Resultado de Capital | D24: 2020 | E24: 2021
C25: Enero-Septiembre | D25: -7.676001728e+10 | E25: -3.745364026e+10
C26: Julio-Septiembre | D26: -2.564648536e+10 | E26: -1.608315643e+10
C27: Fuente: Sistema de Información de la Gestión Financiera (SIGEF).
B36: 3

Sheet Gráfico 18
A1: MINISTERIO DE HACIENDA
B2: DIRECCIÓN GENERAL DE PRESUPUESTO
B3: DIRECCIÓN DE ESTUDIOS ECONÓMICOS Y SEGUIMIENTO FINANCIERO
D8: Gráfico 18. Resultado Financiero del Gobierno Central
D9: Enero-Septiembre 2020 y 2021
D10: Valores en millones RD$
D24: Fuente: Sistema de Información de la Gestión Financiera (SIGEF).
D26: Resultado Financiero | E26: 2020 | F26: 2021
D27: Enero-Septiembre | E27: -1.64615339e+11 | F27: 3.396769272e+10
D28: Julio-Septiembre | E28: -4.837261121e+10 | F28: 1297937722
D29: Fuente: Sistema de Información de la Gestión Financiera (SIGEF).

Sheet Gráfico 19
A1: MINISTERIO DE HACIENDA
A2: DIRECCIÓN GENERAL DE PRESUPUESTO
A3: DIRECCIÓN DE ESTUDIOS ECONÓMICOS Y SEGUIMIENTO FINANCIERO
C9: Gráfico 19. Resultado Primario del Gobierno Central
C10: Enero-Septiembre 2020 y 2021
C11: Valores en millones RD$
C24: Fuente: Sistema de Información de la Gestión Financiera (SIGEF).
C26: Resultado Primario | D26: 2020 | E26: 2021
C27: Enero-Septiembre | D27: -5.871907015e+10 | E27: 2.004848876e+11
C28: Julio-Septiembre | D28: -1.79989126e+10 | E28: 5.261054487e+10
C29: Fuente: Sistema de Información de la Gestión Financiera (SIGEF).

Sheet Tablas 16
A1: MINISTERIO DE HACIENDA
B2: DIRECCIÓN GENERAL DE PRESUPUESTO
B3: DIRECCIÓN DE ESTUDIOS ECONÓMICOS Y SEGUIMIENTO FINANCIERO
B5: Tabla 16. Financiamiento Neto del Gobierno Central
B6: Enero-Septiembre 2020 y 2021
B7: Valores en millones RD$
B8: DETALLE | C8: 2020 | D8: 2021 | I8: VARIACIÓN 2021/2020 | K8: EJECUCIÓN % PIB
B9: DETALLE | C9: EJECUCIÓN | D9: PRESUPUESTO INICIAL | E9: PRESUPUESTO APROBADO LEY NO. 166-21 | F9: COMPROMETIDO | G9: EJECUCIÓN | H9: PAGADO
I10: ABSOLUTA | J10: RELATIVA
C11: 1 | D11: 2 | E11: 3 | F11: 4 | G11: 5 | H11: 6 | I11: 7 = 5-1 | J11: 8 = 7/1 | K11: 9 = (5/PIB)
B12: Financiamiento Neto* | C12: =+C13-C16 -> 3.86574723e+11 | D12: 145064965354 | E12: 156000822083 | F12: 1.102391958e+11 | G12: 1.102622097e+11 | H12: 1.134723873e+11 | I12: =+G12-C12 -> -2.763125133e+11 | J12: =+(G12-C12)/C12 -> -0.7147712897 | K12: =G12/$C$25 -> 0.02082576692
B13: 3.1 - Fuentes financieras | C13: 5.216517574e+11 | D13: =+D14+D15 -> 291528487153 | E13: 253727667606 | F13: 1.820536649e+11 | G13: 1.820536649e+11 | H13: 1.820536649e+11 | I13: -3.395980924e+11 | J13: =+(G13-C13)/C13 -> -0.6510053645 | K13: =G13/$C$25 -> 0.03438537288
B14: 3.1.1 - Disminución de activos financieros | C14: 0 | D14: 0 | E14: 0 | F14: 0 | G14: 0 | H14: 0 | I14: 0 | J14: - | K14: =G14/$C$25 -> 0
B15: 3.1.2 - Incremento de pasivos | C15: 5.216517574e+11 | D15: 291528487153 | E15: 253727667606 | F15: 1.820536649e+11 | G15: 1.820536649e+11 | H15: 1.820536649e+11 | I15: -3.395980924e+11 | J15: =+(G15-C15)/C15 -> -0.6510053645 | K15: =G15/$C$25 -> 0.03438537288
B16: 3.2 - Aplicaciones financieras | C16: 1.350770344e+11 | D16: =+D17+D18 -> 146463521799 | E16: 97726845523 | F16: 7.181446913e+10 | G16: 7.179145528e+10 | H16: 6.858127761e+10 | I16: -6.32855791e+10 | J16: =+(G16-C16)/C16 -> -0.4685147212 | K16: =G16/$C$25 -> 0.01355960596
B17: 3.2.1 - Incremento de activos financieros | C17: 5919943722 | D17: 23000000000 | E17: 11850400000 | F17: 6981131808 | G17: 6981131808 | H17: 6910382584 | I17: 1061188085 | J17: =+(G17-C17)/C17 -> 0.1792564482 | K17: 0.001318560768
B18: 3.2.2 - Disminución de pasivos | C18: 1.291570907e+11 | D18: 123463521799 | E18: 85876445523 | F18: 6.483333732e+10 | G18: 6.481032347e+10 | H18: 6.167089502e+10 | I18: -6.434676719e+10 | J18: =+(G18-C18)/C18 -> -0.4982054555 | K18: 0.01224104519
B19: Notas: *Para las etapas de compromiso y pagado en el Financiamiento Neto corresponde con lo percibido dado que estas etapas solo aplican al gasto y las aplicaciones financieras
B20: Fuente: Sistema de la Información de la Gestión Financiera (SIGEF).
B23: Marco Macroeconómico revisado al 26 de agosto de 2021 | C23: 2021
B25: PIB nominal (Millones RD$) | C25: 5.294508964e+12

Sheet Tablas 17
A1: MINISTERIO DE HACIENDA
A2: DIRECCIÓN GENERAL DE PRESUPUESTO
A3: DIRECCIÓN DE ESTUDIOS ECONÓMICOS Y SEGUIMIENTO FINANCIERO
B8: Tabla 17. Financiamiento Neto del Gobierno Central
B9: Enero-Septiembre 2020 y 2021
B10: Valores en millones RD$
B11: DETALLE | C11: 1ER TRIMESTRE | D11: 2DO TRIMESTRE | E11: 3ER TRIMESTRE | F11: DEVENGADO ACUMULADO
C14: DEVENGADO
C15: 1 | D15: 2 | E15: 3 | F15: 4 = 1+2+3
B16: Financiamiento Neto** | C16: =+C17-C20 -> 1.410471799e+11 | D16: =+D17-D20 -> -2.071446088e+10 | E16: =+E17-E20 -> -1.007050935e+10 | F16: =C16+D16+E16 -> 1.102622097e+11
B17: 3.1 - Fuentes financieras | C17: 1.52440073e+11 | D17: 1.414827841e+10 | E17: 1.546531355e+10 | F17: =C17+D17+E17 -> 1.820536649e+11
B18: 3.1.1 - Disminución de activos financieros | C18: 0 | D18: 0 | E18: 0 | F18: 0
B19: 3.1.2 - Incremento de pasivos | C19: 1.52440073e+11 | D19: 1.414827841e+10 | E19: 1.546531355e+10 | F19: 1.820536649e+11
B20: 3.2 - Aplicaciones financieras | C20: 1.139289308e+10 | D20: 34862739293 | E20: 2.55358229e+10 | F20: 7.179145528e+10
B21: 3.2.1 - Incremento de activos financieros | C21: 249999999 | D21: 687499999 | E21: 6043631810 | F21: 6981131808
B22: 3.2.2 - Disminución de pasivos | C22: 1.114289308e+10 | D22: 34175239294 | E22: 1.949219109e+10 | F22: 6.481032347e+10
B23: Notas: Cifras Preliminares
B24: *Para las etapas de compromiso y pagado en el Financiamiento Neto referente a las fuentes financieras corresponde con lo percibido dado que estas etapas solo aplican al gasto y las aplicaciones financieras.
B25: Se utilizó el PIB del Panorama Macroeconómico actualizado al 26/08/2021, elaborado por el Ministerio de Economía, Planificación y de Desarrollo.

Sheet Tablas 18
A1: MINISTERIO DE HACIENDA
A2: DIRECCIÓN GENERAL DE PRESUPUESTO
A3: DIRECCIÓN DE ESTUDIOS ECONÓMICOS Y SEGUIMIENTO FINANCIERO
B6: Tabla 18. Servicio de la Deuda del Gobierno Central
B7: Enero-Septiembre 2020 y 2021
B8: Valores en millones RD$
B9: DETALLE | C9: 2020 | D9: 2021 | I9: VARIACIÓN 2021/2020 | K9: EJECUCIÓN % PIB
C10: EJECUCIÓN | D10: PRESUPUESTO INICIAL | E10: PRESUPUESTO APROBADO LEY NO. 166-21 | F10: COMPROMETIDO | G10: EJECUCIÓN | H10: PAGADO
I11: ABSOLUTA | J11: RELATIVA
C12: 1 | D12: 2 | E12: 3 | F12: 4 | G12: 5 | H12: 6 | I12: 7 = 5-1 | J12: 8 = 7/1 | K12: 9 = (5/PIB)
B13: Servicio de la Deuda | C13: =C14+C18 -> 1.730943788e+11 | D13: =D14+D18 -> 279266330000 | E13: 214708578010 | F13: 1.690787797e+11 | G13: 1.690482928e+11 | H13: 1.560441119e+11 | I13: =G13-C13 -> -4046086024 | J13: =I13/C13 -> -0.02337502842 | K13: =G13/$C$30 -> 0.03192898415
B14: Externo | C14: 1.018464085e+11 | D14: 1.655173873e+11 | E14: 103864635331 | F14: 9.18095339e+10 | G14: 9.177904799e+10 | H14: 8.420425705e+10 | I14: =G14-C14 -> -1.006736052e+10 | J14: =I14/C14 -> -0.0988484588 | K14: 0.01733476109
B15: Amortización | C15: 4.866684383e+10 | D15: 6.567615732e+10 | E15: 30994081045 | F15: 2.541577915e+10 | G15: 2.541576562e+10 | H15: 2.36840565e+10 | I15: -2.325107821e+10 | J15: -0.4777601418 | K15: 0.004800400906
B16: Intereses | C16: 5.248818034e+10 | D16: 98522890143 | E16: 71552214429 | F16: 6.563429485e+10 | G16: 6.562671994e+10 | H16: 5.979057106e+10 | I16: 1.31385396e+10 | J16: 0.250314252 | K16: 0.01239524201
B17: Comisiones | C17: 691384327.5 | D17: 1318339857 | E17: 1318339857 | F17: 759459893.6 | G17: 736562422.9 | H17: 729629494.8 | I17: 45178095.35 | J17: 0.06534440188 | K17: 0.0001391181747
B18: Interno | C18: 7.124797029e+10 | D18: 113748942679 | E18: 110843942679 | F18: 7.726924578e+10 | G18: 7.726924478e+10 | H18: 7.183985486e+10 | I18: 6021274491 | J18: 0.08451152316 | K18: 0.01459422305
B19: Amortización | C19: 1.853126606e+10 | D19: 28754042679 | E19: 25849042679 | F19: 2.273599511e+10 | G19: 2.273599479e+10 | H19: 2.165716903e+10 | I19: 4204728726 | J19: 0.2268991612 | K19: 0.004294259382
B20: Intereses | C20: 5.269042062e+10 | D20: 84955492130 | E20: 84955492130 | F20: 5.418614839e+10 | G20: 5.418614787e+10 | H20: 4.983619451e+10 | I20: 1495727247 | J20: 0.02838708117 | K20: 0.01023440478
B21: Comisiones | C21: 26283601.1 | D21: 39407870 | E21: 39407870 | F21: 347102279.7 | G21: 347102118.6 | H21: 346491318.5 | I21: 320818517.5 | J21: 12.20603357 | K21: 6.55588877e-05
B22: Notas: *Cifras Preliminares
B23: Se utilizó el PIB del Panorama Macroeconómico actualizado al 26/08/2021, elaborado por el Ministerio de Economía, Planificación y de Desarrollo.
B24: Fecha de registro: 15/10/2021 // Fecha de recaudación: 30/09/2021
B25: Fuente: Sistema de Información de la Gestión Financiera (SIGEF).
B28: Marco Macroeconómico revisado al 26 de agosto de 2021 | C28: 2021
B30: PIB nominal (Millones RD$) | C30: 5.294508964e+12

Sheet Tabla 19
A1: MINISTERIO DE HACIENDA
A2: DIRECCIÓN GENERAL DE PRESUPUESTO
A3: DIRECCIÓN DE ESTUDIOS ECONÓMICOS Y SEGUIMIENTO FINANCIERO
C8: Tabla 19. Servicio de la Deuda del Gobierno Central
C9: Trimestral 2020 y 2021
C10: Valores en millones RD$
C11: DETALLE | D11: 1ER TRIMESTRE | E11: 2DO TRIMESTRE | F11: 3ER TRIMESTRE | G11: DEVENGADO ACUMULADO
D14: DEVENGADO
D15: 1 | E15: 2 | F15: 3 | G15: 4 = 1+2+3
C16: Servicio de la Deuda | D16: 4.519398475e+10 | E16: 8.046821454e+10 | F16: 4.338609348e+10 | G16: =D16+E16+F16 -> 1.690482928e+11
C17: Externo | D17: 2.453510823e+10 | E17: 4.470811103e+10 | F17: 2.253582874e+10 | G17: =D17+E17+F17 -> 9.177904799e+10
C18: Amortización | D18: 7473096209 | E18: 1.075768547e+10 | F18: 7184983947 | G18: 2.541576562e+10
C19: Intereses | D19: 1.673839397e+10 | E19: 3.360791327e+10 | F19: 1.528041271e+10 | G19: 6.562671994e+10
C20: Comisiones | D20: 323618054.3 | E20: 342512283.9 | F20: 70432084.7 | G20: 736562422.9
C21: Interno | D21: 2.065887652e+10 | E21: 3.576010352e+10 | F21: 2.085026475e+10 | G21: 7.726924478e+10
C22: Amortización | D22: 3000914124 | E22: 1.604673028e+10 | F22: 3688350386 | G22: 2.273599479e+10
C23: Intereses | D23: 1.76360254e+10 | E23: 1.939519132e+10 | F23: 1.715493115e+10 | G23: 5.418614787e+10
C24: Comisiones | D24: 21936996.19 | E24: 318181910.5 | F24: 6983211.91 | G24: 347102118.6
C25: Notas. *Cifras Preliminares
C26: Se utilizó el PIB del Panorama Macroeconómico actualizado al 26/08/2021, elaborado por el Ministerio de Economía, Planificación y de Desarrollo.
C27: Fecha de registro: 15/10/2021 / Fecha de recaudación: 30/09/2021
C28: Fuente: Sistema de Información de la Gestión Financiera (SIGEF).

Sheet Tabla 20
A1: MINISTERIO DE HACIENDA
A2: DIRECCIÓN GENERAL DE PRESUPUESTO
A3: DIRECCIÓN DE ESTUDIOS ECONÓMICOS Y SEGUIMIENTO FINANCIERO
F7: PIB US$ millones | G7: 91561.3
B8: Tabla 20. Composición de la Deuda Pública del SPNF al 31 de Agosto 2021
B9: Tipo/Acreedor | C9: Monto | D9: Participación | E9: % PIB
C10: (Millones de US$)
B11: Externa | C11: =C12+C16+C17 -> 33121.37441 | D11: =C11/$C$22 -> 0.6964172749 | E11: =C11/$G$7 -> 0.361739888
B12: Privados | C12: =C13+C14+C15 -> 24638.26835 | D12: 0.5180496284 | E12: =C12/$G$7 -> 0.2690904165
B13: Bonos | C13: 24630.46973 | D13: 0.5178856528 | E13: 0.2690052427
B14: Banca Comercial | C14: 1.79862412 | D14: 3.781826481e-05 | E14: 1.964393385e-05
B15: Suplidores | C15: 6 | D15: 0.0001261573146 | E15: 6.552986906e-05
B16: Multilaterales | C16: 6459.795086 | D16: 0.1358250668 | E16: 0.07055158769
B17: Bilaterales | C17: 2023.310968 | D17: 0.04254257971 | E17: 0.0220978838
B18: Interna | C18: 14438.29363 | D18: 0.3035827251 | E18: 0.1576899151
B19: Bonos de Subasta | C19: 11453.96632 | D19: 0.2408336053 | E19: 0.1250961522
B20: Bonos de Recapitalización del Banco Central | C20: 2330.324651 | D20: 0.04899791667 | E20: 0.02545097821
B21: Bancos Comerciales u otras Instituciones Financieras | C21: ='[99]Saldo-Evolución Agosto-21'!$M$39+'[99]Saldo-Evolución Agosto-21'!$M$48 -> 654.0026546 | D21: 0.0137512031 | E21: 0.00714278472
B22: Total | C22: =C11+C18 -> 47559.66803 | D22: 1 | E22: 0.5194298031
B23: Nota: *Cifras preliminares al 31 de agosto del 2021
B24: El PIB empleado corresponde a la actualización del 26 de agosto 2021 del Panorama Macroeconómico
B25: Fuente: Dirección General de Crédito Público

Sheet Tabla 21
A1: MINISTERIO DE HACIENDA
A2: DIRECCIÓN GENERAL DE PRESUPUESTO
A3: DIRECCIÓN DE ESTUDIOS ECONÓMICOS Y SEGUIMIENTO FINANCIERO
B6: Tabla 21. Organismos Autónomos y Descentralizados No Financieros e Instituciones Públicas de la Seguridad Social registradas en el SIGEF
B7: Período Enero-Septiembre 2021
B8: Valores en millones RD$
B9: Ambito Institucional | C9: Instituciones Existentes | E9: Instituciones con Ejecución registrada en el SIGEF | G9: % de los con Ejecución en el SIGEF
C11: 2020 | D11: 2021 | E11: 2020 | F11: 2021 | G11: 2020 | H11: 2021
B12: Organismos Autónomos y Descentralizados No Financieros | C12: 58 | D12: 58 | E12: 50 | F12: 48 | G12: =E12/C12 -> 0.8620689655 | H12: 0.8275862069
B13: Instituciones Públicas de la Seguridad Social | C13: 6 | D13: 8 | E13: 3 | F13: 5 | G13: 0.5 | H13: 0.625
B14: Total | C14: =C12+C13 -> 64 | D14: =D12+D13 -> 66 | E14: 53 | F14: 53 | G14: 0.828125 | H14: 0.803030303
B15: Fuente: Sistema de la Información de la Gestión Financiera (SIGEF)

Sheet Tabla 22
A1: MINISTERIO DE HACIENDA
A2: DIRECCIÓN GENERAL DE PRESUPUESTO
A3: DIRECCIÓN DE ESTUDIOS ECONÓMICOS Y SEGUIMIENTO FINANCIERO
B5: Tabla 22. Gasto Total por Ambito Gubernamental
B6: Enero - Sept. 2020 y 2021 | M6: PIB Nominal | N6: 5.294508964e+12
B7: Valores en millones RD$ y % del PIB
B8: DETALLE 2/ | C8: 2020 | D8: 2021 | I8: 2021/2020 | K8: %PIB 1/
C9: EJECUCIÓN | D9: PRESUPUESTO INICIAL | E9: COMPROMETIDO | F9: EJECUCIÓN | G9: PAGADO | H9: % EJECUCIÓN | I9: VARIACIÓN
I10: ABS. | J10: REL.
C11: 1 | D11: 2 | E11: 3 | F11: 4 | G11: 5 | H11: 6 = (4/2) | I11: 7 = (4-1) | J11: 8 = (7/1) | K11: 9 = (4/PIB)
B12: Organismos Autónomos y Descentralizados No Financieros | C12: 5.161175568e+10 | D12: 122275026084 | E12: 6.206741613e+10 | F12: 5.841713782e+10 | G12: 5.75623502e+10 | H12: =F12/D12 -> 0.4777519964 | I12: =F12-C12 -> 6805382140 | J12: =I12/C12 -> 0.1318572107 | K12: =F12/$N$6 -> 0.01103353271
B13: Instituciones de la Seguridad Social | C13: 9162934113 | D13: 57199003232 | E13: 1.27913598e+10 | F13: 1.266813065e+10 | G13: 1.261694692e+10 | H13: =F13/D13 -> 0.221474675 | I13: =F13-C13 -> 3505196537 | J13: =I13/C13 -> 0.3825408427 | K13: =F13/$N$6 -> 0.002392692266
B14: Total | C14: =SUM(C12:C13) -> 6.077468979e+10 | D14: =SUM(D12:D13) -> 179474029316 | E14: 7.485877592e+10 | F14: 7.108526847e+10 | G14: 7.017929712e+10 | H14: 0.3960755143 | I14: =F14-C14 -> 1.031057868e+10 | J14: =I14/C14 -> 0.1696525102 | K14: 0.01342622497
B15: Notas: *Cifras Preliminares
B16: Fecha de Registro 15 de octubre / Fecha de Imputación 30 de Septiembre
B17: PIB Nominal estimado para el año 2021 en el Marco Macroeconómico revisado al 26 de Agosto (RD$5,126,270.1 millones)
B18: Fuente: Sistema de la Información de la Gestión Financiera (SIGEF)

Sheet Tabla 23
A1: MINISTERIO DE HACIENDA
A2: DIRECCIÓN GENERAL DE PRESUPUESTO
A3: DIRECCIÓN DE ESTUDIOS ECONÓMICOS Y SEGUIMIENTO FINANCIERO
B6: Tabla 23. Gasto por la Clasificación Económica
B7: Enero - Sept. 2020 y 2021 | M7: PIB Nominal | N7: 5.294508964e+12
B8: Valores en millones RD$ y % del PIB
B9: DETALLE | C9: 2020 | D9: 2021 | I9: 2021/2020 | K9: %PIB 1/
C10: EJECUCIÓN | D10: PRESUPUESTO INICIAL | E10: COMPROMETIDO | F10: EJECUCIÓN | G10: PAGADO | H10: % EJECUCIÓN | I10: VARIACIÓN
I11: ABS. | J11: REL.
C12: 1 | D12: 2 | E12: 3 | F12: 4 | G12: 5 | H12: 6 = (4/2) | I12: 7 = (4-1) | J12: 8 = (7/1) | K12: 9 = (4/PIB)
B13: 1.1.1.1.2 - Organismos Autónomos y Descentralizados No Financieros | C13: =C14+C23 -> 5.161175568e+10 | D13: =D14+D23 -> 122275026084 | E13: =E14+E23 -> 6.206741613e+10 | F13: 5.841713782e+10 | G13: 5.75623502e+10 | H13: =F13/D13 -> 0.4777519964 | I13: =F13-C13 -> 6805382140 | J13: =+(F13/C13)-1 -> 0.1318572107 | K13: =F13/$N$7 -> 0.01103353271
B14: 2.1 - Gastos corrientes | C14: =C15+C19+C20+C21+C22 -> 4.682963653e+10 | D14: 93496036689 | E14: 5.420109741e+10 | F14: 5.27071587e+10 | G14: 5.220984126e+10 | H14: =F14/D14 -> 0.5637368232 | I14: =F14-C14 -> 5877522172 | J14: =+(F14-C14)/C14 -> 0.1255086011 | K14: =F14/$N$7 -> 0.009955060812
B15: 2.1.2 - Gastos de consumo | C15: 4.655294055e+10 | D15: 91056733378 | E15: 5.400870906e+10 | F15: 5.252047035e+10 | G15: 5.203396261e+10 | H15: =F15/D15 -> 0.5767884307 | I15: 5967529805 | J15: =+(F15-C15)/C15 -> 0.1281880314 | K15: 0.009919800063
B16: 2.1.2.1 - Remuneraciones | C16: 3.988400658e+10 | D16: 70297794000 | E16: 4.655682107e+10 | F16: 4.57344493e+10 | G16: 4.566039239e+10 | H16: =F16/D16 -> 0.6505815716 | I16: =F16-C16 -> 5850442724 | J16: =+(F16-C16)/C16 -> 0.1466864346 | K16: =F16/$N$7 -> 0.008638090825
B17: 2.1.2.2 - Bienes y servicios | C17: 6649189511 | D17: 20460458596 | E17: 7425020202 | F17: 6759153262 | G17: 6346707310 | H17: 0.3303519924 | I17: 109963751.2 | J17: 0.01653791805 | K17: 0.001276634587
B18: 2.1.2.4 - Impuestos sobre los productos, la producción y las importaciones de las empresas | C18: 19744455.05 | D18: 298480782 | E18: 26867784.81 | F18: 26867784.81 | G18: 26862910.5 | H18: 0.09001512469 | I18: 7123329.76 | J18: 0.360776215 | K18: 5.074650925e-06
B19: 2.1.3 - Prestaciones de la seguridad social (sistema propio de la empresa) | C19: 0 | D19: 1551339667 | E19: 0 | F19: 0 | G19: 0 | H19: 0 | I19: 0 | J19: - | K19: 0
B20: 2.1.4 - Intereses de la deuda | C20: 350291.87 | D20: 30802659 | E20: 0 | F20: 0 | G20: 0 | H20: 0 | I20: -350291.87 | J20: - | K20: 0
B21: 2.1.6 - Transferencias corrientes otorgadas | C21: 276304233.2 | D21: 814550855 | E21: 192369091.8 | F21: 186669091.8 | G21: 175859390.8 | H21: 0.2291681246 | I21: -89635141.38 | J21: =+(F21-C21)/C21 -> -0.3244074126 | K21: 3.52571113e-05
B22: 2.1.9 - Otros gastos corrientes | C22: 41457.37 | D22: 42610130 | E22: 19258.02 | F22: 19258.02 | G22: 19258.02 | H22: 0.0004519587244 | I22: -22199.35 | J22: -0.5354741509 | K22: 3.637357143e-09
B23: 2.2 - Gastos de capital | C23: =SUM(C24:C29) -> 4782119147 | D23: 28778989395 | E23: 7866318717 | F23: 5709979115 | G23: 5352508939 | H23: 0.1984079092 | I23: 927859968.4 | J23: 0.1940269449 | K23: 0.001078471895
B24: 2.2.1 - Construcciones en proceso | C24: 3316804824 | D24: 17210921062 | E24: 5164637508 | F24: 4400915154 | G24: 4215404267 | H24: 0.2557048015 | I24: 1084110330 | J24: 0.3268538208 | K24: 0.0008312225334
B25: 2.2.2 - Activos fijos (formación bruta de capital fijo) | C25: 1369479551 | D25: 7137202747 | E25: 2578377086 | F25: 1186890543 | G25: 1023894790 | H25: 0.1662963188 | I25: -182589007.5 | J25: -0.1333272975 | K25: 0.000224173866
B26: 2.2.4 - Objetos de valor | C26: 6412377.77 | D26: 29213827 | E26: 1852299.44 | F26: 1571599.44 | G26: 847999.44 | H26: 0.05379642455 | I26: -4840778.33 | J26: -0.754911595 | K26: 2.968357313e-07
B27: 2.2.5 - Activos no producidos | C27: 64372068.59 | D27: 316250400 | E27: 105037328.3 | F27: 104187323.3 | G27: 97213921.06 | H27: 0.3294456648 | I27: 39815254.69 | J27: 0.6185175583 | K27: 1.96783732e-05
B28: 2.2.6 - Transferencias de capital otorgadas | C28: 25050325.84 | D28: 4070159091 | E28: 16414495.52 | F28: 16414495.52 | G28: 15147962.45 | H28: 0.004032887942 | I28: -8635830.32 | J28: -0.3447392411 | K28: 3.100286662e-06
B29: 2.2.7 - Inversiones financieras realizadas con fines de política | C29: 0 | D29: 15242268 | E29: 0 | F29: 0 | G29: 0 | H29: 0 | I29: 0 | J29: - | K29: 0
B30: 1.1.1.1.3 - Instituciones de la Seguridad Social | C30: =C31+C36 -> 9162934113 | D30: =D31+D36 -> 57199003232 | E30: 1.27913598e+10 | F30: 1.266813065e+10 | G30: 1.261694692e+10 | H30: 0.221474675 | I30: 3505196537 | J30: =+(F30-C30)/C30 -> 0.3825408427 | K30: 0.002392692266
B31: 2.1 - Gastos corrientes | C31: 9109636562 | D31: 56765034563 | E31: 1.270096689e+10 | F31: 1.261813231e+10 | G31: 1.256708845e+10 | H31: =F31/D31 -> 0.2222870542 | I31: 3508495752 | J31: =+(F31-C31)/C31 -> 0.3851411335 | K31: 0.002383248834
B32: 2.1.2 - Gastos de consumo | C32: 722566796.1 | D32: 39299957947 | E32: 1244340408 | F32: 1161513837 | G32: 1110469976 | H32: 0.02955509108 | I32: 438947040.5 | J32: =+(F32-C32)/C32 -> 0.6074829938 | K32: 0.0002193808424
B33: 2.1.3 - Prestaciones de la seguridad social (sistema propio de la empresa) | C33: 14321489.6 | D33: 35821015 | E33: 13724880.2 | F33: 13716880.2 | G33: 13716880.2 | H33: 0.382928295 | I33: -604609.4 | J33: =+(F33-C33)/C33 -> -0.04221693531 | K33: 2.590774762e-06
B34: 2.1.6 - Transferencias corrientes otorgadas | C34: 8372748277 | D34: 17428528801 | E34: 1.144288242e+10 | F34: 1.144288242e+10 | G34: 1.144288242e+10 | H34: 0.656560433 | I34: 3070134139 | J34: =+(F34-C34)/C34 -> 0.3666817678 | K34: 0.002161273594
B35: 2.1.9 - Otros gastos corrientes | C35: 0 | D35: 726800 | E35: 19181.28 | F35: 19181.28 | G35: 19181.28 | H35: 0.02639141442 | I35: 19181.28 | J35: - | K35: 3.622862882e-09
B36: 2.2 - Gastos de capital | C36: 53297550.14 | D36: 433968669 | E36: 90392912.1 | F36: 49998335.44 | G36: 49858469.33 | H36: 0.1152118552 | I36: -3299214.7 | J36: =+(F36-C36)/C36 -> -0.06190180771 | K36: 9.443432013e-06
B37: 2.2.2 - Activos fijos (formación bruta de capital fijo) | C37: 0 | D37: 0 | E37: 0 | F37: 0 | G37: 0 | H37: - | I37: 0 | J37: - | K37: 0
B38: 2.2.4 - Objetos de valor | C38: 46869215.58 | D38: 390065751 | E38: 90392912.1 | F38: 49998335.44 | G38: 49858469.33 | H38: 0.1281792501 | I38: 3129119.86 | J38: - | K38: 9.443432013e-06
B39: 2.2.5 - Activos no producidos | C39: 6428334.56 | D39: 42402918 | E39: 0 | F39: 0 | G39: 0 | H39: 0 | I39: -6428334.56 | J39: =+(F39-C39)/C39 -> -1 | K39: 0
B40: 2.2.6 - Transferencias de capital otorgadas | C40: 0 | D40: 1500000 | E40: 0 | F40: 0 | G40: 0 | H40: 0 | I40: 0 | J40: - | K40: 0
B41: 2.2.7 - Inversiones financieras realizadas con fines de política | C41: 0 | D41: 4329262452 | E41: 0 | F41: 0 | G41: 0 | H41: 0 | I41: 0 | J41: - | K41: 0
B42: Total | C42: =C13+C30 -> 6.077468979e+10 | D42: 179474029316 | E42: =E13+E30 -> 7.485877592e+10 | F42: =F13+F30 -> 7.108526847e+10 | G42: =G13+G30 -> 7.017929712e+10 | H42: 0.3960755143 | I42: =F42-C42 -> 1.031057868e+10 | J42: =+(F42-C42)/C42 -> 0.1696525102 | K42: 0.01342622497
B43: *Cifras Preliminares
B44: Nota: 1/ PIB Nominal estimado para el año 2021 en el Marco Macroeconómico revisado al 26 de agosto (RD$5,294,509.0 millones)
B45: 2/ Instituciones registradas en el SIGEF.
B46: Fuente: Sistema de la Información de la Gestión Financiera (SIGEF)
K48: 4936862.2

Sheet Tabla 24
A1: MINISTERIO DE HACIENDA
A2: DIRECCIÓN GENERAL DE PRESUPUESTO
A3: DIRECCIÓN DE ESTUDIOS ECONÓMICOS Y SEGUIMIENTO FINANCIERO
B6: Tabla 24. Ejecución de Gastos por Clasificación Económica
B7: Trimestral 2020 y 2021
B8: Valores en millones RD$ y % del PIB
B9: DETALLE | C9: 2021 | F9: Devengado Acumulado
C10: 1ER TRIMESTRE | D10: 2do TRIMESTRE | E10: 3er TRIMESTRE
C12: DEVENGADO
C13: 1 | D13: 2 | E13: 3 | F13: 4
B14: 1.1.1.1.2 - Organismos Autónomos y Descentralizados no Financieros | C14: 1.685504017e+10 | D14: 1.969750504e+10 | E14: 2.18645926e+10 | F14: =C14+D14+E14 -> 5.841713782e+10
B15: 2.1 - Gastos corrientes | C15: 1.603180713e+10 | D15: 1.712300103e+10 | E15: 1.955235054e+10 | F15: =C15+D15+E15 -> 5.27071587e+10
B16: 2.1.2 - Gastos de consumo | C16: 1.599198927e+10 | D16: 1.704723677e+10 | E16: 1.948124431e+10 | F16: 5.252047035e+10
B17: 2.1.2.1 - Remuneraciones | C17: 1.474905175e+10 | D17: 1.456972887e+10 | E17: 1.641566868e+10 | F17: 4.57344493e+10
B18: 2.1.2.2 - Bienes y servicios | C18: 1236751555 | D18: 2470374086 | E18: 3052027622 | F18: 6759153262
B19: 2.1.2.4 - Impuestos sobre los productos, la producción y las importaciones de las empresas | C19: 6185969.99 | D19: 7133814.61 | E19: 13548000.21 | F19: 26867784.81
B20: 2.1.3 - Prestaciones de la seguridad social (sistema propio de la empresa) | C20: 0 | D20: 0 | E20: 0 | F20: 0
B21: 2.1.4 - Intereses de la deuda | C21: 0 | D21: 0 | E21: 0 | F21: 0
B22: 2.1.6 - Transferencias corrientes otorgadas | C22: 39812047.59 | D22: 75750808.7 | E22: 71106235.54 | F22: 186669091.8
B23: 2.1.9 - Otros gastos corrientes | C23: 5814.87 | D23: 13443.15 | E23: 0 | F23: 19258.02
B24: 2.2 - Gastos de capital | C24: 823233035.9 | D24: 2574504018 | E24: 2312242061 | F24: 5709979115
B25: 2.2.1 - Construcciones en proceso | C25: 669211692.8 | D25: 1908465539 | E25: 1823237922 | F25: 4400915154
B26: 2.2.2 - Activos fijos (formación bruta de capital fijo) | C26: 138317710.2 | D26: 571079117.7 | E26: 477493715.2 | F26: 1186890543
B27: 2.2.4 - Objetos de valor | C27: 0 | D27: 0 | E27: 1571599.44 | F27: 1571599.44
B28: 2.2.5 - Activos no producidos | C28: 2876999.64 | D28: 92964187.19 | E28: 8346136.45 | F28: 104187323.3
B29: 2.2.6 - Transferencias de capital otorgadas | C29: 12826633.34 | D29: 1995174.44 | E29: 1592687.74 | F29: 16414495.52
B30: 2.2.7 - Inversiones financieras realizadas con fines de política | C30: 0 | D30: 0 | E30: 0 | F30: 0
B31: 1.1.1.1.3 - Instituciones de la seguridad social | C31: 3165554026 | D31: 6248798717 | E31: 3253777906 | F31: 1.266813065e+10
B32: 2.1 - Gastos corrientes | C32: 3158062799 | D32: 6225133039 | E32: 3234936477 | F32: 1.261813231e+10
B33: 2.1.2 - Gastos de consumo | C33: 267082135 | D33: 524221156.8 | E33: 370210544.9 | F33: 1161513837
B34: 2.1.2.1 - Remuneraciones | C34: 222672156.3 | D34: 371218225.6 | E34: 249569983.5 | F34: =C34+D34+E34 -> 843460365.5
B35: 2.1.2.2 - Bienes y servicios | C35: 44409978.72 | D35: 152927152.4 | E35: 120640561.4 | F35: 317977692.5
B36: 2.1.2.4 - Impuestos sobre los productos, la producción y las importaciones de las empresas | C36: 0 | D36: 75778.74 | E36: 0 | F36: 75778.74
B37: 2.1.3 - Prestaciones de la seguridad social (sistema propio de la empresa) | C37: 4617069.9 | D37: 4601069.9 | E37: 4498740.4 | F37: 13716880.2
B38: 2.1.6 - Transferencias corrientes otorgadas | C38: 2886344412 | D38: 5696310812 | E38: 2860227191 | F38: =C38+D37+E38 -> 5751172674
B39: 2.1.9 - Otros gastos corrientes | C39: 19181.28 | D39: 0 | E39: 0 | F39: =C39+D38+E39 -> 5696329994
B40: 2.2 - Gastos de capital | C40: 7491227.2 | D40: 23665678.37 | E40: 18841429.87 | F40: 49998335.44
B41: 2.2.1 - Construcciones en proceso | C41: 0 | D41: 0 | E41: 0 | F41: 0
B42: 2.2.2 - Activos fijos (formación bruta de capital fijo) | C42: 7491227.2 | D42: 23665678.37 | E42: 0 | F42: 31156905.57
B43: 2.2.4 - Objetos de valor | C43: 0 | D43: 0 | E43: 0 | F43: 0
B44: 2.2.5 - Activos no producidos | C44: 0 | D44: 0 | E44: 18841429.87 | F44: 18841429.87
B45: 2.2.6 - Transferencias de capital otorgadas | C45: 0 | D45: 0 | E45: 0 | F45: 0
B46: 2.2.7 - Inversiones financieras realizadas con fines de política | C46: 0 | D46: 0 | E46: 0 | F46: 0
B47: Total | C47: =C31+C14 -> 2.00205942e+10 | D47: =D31+D14 -> 2.594630376e+10 | E47: =E31+E14 -> 2.511837051e+10 | F47: =C47+D47+E47 -> 7.108526847e+10
B48: Notas: *Cifras Preliminares
B49: Fuente: Sistema de la Información de la Gestión Financiera (SIGEF) | G49: 4936862.2

Sheet Tabla 25
A1: MINISTERIO DE HACIENDA
A2: DIRECCIÓN GENERAL DE PRESUPUESTO
A3: DIRECCIÓN DE ESTUDIOS ECONÓMICOS Y SEGUIMIENTO FINANCIERO
B5: Tabla 25. Gasto por la Clasificación Institucional
B6: Enero - Septiembre 2020 y 2021
B7: Valores en millones RD$ y % del PIB | M7: PIB Nominal | N7: 5.294508964e+12
B8: DETALLE | C8: 2020 | D8: 2021 | I8: 2021/2020 | K8: %PIB
C9: EJECUCIÓN | D9: PRESUPUESTO INICIAL | E9: COMPROMETIDO | F9: EJECUCIÓN | G9: PAGADO | H9: % EJECUCIÓN | I9: VARIACIÓN
I10: ABS. | J10: REL.
C11: 1 | D11: 2 | E11: 3 | F11: 4 | G11: 5 | H11: 6 = (4/2) | I11: 7 = (4-1) | J11: 8 = (7/1) | K11: 9 = (4/PIB)
B12: 1.1.1.1.2 - Organismos Autónomos y Descentralizados No Financieros
B13: 5102 - CENTRO DE EXPORTACIONES E INVERSIONES DE LA REP. DOM. | C13: 207362164.4 | D13: 448455814 | E13: 298268752.2 | F13: 268984605.7 | G13: 267306724.6 | H13: =F13/D13 -> 0.5998018028 | I13: =F13-C13 -> 61622441.34 | J13: =I13/C13 -> 0.2971730235 | K13: =F13/$N$7 -> 5.080444807e-05
B14: 5103 - CONSEJO NACIONAL DE POBLACIÓN Y FAMILIA | C14: 39275668.07 | D14: 55261154 | E14: 42365899.29 | F14: 42365899.29 | G14: 41626624.28 | H14: 0.7666488342 | I14: =F14-C14 -> 3090231.22 | J14: =I14/C14 -> 0.07868055139 | K14: 8.001856184e-06
B15: 5104 - DEPARTAMENTO AEROPORTUARIO | C15: 0 | D15: 882120030 | E15: 0 | F15: 0 | G15: 0 | H15: 0 | I15: 0 | J15: - | K15: 0
B16: 5108 - CRUZ ROJA DOMINICANA | C16: 0 | D16: 561959298 | E16: 0 | F16: 0 | G16: 0 | H16: 0 | I16: 0 | J16: - | K16: 0 | P16: `
B17: 5109 - DEFENSA CIVIL | C17: 140654169.1 | D17: 179615540 | E17: 123287873.9 | F17: 121385350.8 | G17: 119741829.3 | H17: 0.6758065079 | I17: -19268818.2 | J17: -0.1369942912 | K17: 2.292664942e-05
B18: 5111 - INSTITUTO AGRARIO DOMINICANO | C18: 1118293259 | D18: 2108317326 | E18: 1221399032 | F18: 1100288376 | G18: 1068967176 | H18: 0.521879872 | I18: -18004882.94 | J18: -0.01610032323 | K18: 0.000207816888
B19: 5112 - INSTITUTO AZUCARERO DOMINICANO | C19: 31292554.55 | D19: 64929321 | E19: 28779624.1 | F19: 28385647.25 | G19: 28385647.25 | H19: 0.4371776389 | I19: -2906907.3 | J19: -0.09289453488 | K19: 5.361337084e-06
B20: 5114 - INSTITUTO PARA EL DESARROLLO DEL NOROESTE | C20: 12390098.1 | D20: 20352056 | E20: 14573537.66 | F20: 14504333.66 | G20: 14467777.03 | H20: 0.7126716662 | I20: 2114235.56 | J20: 0.17063913 | K20: 2.739504978e-06
B21: 5118 - INSTITUTO NACIONAL DE RECURSOS HIDRAÚLICOS (INDRHI) | C21: 4278854349 | D21: 7731561024 | E21: 3867428759 | F21: 3675710192 | G21: 3455063623 | H21: 0.4754163073 | I21: -603144156.7 | J21: -0.1409592633 | K21: 0.0006942494984
B22: 5119 - INSTITUTO PARA EL DESARROLLO DEL SUROESTE | C22: 90387634.05 | D22: 144144665 | E22: 79833802.24 | F22: 79833802.24 | G22: 77737491.24 | H22: 0.5538450018 | I22: -10553831.81 | J22: -0.1167618991 | K22: 1.507860366e-05
B23: 5120 - JARDÍN BOTÁNICO | C23: 77039769.84 | D23: 138883315 | E23: 72497634.25 | F23: 67622713.47 | G23: 66679876.05 | H23: 0.4869030774 | I23: -9417056.37 | J23: -0.1222362994 | K23: 1.277223515e-05
B24: 5121 - LIGA MUNICIPAL DOMINICANA | C24: 0 | D24: 1482683854 | E24: 0 | F24: 0 | G24: 0 | H24: 0 | I24: 0 | J24: - | K24: 0
B25: 5127 - SUPERINTENDENCIA DE SEGUROS | C25: 335385690.4 | D25: 604073784 | E25: 478199433.9 | F25: 452120016.6 | G25: 450225218.9 | H25: 0.7484516438 | I25: 116734326.2 | J25: 0.3480599488 | K25: 8.539413565e-05
B26: 5128 - UNIVERSIDAD AUTÓNOMA DE SANTO DOMINGO | C26: 0 | D26: 10097941619 | E26: 0 | F26: 0 | G26: 0 | H26: 0 | I26: 0 | J26: - | K26: 0
B27: 5130 - PARQUE ZOOLÓGICO NACIONAL | C27: 60029160.26 | D27: 120603805 | E27: 60094611.88 | F27: 56971934.48 | G27: 55036751.37 | H27: 0.472389196 | I27: -3057225.78 | J27: -0.05092901128 | K27: 1.076057003e-05
B28: 5131 - INSTITUTO DOMINICANO DE LAS TELECOMUNICACIONES | C28: 1102022463 | D28: 1826952337 | E28: 915576841 | F28: 915576841 | G28: 887983058.7 | H28: 0.5011498234 | I28: -186445621.8 | J28: -0.1691849559 | K28: 0.0001729295101
B29: 5132 - INSTITUTO DOMINICANO DE INVESTIGACIONES AGROPECUARIAS Y FORESTALES | C29: 205801496.8 | D29: 353639457 | E29: 232987083.9 | F29: 216526725.3 | G29: 215279088.2 | H29: 0.6122810139 | I29: 10725228.54 | J29: 0.0521144341 | K29: 4.089646968e-05
B30: 5133 - MUSEO DE HISTORIA NATURAL | C30: 36836550.37 | D30: 61340923 | E30: 43810709.43 | F30: 39276619.37 | G30: 38015665.18 | H30: 0.6403004299 | I30: 2440069 | J30: 0.06624043173 | K30: 7.418368661e-06
B31: 5134 - ACUARIO NACIONAL | C31: 47099928.05 | D31: 93535893 | E31: 46387506.07 | F31: 44283562.5 | G31: 43591019.66 | H31: 0.4734392443 | I31: -2816365.55 | J31: -0.05979553827 | K31: 8.364054685e-06
B32: 5135 - OFICINA NACIONAL DE PROPIEDAD INDUSTRIAL | C32: 232864373.7 | D32: 523484587 | E32: 298348372.3 | F32: 291161302.3 | G32: 288194654.5 | H32: 0.556198424 | I32: 58296928.56 | J32: 0.2503471339 | K32: 5.499307005e-05
B33: 5136 - INSTITUTO DOMINICANO DEL CAFÉ | C33: 222390623.8 | D33: 368903703 | E33: 263054367.4 | F33: 234666844.2 | G33: 230309475.8 | H33: 0.6361195139 | I33: 12276220.47 | J33: 0.05520116029 | K33: 4.432268334e-05
B34: 5137 - INSTITUTO DUARTIANO | C34: 13012017.63 | D34: 22119887 | E34: 17990154.72 | F34: 12710289.67 | G34: 11776471.38 | H34: 0.5746091592 | I34: -301727.96 | J34: -0.02318840695 | K34: 2.400655048e-06
B35: 5138 - COMISIÓN NACIONAL DE ENERGÍA | C35: 105911103.6 | D35: 565251696 | E35: 93292418.83 | F35: 92838037.32 | G35: 92838037.32 | H35: 0.1642419439 | I35: -13073066.27 | J35: -0.1234343315 | K35: 1.753477763e-05
B36: 5139 - SUPERINTENDENCIA DE ELECTRICIDAD | C36: 367299530.1 | D36: 968252301 | E36: 332931833.8 | F36: 332385037.3 | G36: 332385037.3 | H36: 0.3432834985 | I36: -34914492.87 | J36: -0.09505727616 | K36: 6.277920003e-05
B37: 5140 - INSTITUTO DEL TABACO DE LA REPÚBLICA DOMINICANA | C37: 218176905.8 | D37: 349483373 | E37: 239676329.1 | F37: 217964008.2 | G37: 215528189.7 | H37: 0.6236749013 | I37: -212897.6 | J37: -0.0009758026371 | K37: 4.116793638e-05
B38: 5142 - FONDO PATRIMONIAL DE LAS EMPRESAS REFORMADAS | C38: 0 | D38: 4465674848 | E38: 0 | F38: 0 | G38: 0 | H38: 0 | I38: 0 | J38: - | K38: 0
B39: 5143 - INSTITUTO DE DESARROLLO Y CRÉDITO COOPERATIVO | C39: 133634657.4 | D39: 274758122 | E39: 191298953.7 | F39: 181234528.9 | G39: 178626431.5 | H39: 0.6596148189 | I39: 47599871.5 | J39: 0.3561940625 | K39: 3.423065862e-05
B40: 5144 - FONDO ESPECIAL PARA EL DESARROLLO AGROPECUARIO | C40: 136256839.9 | D40: 233209241 | E40: 188006928.4 | F40: 167258276.3 | G40: 165635469.7 | H40: 0.7172026097 | I40: 31001436.37 | J40: 0.2275220561 | K40: 3.159089491e-05
B41: 5147 - INSTITUTO NACIONAL DE LA UVA | C41: 9484845.05 | D41: 19661848 | E41: 13775335.96 | F41: 12714085.96 | G41: 12714085.96 | H41: 0.6466373842 | I41: 3229240.91 | J41: 0.3404632224 | K41: 2.401372072e-06
B42: 5150 - CONSEJO NACIONAL DE ZONAS FRANCAS | C42: 109910381.3 | D42: 293795133 | E42: 141021716.4 | F42: 128121194.9 | G42: 124619538 | H42: 0.4360902566 | I42: 18210813.6 | J42: 0.1656878393 | K42: 2.419888148e-05
B43: 5151 - CONSEJO NACIONAL PARA LA NIÑEZ Y LA ADOLESCENCIA | C43: 626694968.9 | D43: 1352703441 | E43: 784567731.4 | F43: 712574161.3 | G43: 698021657.5 | H43: 0.5267778138 | I43: 85879192.4 | J43: 0.1370350755 | K43: 0.0001345873935
B44: 5152 - CONSEJO NACIONAL DE ESTANCIAS INFANTILES | C44: 7166226.62 | D44: 0 | E44: 0 | F44: 0 | G44: 0 | H44: - | I44: -7166226.62 | J44: -1 | K44: 0
B45: 5154 - INSTITUTO DE INNOVACION EN BIOTECNOLOGIA E INDUSTRIAL (IIBI) | C45: 107305679.2 | D45: 158671257 | E45: 109270899.6 | F45: 102305803.8 | G45: 100257385.9 | H45: 0.6447658243 | I45: -4999875.42 | J45: -0.04659469523 | K45: 1.932300134e-05
B46: 5155 - INSTITUTO DE FORMACIÓN TÉCNICO PROFESIONAL (INFOTEP) | C46: 0 | D46: 3577271422 | E46: 0 | F46: 0 | G46: 0 | H46: 0 | I46: 0 | J46: - | K46: 0
B47: 5157 - CORPORACION DOMICANA DE EMPRESAS ESTATALES (CORDE | C47: 0 | D47: 38590970 | E47: 0 | F47: 0 | G47: 0 | H47: 0 | I47: 0 | J47: - | K47: 0
B48: 5158 - DIRECCION GENERAL DE ADUANAS | C48: 2341686619 | D48: 6528104650 | E48: 2963806921 | F48: 2826889669 | G48: 2813075882 | H48: 0.4330337548 | I48: 485203049.5 | J48: 0.2072023838 | K48: 0.000533928583
B49: 5159 - DIRECCION GENERAL DE IMPUESTOS INTERNOS | C49: 0 | D49: 7774354671 | E49: 0 | F49: 0 | G49: 0 | H49: 0 | I49: 0 | J49: - | K49: 0
B50: 5161 - INSTITUTO DE PROTECCION DE LOS DERECHOS AL CONSUMIDOR | C50: 177338145.6 | D50: 264239385 | E50: 179236360.3 | F50: 174730954.3 | G50: 173397119.8 | H50: 0.6612600702 | I50: -2607191.33 | J50: -0.01470180779 | K50: 3.300229643e-05
B51: 5162 - INSTITUTO DOMINICANO DE AVIACIÓN CIVIL | C51: 2625569312 | D51: 3362776950 | E51: 2000148415 | F51: 2000148415 | G51: 2000148415 | H51: 0.5947906879 | I51: -625420897 | J51: -0.2382039179 | K51: 0.0003777778882
B52: 5163 - CONSEJO DOMINICANO DE PESCA Y ACUICULTURA | C52: 79556449.16 | D52: 161379501 | E52: 128254765.5 | F52: 123683398.5 | G52: 118283587.6 | H52: 0.766413316 | I52: 44126949.33 | J52: 0.5546621273 | K52: 2.3360693e-05
B53: 5164 - CONSEJO NAC. PARA LAS COMUNIDADES DOMINICANAS EN EL EXTERIOR (CONDEX) | C53: 13872637.52 | D53: 27622851 | E53: 0 | F53: 0 | G53: 0 | H53: 0 | I53: -13872637.52 | J53: -1 | K53: 0
B54: 5165 - COMISIÓN REGULADORA DE PRÁCTICAS DESLEALES | C54: 42117608.9 | D54: 70081379 | E54: 45199082.13 | F54: 41228844.43 | G54: 40429451.73 | H54: 0.58829956 | I54: -888764.47 | J54: -0.02110196883 | K54: 7.787095029e-06
B55: 5166 - COMISION NACIONAL DE DEFENSA DE LA COMPETENCIA | C55: 104161211.6 | D55: 167360446 | E55: 111213696 | F55: 111023327.7 | G55: 109709912.7 | H55: 0.6633785365 | I55: 6862116.1 | J55: 0.06587976457 | K55: 2.096952305e-05
B56: 5167 - OFICINA NACIONAL DE DEFENSA PÚBLICA | C56: 347932209.2 | D56: 551669483 | E56: 372346191.8 | F56: 361618398.7 | G56: 360161546.9 | H56: 0.6554982827 | I56: 13686189.48 | J56: 0.03933579334 | K56: 6.830064907e-05
B57: 5168 - ARCHIVO GENERAL DE LA NACIÓN | C57: 146650334.2 | D57: 275981915 | E57: 210810631.3 | F57: 166200282 | G57: 156694992.9 | H57: 0.6022143952 | I57: 19549947.8 | J57: 0.1333099437 | K57: 3.139106632e-05
B58: 5169 - DIRECCIÓN GENERAL DE CINE (DGCINE) | C58: 77617623.87 | D58: 135648963 | E58: 82352684.04 | F58: 74371196.21 | G58: 74135845.21 | H58: 0.5482621803 | I58: -3246427.66 | J58: -0.04182590884 | K58: 1.404685434e-05
B59: 5171 - INSTITUTO DOMINICANO PARA LA CALIDAD (INDOCAL) | C59: 153818763.8 | D59: 275000000 | E59: 182267404 | F59: 179373387.7 | G59: 176484454.9 | H59: 0.6522668642 | I59: 25554623.88 | J59: 0.1661346331 | K59: 3.38791357e-05
B60: 5172 - ORGANISMO DOMINICANO DE ACREDITACIÓN (ODAC) | C60: 59864221.23 | D60: 86127410 | E60: 65260200.42 | F60: 60863937.19 | G60: 58744955.76 | H60: 0.7066732552 | I60: 999715.96 | J60: 0.0166997238 | K60: 1.149567176e-05
B61: 5174 - MERCADOS DOMINICANOS DE ABASTO AGROPECUARIO | C61: 0 | D61: 209606416 | E61: 0 | F61: 0 | G61: 0 | H61: 0 | I61: 0 | J61: - | K61: 0
B62: 5175 - CONSEJO NACIONAL DE COMPETITIVIDAD | C62: 112718621.5 | D62: 179037612 | E62: 107684213.7 | F62: 99360468.68 | G62: 99159896.5 | H62: 0.5549698053 | I62: -13358152.85 | J62: -0.1185088379 | K62: 1.876670138e-05
B63: 5176 - CONSEJO NACIONAL DE DISCAPACIDAD (CONADIS) | C63: 158879849.8 | D63: 218045399 | E63: 109019712.5 | F63: 105650742.2 | G63: 105326036.2 | H63: 0.4845355267 | I63: -53229107.51 | J63: -0.3350274285 | K63: 1.995477635e-05
B64: 5177 - CONSEJO NAC. DE INVESTIGACIONES AGROPECUARIAS Y FORESTALES (CONIAF) | C64: 34054731.2 | D64: 64021984 | E64: 36067517.41 | F64: 35471676.66 | G64: 34584551.93 | H64: 0.55405463 | I64: 1416945.46 | J64: 0.04160788854 | K64: 6.69971038e-06
B65: 5178 - FONDO NACIONAL PARA EL MEDIO AMBIENTE Y RECURSOS NATURALES | C65: 8011798.11 | D65: 12104000 | E65: 10587444.56 | F65: 10587444.56 | G65: 10587444.56 | H65: 0.8747062591 | I65: 2575646.45 | J65: 0.3214816967 | K65: 1.99970283e-06
B66: 5179 - SERVICIO GEOLÓGICO NACIONAL | C66: 34041430.04 | D66: 55500000 | E66: 37159130.19 | F66: 36626592.59 | G66: 36536592.59 | H66: 0.6599386052 | I66: 2585162.55 | J66: 0.07594165542 | K66: 6.917845043e-06
B67: 5180 - DIRECCIÓN CENTRAL DEL SERVICIO NACIONAL DE SALUD | C67: 3.397313689e+10 | D67: 59481116473 | E67: 4.415001108e+10 | F67: 4.143353482e+10 | G67: 4.095645594e+10 | H67: 0.6965830044 | I67: 7460397932 | J67: 0.2195969703 | K67: 0.007825755911
B68: 5181 - INSTITUTO GEOGRÁFICO NACIONAL JOSÉ JOAQUÍN HUNGRÍA MORELL | C68: 40864764.98 | D68: 70370476 | E68: 49548087.76 | F68: 48524027.67 | G68: 48309386.08 | H68: 0.6895509371 | I68: 7659262.69 | J68: 0.1874295054 | K68: 9.164972239e-06
B69: 5182 - INSTITUTO NACIONAL DE TRÁNSITO Y TRANSPORTE TERRESTRE | C69: 908107860.6 | D69: 1733518743 | E69: 625630850.8 | F69: 584924907.4 | G69: 581605016.8 | H69: 0.3374205844 | I69: -323182953.2 | J69: -0.3558860871 | K69: 0.0001104776499
B70: 5183 - UNIDAD DE ANÁLISIS FINANCIERO (UAF) | C70: 98921488.39 | D70: 207154333 | E70: 109393200 | F70: 99474204.98 | G70: 96866919.32 | H70: 0.4801936968 | I70: 552716.59 | J70: 0.005587426948 | K70: 1.878818332e-05
B71: 5184 - DIRECCIÓN GENERAL DE ALIANZAS PÚBLICO-PRIVADAS | C71: 0 | D71: 176000000 | E71: 292692390.3 | F71: 233080932 | G71: 230638250.2 | H71: 1.324323477 | I71: 233080932 | J71: - | K71: 4.402314428e-05
B72: Total | C72: =SUM(C13:C71) -> 5.161175568e+10 | D72: =SUM(D13:D71) -> 122275026084 | E72: 6.206741613e+10 | F72: =SUM(F13:F71) -> 5.841713782e+10 | G72: 5.75623502e+10 | H72: 28.73574564 | I72: =F72-C72 -> 6805382140 | J72: -0.2431198833 | K72: 0.01103353271
B73: *Cifras Peliminares
B74: Nota: PIB Nominal estimado para el año 2021 en el Marco Macroeconómico revisado al 26 de agosto (RD$5,294,509.0 millones)
B75: Fuente: Sistema de la Información de la Gestión Financiera (SIGEF)
K79: 4936862.2

Sheet Tabla 26
A1: MINISTERIO DE HACIENDA
A2: DIRECCIÓN GENERAL DE PRESUPUESTO
A3: DIRECCIÓN DE ESTUDIOS ECONÓMICOS Y SEGUIMIENTO FINANCIERO
B5: Tabla 26. Ejecución de Gastos por Clasificación Institucional
B6: Julio - Sept. 2020 y 2021
B7: Valores en millones RD$
B8: DETALLE | C8: 2021 | F8: Devengado Acumulado
C9: 1ER TRIMESTRE | D9: 2do TRIMESTRE | E9: 3er TRIMESTRE
C11: DEVENGADO
C12: 1 | D12: 2 | E12: 3 | F12: 4
B13: 1.1.1.1.2 - Organismos Autónomos y Descentralizados No Financieros
B14: 5102 - CENTRO DE EXPORTACIONES E INVERSIONES DE LA REP. DOM. | C14: 76842551.27 | D14: 98582638.6 | E14: 93559415.84 | F14: =C14+D14+E14 -> 268984605.7
B15: 5103 - CONSEJO NACIONAL DE POBLACIÓN Y FAMILIA | C15: 10267438.61 | D15: 17263445.65 | E15: 14835015.03 | F15: 42365899.29
B16: 5104 - DEPARTAMENTO AEROPORTUARIO | C16: 0 | D16: 0 | E16: 0 | F16: 0
B17: 5108 - CRUZ ROJA DOMINICANA | C17: 0 | D17: 0 | E17: 0 | F17: 0
B18: 5109 - DEFENSA CIVIL | C18: 40569148.74 | D18: 39451561 | E18: 41364641.11 | F18: 121385350.9
B19: 5111 - INSTITUTO AGRARIO DOMINICANO | C19: 299944335.9 | D19: 218431033.6 | E19: 581913006.7 | F19: 1100288376
B20: 5112 - INSTITUTO AZUCARERO DOMINICANO | C20: 9586728.68 | D20: 9474829.03 | E20: 9324089.54 | F20: 28385647.25
B21: 5114 - INSTITUTO PARA EL DESARROLLO DEL NOROESTE | C21: 4101500.16 | D21: 5256562.49 | E21: 5146271.01 | F21: 14504333.66
B22: 5118 - INSTITUTO NACIONAL DE RECURSOS HIDRAÚLICOS (INDRHI) | C22: 429214911.3 | D22: 1718315507 | E22: 1528179773 | F22: 3675710192
B23: 5119 - INSTITUTO PARA EL DESARROLLO DEL SUROESTE | C23: 32362546 | D23: 28002719.24 | E23: 19468537 | F23: 79833802.24
B24: 5120 - JARDÍN BOTÁNICO | C24: 21656209.58 | D24: 19733894.28 | E24: 26232609.61 | F24: 67622713.47
B25: 5121 - LIGA MUNICIPAL DOMINICANA | C25: 0 | D25: 0 | E25: 0 | F25: =C25+D26+E25 -> 168717559.7
B26: 5127 - SUPERINTENDENCIA DE SEGUROS | C26: 156656174.5 | D26: 168717559.7 | E26: 126746282.5 | F26: =C26+D28+E26 -> 302609550.1
B27: 5128 - UNIVERSIDAD AUTÓNOMA DE SANTO DOMINGO | C27: 0 | D27: 0 | E27: 0 | F27: 376048448.3
B28: 5130 - PARQUE ZOOLÓGICO NACIONAL | C28: 18007203.8 | D28: 19207093.19 | E28: 19757637.49 | F28: 106916170.4
B29: 5131 - INSTITUTO DOMINICANO DE LAS TELECOMUNICACIONES | C29: 394930246.6 | D29: 376048448.3 | E29: 144598146.2 | F29: 553807868.9
B30: 5132 - INSTITUTO DOMINICANO DE INVESTIGACIONES AGROPECUARIAS Y FORESTALES | C30: 67258130.08 | D30: 69151329.15 | E30: 80117266.07 | F30: 163711832.8
B31: 5133 - MUSEO DE HISTORIA NATURAL | C31: 10691834.93 | D31: 14279476.1 | E31: 14305308.34 | F31: 124060736
B32: 5134 - ACUARIO NACIONAL | C32: 11834524.9 | D32: 16336436.69 | E32: 16112600.91 | F32: 110078860
B33: 5135 - OFICINA NACIONAL DE PROPIEDAD INDUSTRIAL | C33: 86828507.48 | D33: 99063592.72 | E33: 105269202.1 | F33: 196301478.9
B34: 5136 - INSTITUTO DOMINICANO DEL CAFÉ | C34: 62493867.32 | D34: 82131734.2 | E34: 90041242.71 | F34: 189030467.5
B35: 5137 - INSTITUTO DUARTIANO | C35: 3499257.96 | D35: 4203769.34 | E35: 5007262.37 | F35: 117475350.8
B36: 5138 - COMISIÓN NACIONAL DE ENERGÍA | C36: 23807356.56 | D36: 36495357.52 | E36: 32535323.24 | F36: 139282229.7
B37: 5139 - SUPERINTENDENCIA DE ELECTRICIDAD | C37: 111417931.5 | D37: 108968830.4 | E37: 111998275.3 | F37: =C37+D40+E37 -> 275008263.8
B38: 5140 - INSTITUTO DEL TABACO DE LA REPÚBLICA DOMINICANA | C38: 58149835.17 | D38: 82939549.93 | E38: 76874623.06 | F38: =C38+D41+E38 -> 211427628.5
B39: 5142 - FONDO PATRIMONIAL DE LAS EMPRESAS REFORMADAS | C39: 0 | D39: 0 | E39: 0 | F39: =C39+D42+E39 -> 3264041.17
B40: 5143 - INSTITUTO DE DESARROLLO Y CRÉDITO COOPERATIVO | C40: 48125072.04 | D40: 51592056.94 | E40: 81517399.9 | F40: =C40+D43+E40 -> 175169743.2
B41: 5144 - FONDO ESPECIAL PARA EL DESARROLLO AGROPECUARIO | C41: 25310058.8 | D41: 76403170.28 | E41: 65545047.18 | F41: =C41+D44+E41 -> 366251066.5
B42: 5147 - INSTITUTO NACIONAL DE LA UVA | C42: 3317073.45 | D42: 3264041.17 | E42: 6132971.34 | F42: =C42+D46+E42 -> 47024490.05
B43: 5150 - CONSEJO NACIONAL DE ZONAS FRANCAS | C43: 32311905.05 | D43: 45527271.31 | E43: 50282018.57 | F43: =C43+D47+E43 -> 82593923.62
B44: 5151 - CONSEJO NACIONAL PARA LA NIÑEZ Y LA ADOLESCENCIA | C44: 196312294.6 | D44: 275395960.5 | E44: 240865906.2 | F44: =C44+D49+E44 -> 1575315363
B45: 5152 - CONSEJO NACIONAL DE ESTANCIAS INFANTILES | C45: 0 | D45: 0 | E45: 0 | F45: 0
B46: 5154 - INSTITUTO DE INNOVACION EN BIOTECNOLOGIA E INDUSTRIAL (IIBI) | C46: 26416851.63 | D46: 37574445.26 | E46: 38314506.92 | F46: 117096915.1
B47: 5155 - INSTITUTO DE FORMACIÓN TÉCNICO PROFESIONAL (INFOTEP) | C47: 0 | D47: 0 | E47: 0 | F47: 636018780.5
B48: 5157 - CORPORACION DOMICANA DE EMPRESAS ESTATALES (CORDEE) | C48: 0 | D48: 0 | E48: 0 | F48: 38128871.19
B49: 5158 - DIRECCION GENERAL DE ADUANAS | C49: 697744162.3 | D49: 1138137162 | E49: 991008344.4 | F49: 1688752507
B50: 5159 - DIRECCION GENERAL DE IMPUESTOS INTERNOS | C50: 0 | D50: 0 | E50: 0 | F50: 14812359.09
B51: 5161 - INSTITUTO DE PROTECCION DE LOS DERECHOS AL CONSUMIDOR | C51: 46195265.63 | D51: 52365556.55 | E51: 76170132.09 | F51: 165071898.6
B52: 5162 - INSTITUTO DOMINICANO DE AVIACIÓN CIVIL | C52: 605167916.9 | D52: 636018780.5 | E52: 758961717.8 | F52: 1490466356
B53: 5163 - CONSEJO DOMINICANO DE PESCA Y ACUICULTURA | C53: 31210172.98 | D53: 38128871.19 | E53: 54344354.32 | F53: 149841447.5
B54: 5164 - CONSEJO NAC. PARA LAS COMUNIDADES DOMINICANAS EN EL EXTERIOR (CONDEX) | C54: 0 | D54: 0 | F54: 34508804.5
B55: 5165 - COMISIÓN REGULADORA DE PRÁCTICAS DESLEALES | C55: 10747408.96 | D55: 14812359.09 | E55: 15669076.38 | F55: 92813777.29
B56: 5166 - COMISION NACIONAL DE DEFENSA DE LA COMPETENCIA | C56: 32338034.78 | D56: 42706500.88 | E56: 35978792.08 | F56: 87219694.97
B57: 5167 - OFICINA NACIONAL DE DEFENSA PÚBLICA | C57: 114254386.5 | D57: 126336721.4 | E57: 121027290.8 | F57: 235281677.3
B58: 5168 - ARCHIVO GENERAL DE LA NACIÓN | C58: 46682902.79 | D58: 64286920.17 | E58: 55230459.06 | F58: 135664125.8
B59: 5169 - DIRECCIÓN GENERAL DE CINE (DGCINE) | C59: 16864986.26 | D59: 34508804.5 | E59: 22997405.45 | F59: 76097426.37
B60: 5171 - INSTITUTO DOMINICANO PARA LA CALIDAD (INDOCAL) | C60: 51813748.87 | D60: 66397291.95 | E60: 61162346.84 | F60: 124536538.5
B61: 5172 - ORGANISMO DOMINICANO DE ACREDITACIÓN (ODAC) | C61: 19594425.14 | D61: 18902868.11 | E61: 22366643.94 | F61: 45797400.43
B62: 5174 - MERCADOS DOMINICANOS DE ABASTO AGROPECUARIO | C62: 0 | D62: 0 | E62: 0 | F62: 12237986.86
B63: 5175 - CONSEJO NACIONAL DE COMPETITIVIDAD | C63: 32463816.01 | D63: 33750763.98 | E63: 33145888.69 | F63: 1.337431428e+10
B64: 5176 - CONSEJO NACIONAL DE DISCAPACIDAD (CONADIS) | C64: 35411882.68 | D64: 36235034.66 | E64: 34003824.91 | F64: 87549072.69
B65: 5177 - CONSEJO NAC. DE INVESTIGACIONES AGROPECUARIAS Y FORESTALES (CONIAF) | C65: 11099001.86 | D65: 11560442.82 | E65: 12812231.98 | F65: 229219714.1
B66: 5178 - FONDO NACIONAL PARA EL MEDIO AMBIENTE Y RECURSOS NATURALES | C66: 3142174.07 | D66: 3836331.35 | E66: 3608939.14 | F66: =C66+D71+E66 -> 43337233.19
B67: 5179 - SERVICIO GEOLÓGICO NACIONAL | C67: 10337659.56 | D67: 12237986.86 | E67: 14050946.17 | F67: 101126401.8
B68: 5180 - DIRECCIÓN CENTRAL DEL SERVICIO NACIONAL DE SALUD | C68: 1.255186994e+10 | D68: 1.330870457e+10 | E68: 1.557296031e+10 | F68: 4.782233529e+10
B69: 5181 - INSTITUTO GEOGRÁFICO NACIONAL JOSÉ JOAQUÍN HUNGRÍA MORELL | C69: 12158050.84 | D69: 18133365.1 | E69: 18232611.73 | F69: 30390662.57
B70: 5182 - INSTITUTO NACIONAL DE TRÁNSITO Y TRANSPORTE TERRESTRE | C70: 177729074.9 | D70: 205308480.3 | E70: 201887352.3 | F70: 379616427.2
B71: 5183 - UNIDAD DE ANÁLISIS FINANCIERO (UAF) | C71: 25079366.78 | D71: 36586119.98 | E71: 37808718.22 | F71: 62888085
B72: 5184 - DIRECCIÓN GENERAL DE ALIANZAS PÚBLICO-PRIVADAS | C72: 61222298 | D72: 76737796.08 | E72: 95120837.92 | F72: 156343135.9
B73: Total | C73: =SUM(C14:C72) -> 1.685504017e+10 | D73: =SUM(D14:D72) -> 1.969750504e+10 | E73: =SUM(E14:E72) -> 2.18645926e+10 | F73: =C73+D73+E73 -> 58417137816
B74: *Cifras Peliminares
B75: Nota: PIB Nominal estimado para el año 2021 en el Marco Macroeconómico revisado al 26 de agosto (RD$5,294,509.0 millones)
B76: Fuente: Sistema de la Información de la Gestión Financiera (SIGEF)

Sheet Tabla 27
A1: MINISTERIO DE HACIENDA
A2: DIRECCIÓN GENERAL DE PRESUPUESTO
A3: DIRECCIÓN DE ESTUDIOS ECONÓMICOS Y SEGUIMIENTO FINANCIERO
E6: Tabla 27. Programación y Ejecución de Metas Físicas - Dirección Central del Servicio Nacional de Salud
E8: Enero-Septiembre 2021
E9: PROGRAMA | F9: PRODUCTOS | G9: UNIDAD DE MEDIDA | H9: META PROGRAMADA | I9: META LOGRADA | J9: % CUMPLIMIENTO EJECUCIÓN FISICA | K9: DEVENGADO (RD$ MILLONES)
E11: Atención de emergencias médicas | F11: Población que accede a servicios de atención pre hospitalaria y traslado sanitario | G11: No. personas atendidas en servicios pre hospitalario y traslado sanitario | H11: 329523 | I11: 401564 | J11: =I11/H11 -> 1.218622069 | K11: 2108969217
E12: Prevención y atención de la tuberculosis | F12: Pacientes TB con factores de baja adherencia reciben DOT domiciliario en Santo Domingo y el Distrito Nacional | G12: Número de pacientes con factores de baja adherencia reciben DOT domiciliario | H12: 3105 | I12: 2598 | J12: =I12/H12 -> 0.8367149758 | K12: 31387444.07
F13: Pacientes TB con factores de baja adherencia reciben soporte nutricional en provincias priorizadas | G13: Número de pacientes con factores de baja adherencia reciben soporte nutricional
F14: Pacientes TB reciben paquete de salud mental en Santo Domingo y el Distrito Nacional | G14: Número de pacientes reciben paquete salud mental
E15: Prevención, diagnóstico y tratamiento VIH/SIDA | F15: Pacientes viviendo con VIH SIDA en TARV en abandono reciben seguimiento según estrategia de recuperación en la región cibao central | G15: Número de paciente en abandono recuperados en la región cibao central | H15: 510 | I15: 1207 | J15: 2.366666667 | K15: 5749285.8
F16: Pacientes viviendo con VIH SIDA en TARV en abandono reciben seguimiento según estrategia de recuperación en la región el Valle | G16: Número de pacientes en abandono recuperados en la región el Valle
F17: Pacientes viviendo con VIH SIDA en TARV en abandono reciben seguimiento según estrategia de recuperación en la región Este | G17: Número de pacientes en abandono recuperados en la región Este
F18: Pacientes viviendo con VIH SIDA en TARV en abandono reciben seguimiento según estrategia de recuperación en la región Nordeste | G18: Número de pacientes en abandono recuperados en la región Nordeste
E19: Provisión de servicios de salud en establecimientos auto gestionados | F19: Personas acceden a servicios de rehabilitación mental Centro RESIDE | G19: Número de atenciones por tipo de servicio | H19: 2658056 | I19: 2624589 | J19: 0.9874092194 | K19: 4109319668
F20: Personas acceden a servicios de salud en el Hospital General de Especialidades Dr. Vinicio Calventi
F21: Personas acceden a servicios de salud en el Hospital General y Especializado Nuestra Señora de la Altagracia
F22: Personas acceden a servicios de salud especializado general en el Hospital Regional Dr. Marcelino Vélez Santana
F23: Personas acceden a servicios de salud especializados del Hospital Materno Dr. Reynaldo Almanzar
F24: Servicios de salud especializados del Hospital Pediátrico Dr. Hugo de Mendoza
F25: Personas acceden a servicios de salud especializados del Hospital Traumatológico Dr. Ney Arias Lora
F26: Personas acceden a servicios de salud especializados del Hospital Traumatológico y Quirúrgico Juan Bosch
F27: Personas acceden a servicios de salud especializados en oncología en Instituto Nacional del Cáncer Rosa Emilia
E28: Provisión de servicios de salud en establecimientos de primer nivel | F28: Acceso a servicios de salud en establecimientos de primer nivel en la región Cibao Central | G28: Número de atenciones por tipo de servicio | H28: 6344910 | I28: 7192904 | J28: 1.133649492 | K28: 79940622.35
F29: Acceso a servicios de salud en establecimientos de primer nivel en la región Cibao Occidental
F30: Acceso a servicios de salud en establecimientos de primer nivel en la región el Valle
F31: Acceso a servicios de salud en establecimientos de primer nivel en la región Enriquillo
F32: Acceso a servicios de salud en establecimientos de primer nivel en la región Este
F33: Acceso a servicios de salud en establecimientos de primer nivel en la región Metropolitana
F34: Acceso a servicios de salud en establecimientos de primer nivel en la región Norcentral
F35: Acceso a servicios de salud en establecimientos de primer nivel en la región Nordeste
F36: Acceso a servicios de salud en establecimientos de primer nivel en la región Valdesia
E37: Provisión de servicios de salud en establecimientos no auto gestionado | F37: Acceso a servicios de salud especializados en establecimientos no auto gestionados región Cibao Central | G37: Número de atenciones por tipo de servicio | H37: 16575158 | I37: 20160676 | J37: 1.216318783 | K37: 899262427.2
F38: Acceso a servicios de salud especializados en establecimientos no auto gestionados región Cibao Occidental
F39: Acceso a servicios de salud especializados en establecimientos no auto gestionados región el Valle
F40: Acceso a servicios de salud especializados en establecimientos no auto gestionados región Enriquillo
F41: Acceso a servicios de salud especializados en establecimientos no auto gestionados región Este
F42: Acceso a servicios de salud especializados en establecimientos no auto gestionados región Metropolitana
F43: Acceso a servicios de salud especializados en establecimientos no auto gestionados región Norcentral
F44: Acceso a servicios de salud especializados en establecimientos no auto gestionados región Nordeste
F45: Acceso a servicios de salud especializados en establecimientos no auto gestionados región Valdesia
E46: Provisión de servicios de salud especializados Ciudad Sanitaria Luis E. Aybar | F46: Personas acceden a servicios de salud anatomopatológicos | G46: Número de atenciones por tipo de servicio | H46: 1184627 | I46: 1127123 | J46: 0.9514581383 | K46: 682753443.3
F47: Personas acceden a servicios de salud cardio neuro-oftalmológico y trasplante
F48: Personas acceden a servicios de salud clínico-quirúrgicos
F49: Personas acceden a servicios de salud diagnósticos e imágenes
F50: Personas acceden a servicios de salud en gastroenterología
F51: Personas acceden a servicios de salud materno-infantil
E52: Salud materno neonatal | F52: Gestante con atención de parto normal en la maternidad de Los Mina | G52: Número de gestante con parto normal | H52: 15749 | I52: 16818 | J52: 1.067877326 | K52: 562029669.6
F53: Gestante con complicaciones con atención oportuna en la maternidad de Los Mina | G53: Número de gestante con complicaciones reciben atención oportuna
F54: Gestantes acceden a atención prenatal integrada en la maternidad de Los Mina | G54: Número de gestante con atención prenatal integrada
F55: Recién nacido con complicaciones recibe atención en la maternidad de Los Mina | G55: Número de recíén nacido con complicaciones
F56: Recién nacido normal con atención oportuna en la maternidad de Los Mina | G56: Número de recíén nacido normal
E57: TOTAL DEVENGADO | K57: =SUM(K11:K56) -> 8479411778
E58: Notas:
E59: Cifras preliminares
E60: Fecha de Registro al 18 de octubre
E61: Fuente: SIGEF

Sheet Tabla 28
A1: MINISTERIO DE HACIENDA
A2: DIRECCIÓN GENERAL DE PRESUPUESTO
A3: DIRECCIÓN DE ESTUDIOS ECONÓMICOS Y SEGUIMIENTO FINANCIERO
B7: Tabla 28. Programación y Ejecución de Metas Físicas - Instituto Nacional de Recursos Hidráulicos (INDRHI)
B9: Enero - Septiembre 2021
B10: PROGRAMA | C10: PRODUCTOS | D10: UNIDAD DE MEDIDA | E10: META PROGRAMADA | F10: META LOGRADA | G10: % CUMPLIMIENTO EJECUCIÓN FISICA | H10: DEVENGADO (RD$ MILLONES)
B12: Construcción y rehabilitación de sistemas de riego y obras hidraúlicas | C12: Operación de los sistemas de riego a nivel nacional | D12: Sistemas de riego rehabilitados a nivel nacional operando en condiciones adecuadas | E12: 51 | F12: 55 | G12: =F12/E12 -> 1.078431373 | H12: 1076952186
B13: TOTAL DEVENGADO | H13: =SUM(H12:H12) -> 1076952186
B14: Notas: *Cifras preliminares
B15: Fecha de Registro al 18 de octubre
B16: Fuente: Datos del SIGEF

Sheet Tabla 29
A1: MINISTERIO DE HACIENDA
A2: DIRECCIÓN GENERAL DE PRESUPUESTO
A3: DIRECCIÓN DE ESTUDIOS ECONÓMICOS Y SEGUIMIENTO FINANCIERO
B7: Tabla 29. Programación y Ejecución de Metas Físicas - Dirección General de Aduanas
B9: Enero - Septiembre 2021
B10: PROGRAMA | C10: PRODUCTOS | D10: UNIDAD DE MEDIDA | E10: META PROGRAMADA | F10: META LOGRADA | G10: % CUMPLIMIENTO EJECUCIÓN FISICA | H10: DEVENGADO (RD$ MILLONES)
B12: Inspección y supervisión en las zonas francas | C12: Zonas francas reciben autorización para operar | D12: Cantidad de licencias emitidas | E12: 234 | F12: 252 | G12: =F12/E12 -> 1.076923077 | H12: 379413754
B13: Servicios de administración aduanera | C13: Personas físicas y jurídicas reciben servicios de desaduanización de mercancias | D13: Cantidad declaraciones | E13: 529150 | F13: 576243 | G13: 1.088997449 | H13: 940240146.4
B14: Servicios y operaciones técnicas | C14: Empresas certificadas por operadores económicos autorizados para la importación y exportación | D14: Cantidad de certificaciones emitidas | E14: 8749 | F14: 9196 | G14: 1.051091553 | H14: 150465122.4
C15: Personas físicas y jurídicas reciben permisos de exoneración para la importación | D15: Cantidad de exoneraciones aplicadas
B16: TOTAL DEVENGADO | H16: =SUM(H12:H15) -> 1470119023
B17: Notas: *Cifras preliminares
B18: Fecha de Registro al 18 de octubre
B19: Fuente: Datos del SIGEF

Sheet Tabla 30
A1: MINISTERIO DE HACIENDA
A2: DIRECCIÓN GENERAL DE PRESUPUESTO
A3: DIRECCIÓN DE ESTUDIOS ECONÓMICOS Y SEGUIMIENTO FINANCIERO
B6: Tabla 30. Gasto por la Clasificación Institucional | L6: PIB Nominal | M6: 5.294508964e+12
B7: Enero - Septiembre 2020 y 2021
B8: Valores en millones RD$ y % del PIB
B9: DETALLE | C9: 2020 | D9: 2021 | I9: 2021/2020 | K9: %PIB
C10: EJECUCIÓN | D10: PRESUPUESTO INICIAL | E10: COMPROMETIDO | F10: EJECUCIÓN | G10: PAGADO | H10: % EJECUCIÓN | I10: VARIACIÓN
I11: ABS. | J11: REL.
C12: 1 | D12: 2 | E12: 3 | F12: 4 | G12: 5 | H12: 6 = (4/2) | I12: 7 = (4-1) | J12: 8 = (7/1) | K12: 9 = (4/PIB)
B13: 1.1.1.1.3 - Instituciones de la Seguridad Social
B14: 5201 - INSTITUTO DOMINICANO DE SEGUROS SOCIALES | C14: 156725473.2 | D14: 0 | E14: 0 | F14: 0 | G14: 0 | H14: - | I14: -156725473.2 | J14: -1 | K14: =F14/$M$6 -> 0
B15: 5202 - INSTITUTO DE AUXILIOS Y VIVIENDAS | C15: 143369726.4 | D15: 464158249 | E15: 188454790.3 | F15: 187717505.1 | G15: 182778805.1 | H15: 0.4044256577 | I15: -47664707.09 | J15: -0.2024991891 | K15: 3.545513029e-05
B16: 5205 - SUPERINTENDENCIA DE PENSIONES | C16: 0 | D16: 440500000 | E16: 0 | F16: 0 | G16: 0 | H16: 0 | I16: - | J16: - | K16: 0
B17: 5206 - SUPERINTENDENCIA DE SALUD Y RIESGO LABORAL | C17: 0 | D17: 670766000 | E17: 0 | F17: 0 | G17: 0 | H17: 0 | I17: - | J17: - | K17: 0
B18: 5207 - CONSEJO NACIONAL DE SEGURIDAD SOCIAL | C18: 8862838913 | D18: 17620580489 | E18: 1.166938581e+10 | F18: 1.163055004e+10 | G18: 1.162513914e+10 | H18: 0.6600548743 | I18: -302094306.9 | J18: -0.02531662707 | K18: 0.002196719303
B19: 5208 - SEGURO NACIONAL DE SALUD | C19: 0 | D19: 35983682839 | E19: 0 | F19: 0 | G19: 0 | H19: 0 | I19: - | J19: - | K19: 0
B20: 5209 - DIRECCIÓN GENERAL DE INFORMACIÓN Y DEFENSA DE LOS AFILIADOS | C20: 0 | D20: 478099657 | E20: 191522671.2 | F20: 173315869.1 | G20: 173248764 | H20: 0.3625099215 | I20: 173315869.1 | J20: - | K20: 3.273502232e-05
B21: 5210 - INSTITUTO DOMINICANO DE PREVENCIÓN Y PROTECCIÓN DE RIESGOS LABORALES | C21: 0 | D21: 1034743998 | E21: 365015285.2 | F21: 340372094.4 | G21: 314408749.8 | H21: 0.3289432894 | I21: 340372094.4 | J21: - | K21: 6.428775487e-05
B22: 5211 - TESORERÍA DE LA SEGURIDAD SOCIAL | C22: 0 | D22: 506472000 | E22: 376981235.9 | F22: 336175141.1 | G22: 321371462.2 | H22: 0.663758591 | I22: 336175141.1 | J22: - | K22: 6.349505561e-05
B23: Total | C23: =SUM(C14:C22) -> 9162934113 | D23: =SUM(D14:D22) -> 57199003232 | E23: 1.27913598e+10 | F23: 1.266813065e+10 | G23: 1.261694692e+10 | H23: =F23/D23 -> 0.221474675 | I23: =F23-C23 -> 3505196537 | J23: =I23/C23 -> 0.3825408427 | K23: =F23/$M$6 -> 0.002392692266
B24: Notas: *Cifras Preliminares
B25: Fecha de Registro 15 de octubre / Fecha de Imputación 30 de septiembre
B26: Fuente: Sistema de la Información de la Gestión Financiera (SIGEF)

Sheet Tabla 31
A1: MINISTERIO DE HACIENDA
A2: DIRECCIÓN GENERAL DE PRESUPUESTO
A3: DIRECCIÓN DE ESTUDIOS ECONÓMICOS Y SEGUIMIENTO FINANCIERO
B5: Tabla 31. Ejecución de Gastos por Clasificación Institucional
B6: Trimestral 2020 y 2021
B7: Valores en millones RD$
B8: DETALLE | C8: 2021 | F8: Devengado Acumulado
C9: 1ER TRIMESTRE | D9: 2do TRIMESTRE | E9: 3er TRIMESTRE
C11: DEVENGADO
C12: 1 | D12: 2 | E12: 3 | F12: 4
B13: 1.1.1.1.3 - Instituciones de la seguridad social
B14: 5201 - INSTITUTO DOMINICANO DE SEGUROS SOCIALES | C14: 0 | D14: 0 | E14: 0 | F14: =C14+D14+E14 -> 0
B15: 5202 - INSTITUTO DE AUXILIOS Y VIVIENDAS | C15: 49387595.14 | D15: 58240343.7 | E15: 80089566.27 | F15: =C15+D15+E15 -> 187717505.1
B16: 5205 - SUPERINTENDENCIA DE PENSIONES | C16: 0 | D16: 0 | E16: 0 | F16: 0
B17: 5206 - SUPERINTENDENCIA DE SALUD Y RIESGO LABORAL | C17: 0 | D17: 0 | E17: 0 | F17: 0
B18: 5207 - CONSEJO NACIONAL DE SEGURIDAD SOCIAL | C18: 2940414992 | D18: 5760469438 | E18: 2929665610 | F18: 1.163055004e+10
B19: 5208 - SEGURO NACIONAL DE SALUD | C19: 0 | D19: 0 | E19: 0 | F19: 0
B20: 5209 - DIRECCIÓN GENERAL DE INFORMACIÓN Y DEFENSA DE LOS AFILIADOS | C20: 58442857.77 | D20: 63033730.73 | E20: 51839280.61 | F20: 173315869.1
B21: 5210 - INSTITUTO DOMINICANO DE PREVENCIÓN Y PROTECCIÓN DE RIESGOS LABORALES | C21: 27867870.81 | D21: 233672658.6 | E21: 78831565.01 | F21: 340372094.4
B22: 5211 - TESORERÍA DE LA SEGURIDAD SOCIAL | C22: 89440710.38 | D22: 133382546 | E22: 113351884.7 | F22: 336175141.1
B23: Total | C23: =SUM(C14:C22) -> 3165554026 | D23: =SUM(D14:D22) -> 6248798717 | E23: 3253777906 | F23: 1.266813065e+10
B24: Notas: *Cifras Peliminares
B25: Fecha de Registro 15 de octubre / Fecha de Imputación 30 de septiembre
B26: Fuente: Sistema de la Información de la Gestión Financiera (SIGEF)

Sheet Tabla 32
A1: MINISTERIO DE HACIENDA
A2: DIRECCIÓN GENERAL DE PRESUPUESTO
A3: DIRECCIÓN DE ESTUDIOS ECONÓMICOS Y SEGUIMIENTO FINANCIERO
B7: Tabla 32. Programación y Ejecución de Metas Físicas - Consejo Nacional de Seguridad Social
B9: Enero-Septiembre 2021
B10: PROGRAMA | C10: PRODUCTOS | D10: UNIDAD DE MEDIDA | E10: META PROGRAMADA | F10: META LOGRADA | G10: % CUMPLIMIENTO EJECUCIÓN FISICA | H10: DEVENGADO (RD$ MILLONES)
B12: Regulación del sistema dominicano de seguridad social | C12: Empresas administradoras de riesgos reciben servicios de evaluación, calificación y notificación del grado de discapacidad | D12: Porcentaje de dictámenes notificados durante el período | E12: 60 | F12: 52 | G12: =F12/E12 -> 0.8666666667 | H12: 12777900
C13: Personas físicas y jurídicas reciben resoluciones de políticas, normativas y convenios aprobados | D13: Porcentaje de resoluciones ejecutadas durante el período | E13: 55 | F13: 61 | G13: =F13/E13 -> 1.109090909 | H13: 5637060
B14: TOTAL DEVENGADO | H14: =SUM(H12:H13) -> 18414960
B15: Notas: *Cifras preliminares
B16: Fecha de Registro al 18 de octubre
B17: Fuente: Datos del SIGEF

Sheet Tabla 33
A1: MINISTERIO DE HACIENDA
A2: DIRECCIÓN GENERAL DE PRESUPUESTO
A3: DIRECCIÓN DE ESTUDIOS ECONÓMICOS Y SEGUIMIENTO FINANCIERO
B7: Tabla 33. Programación y Ejecución de Metas Físicas - Instituto Dominicano de Prevención y Protección de Riesgos Laborales
C9: Enero-Septiembre 2021
C10: PROGRAMA | D10: PRODUCTOS | E10: UNIDAD DE MEDIDA | F10: META PROGRAMADA | G10: META LOGRADA | H10: % CUMPLIMIENTO EJECUCIÓN FISICA | I10: DEVENGADO (RD$ MILLONES)
C12: Administración de riesgos laborales del Sistema Dominicano de Seguridad Social | D12: Afiliados calificados acceden a prestaciones en especie del SDSS | E12: Porcentaje de autorizaciones otorgadas | F12: 285 | G12: 292 | H12: =G12/F12 -> 1.024561404 | I12: 19098164
D13: Afiliados calificados con incapacidades médicas acceden a prestaciones económicas del SDSS | E13: Porcentaje de incapacidades médicas pagadas | F13: 285 | G13: 284 | H13: 0.9964912281 | I13: 8869053
D14: Empresas reciben servicios de educación y evaluación sobre riesgos laborales | E14: Porcentaje de satisfacción de la actividad educativa | F14: 270 | G14: 287 | H14: 1.062962963 | I14: 1865160
C15: TOTAL DEVENGADO | I15: =SUM(I12:I14) -> 29832377
C16: Notas: *Cifras preliminares
C17: Fecha de Registro al 18 de octubre
C18: Fuente: Datos del SIGEF

Sheet Tabla 34
A1: MINISTERIO DE HACIENDA
A2: DIRECCIÓN GENERAL DE PRESUPUESTO
A3: DIRECCIÓN DE ESTUDIOS ECONÓMICOS Y SEGUIMIENTO FINANCIERO
C6: Tabla 34. Programación y Ejecución de Metas Físicas - Tesorería de la Seguridad Social
C8: Enero-Septiembre 2021
C9: PROGRAMA | D9: PRODUCTOS | E9: UNIDAD DE MEDIDA | F9: META PROGRAMADA | G9: META LOGRADA | H9: % CUMPLIMIENTO EJECUCIÓN FISICA | I9: DEVENGADO (RD$ MILLONES)
C11: Gestión de la tesorería del sistema dominicano de seguridad social | D11: Sistema único de información y recaudo con servicios de inteligencia recaudatoria | E11: Cantidad de Auditorías a empleadores y unidades receptoras de fondos | F11: 1929 | G11: 3952 | H11: =G11/F11 -> 2.048729912 | I11: 336175141.1
C12: TOTAL DEVENGADO | I12: =SUM(I11:I11) -> 336175141.1
C13: Notas: *Cifras preliminares
C14: Fecha de Registro al 18 de octubre
C15: Fuente: Datos del SIGEF

Sheet Tabla 35
A1: MINISTERIO DE HACIENDA
A2: DIRECCIÓN GENERAL DE PRESUPUESTO
A3: DIRECCIÓN DE ESTUDIOS ECONÓMICOS Y SEGUIMIENTO FINANCIERO
B5: Tabla 35. Gasto por la Clasificación Funcional
B6: Enero - Sept. 2020 y 2021 | L6: PIB Nominal (Millones RD$) | M6: 5.294508964e+12
B7: Valores en RD$ Millones
B8: DETALLE | C8: 2020 | D8: 2021 | I8: 2021/2020 | K8: % PIB
C9: EJECUCIÓN | D9: PRESUPUESTO INICIAL | E9: COMPROMETIDO | F9: EJECUCIÓN | G9: PAGADO | H9: % EJECUCIÓN | I9: VARIACIÓN
I10: ABS. | J10: REL.
C11: 1 | D11: 2 | E11: 3 | F11: 4 | G11: 5 | H11: 6 = (4/2) | I11: 7 = (4-1) | J11: 8 = (7/1) | K11: 9 = (4/PIB)
B12: 1.1.1.1.2 - Organismos Autónomos y Descentralizados No Financieros | C12: =C13+C18+C27+C30 -> 5.161175568e+10 | D12: 122275026084 | E12: =E13+E18+E27+E30 -> 6.206741613e+10 | F12: =F13+F18+F27+F30 -> 58417137816 | G12: 5.75623502e+10 | H12: =F12/D12 -> 0.4777519964 | I12: =F12-C12 -> 6805382140 | J12: =I12/C12 -> 0.1318572107 | K12: =F12/$M$6 -> 0.01103353271
B13: 1 - SERVICIOS GENERALES | C13: =SUM(C14:C17) -> 3141039617 | D13: 16462148652 | E13: =SUM(E14:E17) -> 4057995726 | F13: 3829037361 | G13: 3806102485 | H13: =F13/D13 -> 0.2325964515 | I13: =F13-C13 -> 687997744 | J13: =I13/C13 -> 0.2190350419 | K13: 0.0007232091564
B14: 1.1 - Administración general | C14: 2636573053 | D14: 15627238629 | E14: 3559885407 | F14: 3343557358 | G14: 3324188390 | H14: 0.2139570168 | I14: 706984305.3 | J14: 0.2681451608 | K14: 0.0006315141558
B15: 1.2 - Relaciones internacionales | C15: 15880185.85 | D15: 13375000 | E15: 2476253.31 | F15: 2476253.31 | G15: 2010718.96 | H15: 0.1851404344 | I15: -13403932.54 | J15: -0.844066478 | K15: 4.67702166e-07
B16: 1.3 - Defensa nacional | C16: 140654169 | D16: 224615540 | E16: 123287873.9 | F16: 121385350.8 | G16: 119741829.3 | H16: 0.5404138594 | I16: -19268818.2 | J16: -0.1369942912 | K16: 2.292664942e-05
B17: 1.4 - Justicia, orden público y seguridad | C17: 347932209.2 | D17: 596919483 | E17: 372346191.9 | F17: 361618398.7 | G17: 360161546.9 | H17: 0.6058076659 | I17: 13686189.48 | J17: 0.03933579334 | K17: 6.830064907e-05
B18: 2 - SERVICIOS ECONÓMICOS | C18: =SUM(C19:C26) -> 1.29726052e+10 | D18: 24120447098 | E18: =SUM(E19:E26) -> 1.227214166e+10 | F18: =SUM(F19:F26) -> 1.171523706e+10 | G18: 1.139439693e+10 | H18: 0.4856973425 | I18: -1257368145 | J18: -0.09692487555 | K18: 0.002212714557
B19: 2.1 - Asuntos económicos, comerciales y laborales | C19: 1218296541 | D19: 2408627276 | E19: 1508738422 | F19: 1433345968 | G19: 1414651660 | H19: 0.5950883236 | I19: 215049426.6 | J19: 0.1765164878 | K19: 0.0002707231167
B20: 2.2 - Agropecuaria, caza, pesca y silvicultura | C20: 2055307705 | D20: 3933152170 | E20: 2352000984 | F20: 2136959038 | G20: 2089687272 | H20: 0.5433196953 | I20: 81651333.24 | J20: 0.03972706035 | K20: 0.0004036179848
B21: 2.3 - Riego | C21: 4270514220 | D21: 7731561024 | E21: 3867428759 | F21: 3675710192 | G21: 3455063623 | H21: 0.4754163073 | I21: -594804027.6 | J21: -0.139281594 | K21: 0.0006942494984
B22: 2.4 - Energía y combustible | C22: 473210633.7 | D22: 1517628525 | E22: 426224252.7 | F22: 425223074.6 | G22: 425223074.6 | H22: 0.2801891686 | I22: -47987559.14 | J22: -0.1014084548 | K22: 8.031397765e-05
B23: 2.6 - Transporte | C23: 3425024132 | D23: 5955505723 | E23: 2615636970 | F23: 2574931027 | G23: 2571611136 | H23: 0.4323614394 | I23: -850093104.6 | J23: -0.2482006176 | K23: 0.0004863399127
B24: 2.7 - Comunicaciones | C24: 1087560599 | D24: 1811227339 | E24: 914641935.6 | F24: 914641935.6 | G24: 887677558.7 | H24: 0.5049846123 | I24: -172918663.9 | J24: -0.158996808 | K24: 0.0001727529299
B25: 2.8 - Banca y seguros | C25: 335385690.4 | D25: 604073784 | E25: 478199433.9 | F25: 452120016.6 | G25: 450225218.9 | H25: 0.7484516438 | I25: 116734326.2 | J25: 0.3480599488 | K25: 8.539413565e-05
B26: 2.9 - Otros servicios económicos | C26: 107305679.2 | D26: 158671257 | E26: 109270899.6 | F26: 102305803.8 | G26: 100257385.9 | H26: 0.6447658243 | I26: -4999875.42 | J26: -0.04659469523 | K26: 1.932300134e-05
B27: 3 - PROTECCIÓN DEL MEDIO AMBIENTE | C27: =SUM(C28:C29) -> 199014052.5 | D27: 874195071 | E27: =SUM(E28:E29) -> 196263617.9 | F27: =SUM(F28:F29) -> 185641205 | G27: 181913235.6 | H27: 0.2123567281 | I27: -13372847.54 | J27: -0.06719549383 | K27: 3.506296925e-05
B28: 3.1 - Protección del aire, agua y suelo | C28: 8011798.11 | D28: 12104000 | E28: 10587444.56 | F28: 10587444.56 | G28: 10587444.56 | H28: 0.8747062591 | I28: 2575646.45 | J28: 0.3214816967 | K28: 1.99970283e-06
B29: 3.2 - Protección de la biodiversidad y ordenación de desechos | C29: 191002254.4 | D29: 862091071 | E29: 185676173.3 | F29: 175053760.4 | G29: 171325791.1 | H29: 0.2030571552 | I29: -15948493.99 | J29: -0.08349898297 | K29: 3.306326642e-05
B30: 4 - SERVICIOS SOCIALES | C30: =SUM(C31:C35) -> 3.529909681e+10 | D30: 80795976687 | E30: =SUM(E31:E35) -> 4.554101512e+10 | F30: =SUM(F31:F35) -> 4.268722219e+10 | G30: 4.217993755e+10 | H30: 0.5283335129 | I30: 7388125389 | J30: 0.209300692 | K30: 0.008062546024
B31: 4.1 - Vivienda y servicios comunitarios | C31: 102777732.2 | D31: 4624171569 | E31: 94407339.9 | F31: 94338135.9 | G31: 92205268.27 | H31: 0.02040108904 | I31: -8439596.25 | J31: -0.082115027 | K31: 1.781810864e-05
B32: 4.2 - Salud | C32: 3.401241256e+10 | D32: 60098336925 | E32: 4.419237698e+10 | F32: 4.147590072e+10 | G32: 4.099808256e+10 | H32: 0.6901339178 | I32: 7463488163 | J32: 0.2194342477 | K32: 0.007833757767
B33: 4.3 - Actividades deportivas, recreativas, culturales y religiosas | C33: 267283129.8 | D33: 487623630 | E33: 348267758.4 | F33: 286382837.3 | G33: 274604830.6 | H33: 0.5873030339 | I33: 19099707.47 | J33: 0.07145870929 | K33: 5.409053781e-05
B34: 4.4 - Educación | C34: 0 | D34: 13854094937 | E34: 859219.6 | F34: 859219.6 | G34: 810222.42 | H34: 6.201917945e-05 | I34: 859219.6 | J34: - | K34: 1.622850402e-07
B35: 4.5 - Protección social | C35: 916623388.2 | D35: 1731749626 | E35: 905103823.4 | F35: 829741283 | G35: 814234667.7 | H35: 0.4791346685 | I35: -86882105.2 | J35: -0.09478495347 | K35: 0.0001567173252
B36: 5 - INTERESES DE LA DEUDA PÚBLICA | C36: 0 | D36: 22258576 | E36: 0 | F36: 0 | G36: 0 | H36: 0 | I36: 0 | J36: - | K36: 0
B37: 5.1 - Intereses y comisiones de deuda pública | C37: 0 | D37: 22258576 | E37: 0 | F37: 0 | G37: 0 | H37: 0 | I37: 0 | J37: - | K37: 0
B38: 1.1.1.1.3 - Instituciones de la Seguridad Social | C38: =C39+C43 -> 9162934113 | D38: 57199003232 | E38: =E39+E43 -> 1.27913598e+10 | F38: 1.266813065e+10 | G38: 1.261694692e+10 | H38: 0.221474675 | I38: 3505196537 | J38: 0.3825408427 | K38: 0.002392692266
B39: 1 - SERVICIOS GENERALES | C39: =SUM(C40) -> 1282545.39 | D39: 4017000 | E39: =SUM(E40) -> 1767062.65 | F39: 1767062.65 | G39: 1767062.65 | H39: 0.4398961041 | I39: 484517.26 | J39: 0.3777778656 | K39: 3.33753831e-07
B40: 1.2 - Relaciones internacionales | C40: 1282545.39 | D40: 4017000 | E40: 1767062.65 | F40: 1767062.65 | G40: 1767062.65 | H40: 0.4398961041 | I40: 484517.26 | J40: 0.3777778656 | K40: 3.33753831e-07
B41: 2 - SERVICIOS ECONÓMICOS | C41: =SUM(C42) -> 0 | D41: 1560000 | E41: =SUM(E42) -> 0 | F41: 0 | G41: 0 | H41: 0 | I41: 0 | J41: - | K41: 0
B42: 2.1 - Asuntos económicos, comerciales y laborales | C42: 0 | D42: 1560000 | E42: 0 | F42: 0 | G42: 0 | H42: 0 | I42: 0 | J42: - | K42: 0
B43: 4 - SERVICIOS SOCIALES | C43: =SUM(C44:C47) -> 9161651567 | D43: 57193426232 | E43: =SUM(E44:E47) -> 1.278959273e+10 | F43: 1.266636359e+10 | G43: 1.261517986e+10 | H43: 0.221465375 | I43: 3504712020 | J43: 0.3825415095 | K43: 0.002392358512
B44: 4.2 - Salud | C44: 156725473.2 | D44: 3390608 | E44: 3403674 | F44: 3403674 | G44: 3142858 | H44: 1.003853586 | I44: -153321799.2 | J44: -0.9782825731 | K44: 6.428686821e-07
B45: 4.3 - Actividades deportivas, recreativas, culturales y religiosas | C45: 0 | D45: 2500000 | E45: 0 | F45: 0 | G45: 0 | H45: 0 | I45: 0 | J45: - | K45: 0
B46: 4.4 - Educación | C46: 0 | D46: 3700000 | E46: 0 | F46: 0 | G46: 0 | H46: 0 | I46: 0 | J46: - | K46: 0
B47: 4.5 - Protección social | C47: 9004926094 | D47: 57183835624 | E47: 1.278618906e+10 | F47: 1.266295991e+10 | G47: 1.2612037e+10 | H47: 0.2214429965 | I47: 3658033819 | J47: 0.4062258569 | K47: 0.002391715644
B48: Total | C48: =C12+C38 -> 6.077468979e+10 | D48: =D12+D38 -> 179474029316 | E48: =E12+E38 -> 7.485877592e+10 | F48: =F12+F38 -> 7.108526847e+10 | G48: =G12+G38 -> 7.017929712e+10 | H48: 0.3960755143 | I48: =F48-C48 -> 1.031057868e+10 | J48: 0.1696525102 | K48: 0.01342622497
B49: Notas: *Cifras Preliminares
B50: PIB Nominal estimado para el año 2021 en el Marco Macroeconómico revisado al 26 de Agosto (RD$5,126,270.1 millones)
B51: Fecha de Registro 15 de octubre / Fecha de Imputación 30 de septiembre
B52: Fuente: Sistema de la Información de la Gestión Financiera (SIGEF)

Sheet Tabla 36
A1: MINISTERIO DE HACIENDA
A2: DIRECCIÓN GENERAL DE PRESUPUESTO
A3: DIRECCIÓN DE ESTUDIOS ECONÓMICOS Y SEGUIMIENTO FINANCIERO
C5: Tabla 36. Ejecución de Gastos por Clasificación Funcional
C6: Trimestral 2021/2020
C7: Valores en RD$ Millones
C8: DETALLE | D8: 2021 | G8: Devengado Acumulado
D9: 1ER TRIMESTRE | E9: 2do TRIMESTRE | F9: 3er TRIMESTRE
D11: DEVENGADO
D12: 1 | E12: 2 | F12: 3 | G12: 4
C13: 1.1.1.1.2 - Organismos Autónomos y Descentralizados No Financieros | D13: =D14+D19+D28+D31+D37 -> 1.685504017e+10 | E13: 1.969750504e+10 | F13: 2.18645926e+10 | G13: =D13+E13+F13 -> 58417137816
C14: 1 - SERVICIOS GENERALES | D14: =SUM(D15:D18) -> 994722605.9 | E14: 1482069923 | F14: 1352244833 | G14: =D14+E14+F14 -> 3829037361
C15: 1.1 - Administración general | D15: 839005353.5 | E15: 1315184658 | F15: 1189367347 | G15: 3343557358
C16: 1.2 - Relaciones internacionales | D16: 893717.12 | E16: 1096982.64 | F16: 485553.55 | G16: 2476253.31
C17: 1.3 - Defensa nacional | D17: 40569148.74 | E17: 39451561 | F17: 41364641.11 | G17: 121385350.9
C18: 1.4 - Justicia, orden público y seguridad | D18: 114254386.5 | E18: 126336721.4 | F18: 121027290.8 | G18: 361618398.7
C19: 2 - SERVICIOS ECONÓMICOS | D19: =SUM(D20:D27) -> 2895098932 | E19: 4362258584 | F19: =SUM(F20:F27) -> 4457879540 | G19: 1.171523706e+10
C20: 2.1 - Asuntos económicos, comerciales y laborales | D20: 403783647.1 | E20: 488627968.7 | F20: 540934352.1 | G20: 1433345968
C21: 2.2 - Agropecuaria, caza, pesca y silvicultura | D21: 568369204.3 | E21: 591485001.3 | F21: 977104832.8 | G21: 2136959038
C22: 2.3 - Riego | D22: 429214911.3 | E22: 1718315507 | F22: 1528179773 | G22: 3675710192
C23: 2.4 - Energía y combustible | D23: 135225288 | E23: 145464188 | F23: 144533598.6 | G23: 425223074.6
C24: 2.6 - Transporte | D24: 780502608.2 | E24: 836330965.8 | F24: 958097453 | G24: 2574931027
C25: 2.7 - Comunicaciones | D25: 394930246.6 | E25: 375742948.3 | F25: 143968740.7 | G25: 914641935.6
C26: 2.8 - Banca y seguros | D26: 156656174.5 | E26: 168717559.7 | F26: 126746282.5 | G26: 452120016.6
C27: 2.9 - Otros servicios económicos | D27: 26416851.63 | E27: 37574445.26 | F27: 38314506.92 | G27: 102305803.8
C28: 3 - PROTECCIÓN DEL MEDIO AMBIENTE | D28: =SUM(D29:D30) -> 56454048.56 | E28: 61308711.7 | F28: 67878444.74 | G28: 185641205
C29: 3.1 - Protección del aire, agua y suelo | D29: 3142174.07 | E29: 3836331.35 | F29: 3608939.14 | G29: 10587444.56
C30: 3.2 - Protección de la biodiversidad y ordenación de desechos | D30: 53311874.49 | E30: 57472380.35 | F30: 64269505.6 | G30: 175053760.4
C31: 4 - SERVICIOS SOCIALES | D31: =SUM(D32:D36) -> 1.290876458e+10 | E31: 1.379186783e+10 | F31: 1.598658978e+10 | G31: 4.268722219e+10
C32: 4.1 - Vivienda y servicios comunitarios | D32: 36464046.16 | E32: 33259281.73 | F32: 24614808.01 | G32: 94338135.9
C33: 4.2 - Salud | D33: 1.256213738e+10 | E33: 1.332596802e+10 | F33: 1.558779532e+10 | G33: 4.147590072e+10
C34: 4.3 - Actividades deportivas, recreativas, culturales y religiosas | D34: 75925045.73 | E34: 115084013.9 | F34: 95373777.63 | G34: 286382837.3
C35: 4.4 - Educación | D35: 119555 | E35: 184542.5 | F35: 555122.1 | G35: 859219.6
C36: 4.5 - Protección social | D36: 234118560.8 | E36: 317371968.5 | F36: 278250753.7 | G36: 829741283
C37: 5 - INTERESES DE LA DEUDA PÚBLICA | D37: 0 | E37: 0 | F37: 0 | G37: 0
C38: 5.1 - Intereses y comisiones de deuda pública | D38: 0 | E38: 0 | F38: 0 | G38: 0
C39: 1.1.1.1.3 - Instituciones de la seguridad social | D39: 3165554026 | E39: 6248798717 | F39: =F40+F42+F44 -> 3253777906 | G39: 1.266813065e+10
C40: 1 - SERVICIOS GENERALES | D40: 1025153.91 | E40: 741908.74 | F40: 0 | G40: 1767062.65
C41: 1.2 - Relaciones internacionales | D41: 1025153.91 | E41: 741908.74 | F41: 0 | G41: 1767062.65
C42: 2 - SERVICIOS ECONÓMICOS | D42: 0 | E42: 0 | F42: 0 | G42: 0
C43: 2.1 - Asuntos económicos, comerciales y laborales | D43: 0 | E43: 0 | F43: 0 | G43: 0
C44: 4 - SERVICIOS SOCIALES | D44: =SUM(D45:D48) -> 3164528872 | E44: 6248056809 | F44: 3253777906 | G44: 1.266636359e+10
C45: 4.2 - Salud | D45: 260816 | E45: 2360410 | F45: 782448 | G45: 3403674
C46: 4.3 - Actividades deportivas, recreativas, culturales y religiosas | D46: 0 | E46: 0 | F46: 0 | G46: 0
C47: 4.4 - Educación | D47: 0 | E47: 0 | F47: 0 | G47: 0
C48: 4.5 - Protección social | D48: 3164268056 | E48: 6245696399 | F48: 3252995458 | G48: 1.266295991e+10
C49: Total | D49: =D39+D13 -> 2.00205942e+10 | E49: 2.594630376e+10 | F49: 2.511837051e+10 | G49: 7.108526847e+10
C50: Notas: *Cifras Peliminares
C51: Fuente: Sistema de la Información de la Gestión Financiera (SIGEF)

Sheet Tabla 37
A1: MINISTERIO DE HACIENDA
A2: DIRECCIÓN GENERAL DE PRESUPUESTO
A3: DIRECCIÓN DE ESTUDIOS ECONÓMICOS Y SEGUIMIENTO FINANCIERO
C6: Tabla 37.- Ejecución de Gastos COVID-19
C7: Instituciones Públicas Descentralizadas e Instituciones Públicas de la Seguridad Social
C8: Enero - Septiembre 2021
C9: Valores en RD$ Millones
C10: CONCEPTO | D10: DEVENGADO
C11: Organismos Autónomos y Descentralizados No Financieros | D11: =SUM(D12:D18) -> 1375501698
C12: Incentivo por labor humanitaria | D12: 1356959200
C13: Material Preventivo (Mascarillas, batas quirurgicas, etc.) | D13: 799992.15
C14: Insumos, Equipos y reactivos | D14: 3668024.08
C15: Medicamentos | D15: 13902021.38
C16: Pruebas Rápidas de Antígenos | D16: 0
C17: Otros | D17: 172460
C18: Instituciones De La Seguridad Social | D18: 0
C19: Total General | D19: =D11+D18 -> 1375501698
C20: Notas: *Cifras Preliminares
C21: Fecha de Registro 15 de octubre / Fecha de Imputación 30 de Septiembre
C22: Fuente: Sistema de la Información de la Gestión Financiera (SIGEF)

Sheet Tabla 38
B1: MINISTERIO DE HACIENDA
B2: DIRECCIÓN GENERAL DE PRESUPUESTO
B3: DIRECCIÓN DE ESTUDIOS ECONÓMICOS Y SEGUIMIENTO FINANCIERO
C5: Tabla 38. Gastos de Gobierno Central por Clasificación Funcional
C6: Enero - Septiembre 2021
C7: Valores en millones RD$
C8: DETALLE | D8: 1ER TRIMESTRE | E8: 2DO TRIMESTRE | F8: 3ER TRIMESTRE | G8: DEVENGADO ACUMULADO
D11: DEVENGADO
D12: 1 | E12: 2 | F12: 3 | G12: 4 = 1+2+3
C13: 1 - SERVICIOS GENERALES | D13: 3.160402554e+10 | E13: 3.382121069e+10 | F13: 3.570892195e+10 | G13: =D13+E13+F13 -> 1.011341582e+11
C14: 1.1 - Administración general | D14: 1.462695674e+10 | E14: 1.619160464e+10 | F14: 1.668736885e+10 | G14: =D14+E14+F14 -> 4.750593022e+10
C15: 1.2 - Relaciones internacionales | D15: 1654669167 | E15: 1677195055 | F15: 1949836173 | G15: 5281700395
C16: 1.3 - Defensa nacional | D16: 5792448434 | E16: 5907781580 | F16: 6828864410 | G16: 1.852909442e+10
C17: 1.4 - Justicia, orden público y seguridad | D17: 9529951197 | E17: 1.004462941e+10 | F17: 1.024285252e+10 | G17: 2.981743313e+10
C18: 2 - SERVICIOS ECONÓMICOS | D18: 1.753939757e+10 | E18: 2.393547396e+10 | F18: 3.26448058e+10 | G18: 7.411967734e+10
C19: 2.1 - Asuntos económicos, comerciales y laborales | D19: 1418963088 | E19: 2387183860 | F19: 3745507420 | G19: 7551654368
C20: 2.2 - Agropecuaria, caza, pesca y silvicultura | D20: 2708116680 | E20: 3397257604 | F20: 3789723938 | G20: 9895098222
C21: 2.3 - Riego | D21: 717161613.6 | E21: 1775698772 | F21: 1784059022 | G21: 4276919408
C22: 2.4 - Energía y combustible | D22: 8473534158 | E22: 9749647016 | F22: 1.293891573e+10 | G22: 3.116209691e+10
C23: 2.5 - Minería, manufactura y construcción | D23: 38852777.96 | E23: 56143623.63 | F23: 55028505.94 | G23: 150024907.5
C24: 2.6 - Transporte | D24: 3227661818 | E24: 5552153956 | F24: 9018550640 | G24: 1.779836641e+10
C25: 2.7 - Comunicaciones | D25: 176849190.8 | E25: 439950866.6 | F25: 502320168.6 | G25: 1119120226
C26: 2.8 - Banca y seguros | D26: 45027311.01 | E26: 45027311.01 | F26: 45027311.01 | G26: 135081933
C27: 2.9 - Otros servicios económicos | D27: 733230937 | E27: 532410949.4 | F27: 765673064.4 | G27: 2031314951
C28: 3 - PROTECCIÓN DEL MEDIO AMBIENTE | D28: 637473078.8 | E28: 1105871670 | F28: 1644245659 | G28: 3387590407
C29: 3.1 - Protección del aire, agua y suelo | D29: 251664247.6 | E29: 440584853.9 | F29: 487554084 | G29: 1179803186
C30: 3.2 - Protección de la biodiversidad y ordenación de desechos | D30: 385808831.2 | E30: 665286815.8 | F30: 1156691575 | G30: 2207787222
C31: 4 - SERVICIOS SOCIALES | D31: 9.706104146e+10 | E31: 1.091852789e+11 | F31: 1.100017685e+11 | G31: 3.162480889e+11
C32: 4.1 - Vivienda y servicios comunitarios | D32: 2744584691 | E32: 5208517765 | F32: 3580686382 | G32: 1.153378884e+10
C33: 4.2 - Salud | D33: 2.438248763e+10 | E33: 3.237085939e+10 | F33: 3.321636265e+10 | G33: 8.996970966e+10
C34: 4.3 - Actividades deportivas, recreativas, culturales y religiosas | D34: 1079596959 | E34: 1436530010 | F34: 1721689271 | G34: 4237816240
C35: 4.4 - Educación | D35: 4.017789033e+10 | E35: 4.518943048e+10 | F35: 4.648266544e+10 | G35: 1.318499863e+11
C36: 4.5 - Protección social | D36: 2.867648185e+10 | E36: 2.497994124e+10 | F36: 2.50003648e+10 | G36: 7.865678789e+10
C37: 5 - INTERESES DE LA DEUDA PÚBLICA | D37: 3.471997441e+10 | E37: 5.366379879e+10 | F37: 3.250275915e+10 | G37: 1.208865324e+11
C38: 5.1 - Intereses y comisiones de deuda pública | D38: 3.471997441e+10 | E38: 5.366379879e+10 | F38: 32502759152 | G38: 1.208865324e+11
C39: TOTAL | D39: 1.815619121e+11 | E39: 2.21711634e+11 | F39: 2.125025011e+11 | G39: 6.157760472e+11
C40: Notas: *Cifras preliminares
C41: Fecha de Registro 15 de octubre / Fecha de Imputación 30 de Septiembre
C42: Fuente: Datos del SIGEF

Sheet Tabla 39
B1: MINISTERIO DE HACIENDA
B2: DIRECCIÓN GENERAL DE PRESUPUESTO
B3: DIRECCIÓN DE ESTUDIOS ECONÓMICOS Y SEGUIMIENTO FINANCIERO
B8: Tabla 39. Ejecución por Clasificación Programática Septiembre 2021
B9: Valores en RD$ millones
B10: DETALLE | C10: PRESUPUESTO APROBADO (LEY NO. 166-21) | D10: EJECUCION
B12: (Capítulo - Subcapítulo - Unidad Ejecutora - Programa)
B13: 0101 - SENADO DE LA REPUBLICA | C13: 2635779124 | D13: 1976834308
B14: 01 - CÁMARA DE SENADORES | C14: 2635779124 | D14: 1976834308
B15: 0001 - SENADO DE LA REPUBLICA DOMINICANA | C15: 2635779124 | D15: 1976834308
B16: 11 - Representación, fiscalización y gestión legislativa | C16: 2174775633 | D16: 1652831700
B17: 98 - Administración de Contribuciones Especiales | C17: 461003491 | D17: 324002608.8
B18: 0102 - CAMARA DE DIPUTADOS | C18: 5182940712 | D18: 3887205473
B19: 01 - CAMARA DE DIPUTADOS | C19: 5182940712 | D19: 3887205473
B20: 0001 - CAMARA DE DIPUTADOS | C20: 5182940712 | D20: 3887205473
B21: 11 - Representación, fiscalización y gestión legislativa | C21: 4952327923 | D21: 3714245881
B22: 98 - Administración de Contribuciones Especiales | C22: 230612789 | D22: 172959591.7
B23: 0201 - PRESIDENCIA DE LA REPUBLICA | C23: 92918780271 | D23: 5.240746054e+10
B24: 01 - MINISTERIO ADMINISTRATIVO DE LA PRESIDENCIA | C24: 15536028024 | D24: 9272806297
B25: 0001 - SECRETARIADO ADMINISTRATIVO DE LA PRESIDENCIA | C25: 12039848438 | D25: 7049283037
B26: 01 - Actividad Central | C26: 2792145665 | D26: 1163899742
B27: 11 - Fondo a cargo del Poder Ejecutivo | C27: 5242781293 | D27: 2612191154
B28: 98 - Administración de Contribuciones Especiales | C28: 3792167384 | D28: 3144074280
B29: 99 - Administración de activos, pasivos y transferencias | C29: 212754096 | D29: 129117860.2
B30: 0005 - GOBERNACIÓN DEL EDIFICIO GUBERNAMENTAL JUAN PABLO DUARTE | C30: 78499128 | D30: 52297441.16
B31: 01 - Actividad Central | C31: 78499128 | D31: 52297441.16
B32: 0007 - GABINETE DE POLÍTICA MEDIOAMBIENTAL Y DESARROLLO FÍSICO | C32: 9379801 | D32: 0
B33: 01 - Actividades centrales | C33: 9379801 | D33: 0
B34: 0009 - COMISION PRESIDENCIAL DE APOYO AL DESARROLLO PROVINCIAL | C34: 2006191807 | D34: 768799169
B35: 22 - Apoyo al Desarrollo Provincial | C35: 2006191807 | D35: 768799169
B36: 0010 - CONSEJO NACIONAL PARA EL CAMBIO CLIMÁTICO Y MECANISMO DE DESARROLLO LIMPIO | C36: 70269788 | D36: 42363472
B37: 24 - Formulación de políticas para la mitigación y adaptación al cambio climático | C37: 70269788 | D37: 42363472
B38: 0011 - DIRECCION GENERAL DE COMUNICACION | C38: 782894810 | D38: 1037907082
B39: 25 - Dirección de Comunicación y Publicidad | C39: 782894810 | D39: 1037907082
B40: 0012 - CONSEJO NACIONAL DE DROGAS | C40: 175343147 | D40: 119786410.8
B41: 15 - Gestión integrada del control y reducción de la demanda de drogas y administración de bienes incautados | C41: 175343147 | D41: 119786410.8
B42: 0014 - OFICINA DE CUSTODIA Y ADM. DE LOS BIENES INCAUTADOS Y DECOMISADOS | C42: 94739958 | D42: 54950451.73
B43: 15 - Gestión integrada del control y reducción de la demanda de drogas y administración de bienes incautados | C43: 94739958 | D43: 54950451.73
B44: 0018 - COMISION PERMANENTE DE EFEMERIDES PATRIA | C44: 64060200 | D44: 26924649.83
B45: 18 - Coordinacion y Fomento de las Actividades Culturales | C45: 64060200 | D45: 26924649.83
B46: 0024 - AUTORIDAD NACIONAL DE ASUNTOS MARITIMOS (ANAMAR) | C46: 81627547 | D46: 45373180.03
B47: 23 - Promoción del desarrollo y fortalecimiento del sector marítimo y marino nacional | C47: 81627547 | D47: 45373180.03
B48: 0029 - VICE PRESIDENCIA DE LA REPUBLICA | C48: 133173400 | D48: 75121403.7
B49: 01 - Actividad Central | C49: 133173400 | D49: 75121403.7
B50: 02 - GABINETE DE LA POLITICA SOCIAL | C50: 52984573044 | D50: 3.54639779e+10
B51: 0001 - GABINETE SOCIAL DE LA PRESIDENCIA | C51: 45268616370 | D51: 3.180588642e+10
B52: 01 - Actividad Central | C52: 374230024 | D52: 235230123.1
B53: 12 - Protección social | C53: 43323227874 | D53: 3.042350568e+10
B54: 99 - Administración de activos, pasivos y transferencias | C54: 1571158472 | D54: 1147150608
B55: 0002 - COMUNIDAD DIGNA CONTRA LA POBREZA | C55: 118465055 | D55: 58913703.39
B56: 13 - Desarrollo social comunitario | C56: 118465055 | D56: 58913703.39
B57: 0003 - PLAN PRESIDENCIAL CONTRA LA POBREZA | C57: 2220858808 | D57: 643831670.8
B58: 14 - Asistencia social integral | C58: 2220858808 | D58: 643831670.8
B59: 0004 - COMISION PRESIDENCIAL DE APOYO AL DESARROLLO BARRIAL | C59: 744132193 | D59: 410830143.8
B60: 13 - Desarrollo social comunitario | C60: 744132193 | D60: 410830143.8
B61: 0007 - PROGRESANDO CON SOLIDARIDAD | C61: 661881106 | D61: 461709937.8
B62: 12 - Protección social | C62: 661881106 | D62: 461709937.8
B63: 0008 - ADMINISTRADORA DE SUBSIDIOS SOCIALES | C63: 505355362 | D63: 262498602.4
B64: 12 - Protección social | C64: 505355362 | D64: 262498602.4
B65: 0009 - SISTEMA UNICO DE BENEFICIARIOS | C65: 302146893 | D65: 193993417.9
B66: 12 - Protección social | C66: 302146893 | D66: 193993417.9
B67: 0010 - CONSEJO NACIONAL DE LA PERSONA ENVEJECIENTE | C67: 750878375 | D67: 409649429.6
B68: 15 - Desarrollo integral y protección al adulto mayor | C68: 750878375 | D68: 409649429.6
B69: 0011 - FONDO DE PROMOCION A LAS INICIATIVAS COMUNITARIAS | C69: 114904076 | D69: 66418073.13
B70: 13 - Desarrollo social comunitario | C70: 114904076 | D70: 66418073.13
B71: 0014 - COMEDORES ECONÓMICOS DEL ESTADO | C71: 1815776368 | D71: 833151188.6
B72: 14 - Asistencia social integral | C72: 1815776368 | D72: 833151188.6
B73: 0015 - DIRECCIÓN GENERAL DE DESARROLLO DE LA COMUNIDAD | C73: 232348586 | D73: 157604649.3
B74: 13 - Desarrollo social comunitario | C74: 232348586 | D74: 157604649.3
B75: 0016 - DIRECCIÓN GENERAL DE DESARROLLO FRONTERIZO | C75: 249209852 | D75: 159490664.8
B76: 13 - Desarrollo social comunitario | C76: 249209852 | D76: 159490664.8
B77: 04 - CONTRALORIA GENERAL DE LA REPUBLICA | C77: 2380485288 | D77: 1088410728
B78: 0001 - CONTRALORIA GENERAL DE LA REPUBLICA | C78: 2380485288 | D78: 1088410728
B79: 11 - Control Fiscal | C79: 2369998488 | D79: 1084513228
B80: 98 - Administración de contribuciones especiales | C80: 10486800 | D80: 3897500
B81: 05 - OFICINA DE INGENIEROS SUPERVISORES DE OBRAS DEL ESTADO | C81: 6765028926 | D81: 2455506575
B82: 0001 - OFICINA DE INGENIEROS SUPERVISORA DE OBRAS DEL ESTADO | C82: 6765028926 | D82: 2455506575
B83: 01 - Actividad Central | C83: 1656028926 | D83: 621437853.8
B84: 12 - Construcción y reconstrucción de carreteras | C84: 0 | D84: 62464608.07
B85: 13 - Construcción y reconstrucción de obras deportivas | C85: 0 | D85: 0
B86: 15 - Construcción y reconstrucción de obras de salud | C86: 5109000000 | D86: 1689680432
B87: 16 - Construcción y reconstrucción de obras para centros educativos | D87: 40939565.32
B88: 17 - Construcción y reconstrucción de centros religiosos | C88: 0 | D88: 17371077.44
B89: 19 - CONSTRUCCION Y RECONSTRUCCION DE OBRAS PARA RECREACION Y CULTURA | C89: 0 | D89: 23613039.11
B90: 06 - MINISTERIO DE LA PRESIDENCIA | C90: 15252664989 | D90: 4126759044
B91: 0001 - MINISTERIO DE LA PRESIDENCIA | C91: 5052877241 | D91: 844495152.1
B92: 01 - Actividad Central | C92: 4249568397 | D92: 290303501.1
B93: 13 - Atención, prevención de desastres | C93: 16000000 | D93: 1793749.58
B94: 14 - Fomento del Sector Inmobiliario del Estado | C94: 429114966 | D94: 119285941.2
B95: 98 - Administración de Contribuciones Especiales | C95: 0 | D95: 114571099.9
B96: 99 - Adm. de Activos, Pasivos y Transferencias | C96: 358193878 | D96: 318540860.3
B97: 0002 - DIRECCION GENERAL DE COMUNICACION | C97: 481386537 | D97: 0
B98: 11 - Servicio de comunicación y análisis de información estratégica | C98: 481386537 | D98: 0
B99: 0003 - DIRECCIÓN DE INFORMACIÓN ANÁLISIS Y PROGRAMACIÓN ESTRATÉGICA | C99: 147476316 | D99: 94882008.52
B100: 11 - Servicio de comunicación y análisis de información estratégica | C100: 147476316 | D100: 94882008.52
B101: 0004 - SERVICIO INTEGRAL DE EMERGENCIAS | C101: 4500000000 | D101: 893302489.5
B102: 12 - SERVICIO INTEGRAL DE EMERGENCIAS | C102: 4500000000 | D102: 893302489.5
B103: 0005 - DESARROLLO TERRITORIAL Y DE COMUNIDADES | C103: 3182678886 | D103: 1073386856
B104: 18 - Desarrollo territorial y de comunidades | C104: 3182678886 | D104: 1073386856
B105: 0006 - CENTRO DE OPERACIONES DE EMERGENCIAS (COE) | C105: 123438883 | D105: 69593434.56
B106: 13 - Atención, prevención de desastres | C106: 123438883 | D106: 69593434.56
B107: 0007 - OFICINA PRESIDENCIAL DE TECNOLOGÍA DE LA INFORMACIÓN Y COMUNICACIÓN | C107: 620794047 | D107: 286702747
B108: 15 - Programación e implementación del gobierno electrónico y atención ciudadana. | C108: 620794047 | D108: 286702747
B109: 0008 - DIRECCIÓN GENERAL DE ÉTICA E INTEGRIDAD GUBERNAMENTAL | C109: 263456265 | D109: 111688260.5
B110: 16 - Promoción y fomento de la ética en el sector público | C110: 263456265 | D110: 111688260.5
B111: 0009 - DIRECCIÓN GENERAL DE PROGRAMAS ESPECIALES DE LA PRESIDENCIA | C111: 880556814 | D111: 752708095.6
B112: 17 - Desarrollo y promoción de la inclusión social, cultural y productiva | C112: 880556814 | D112: 752708095.6
B113: 0202 - MINISTERIO DE INTERIOR Y POLICIA | C113: 45367374879 | D113: 2.980582839e+10
B114: 01 - MINISTERIO DE INTERIOR Y POLICIA | C114: 25468688281 | D114: 1.737646387e+10
B115: 0001 - MINISTERIO DE INTERIOR Y POLICÍA | C115: 23656039173 | D115: 1.628737368e+10
B116: 01 - Actividades centrales Ministerio de Interior y gobiernos provinciales | C116: 1266137461 | D116: 576759525.3
B117: 11 - Asistencia y prevención para seguridad ciudadana | C117: 497978194 | D117: 234911115.4
B118: 12 - Servicios de control y regulación migratoria | C118: 88199673 | D118: 24852232.78
B119: 14 - Investigación, formación y capacitación | C119: 60800757 | D119: 21434900
B120: 98 - Administración de Contribuciones Especiales | C120: 455036918 | D120: 103035768.4
B121: 99 - Administración de activos, pasivos y transferencias | C121: 21287886170 | D121: 15326380134
B122: 0002 - DIRECCIÓN GENERAL DE MIGRACIÓN | C122: 1441656934 | D122: 868141525.7
B123: 12 - Servicios de control y regulación migratoria | C123: 1441656934 | D123: 868141525.7
B124: 0003 - INSTITUTO NACIONAL DE MIGRACION | C124: 110495399 | D124: 64860286.38
B125: 14 - Investigación, formación y capacitación | C125: 110495399 | D125: 64860286.38
B126: 0004 - CUERPO DE BOMBEROS DE SANTO DOMINGO, DISTRITO NACIONAL | C126: 93039899 | D126: 60095129.42
B127: 13 - Atencion de Emergencia a Ciudadanos | C127: 93039899 | D127: 60095129.42
B128: 0005 - CUERPO DE BOMBEROS SANTO DOMINGO NORTE | C128: 26570552 | D128: 13846896.45
B129: 13 - Atencion de Emergencia a Ciudadanos | C129: 26570552 | D129: 13846896.45
B130: 0006 - CUERPO DE BOMBEROS SANTO DOMINGO ESTE | C130: 50404258 | D130: 31501480.26
B131: 13 - Atencion de Emergencia a Ciudadanos | C131: 50404258 | D131: 31501480.26
B132: 0007 - CUERPO DE BOMBEROS DE SANTO DOMINGO DE BOCA CHICA | C132: 23720353 | D132: 14967247.22
B133: 13 - Atencion de Emergencia a Ciudadanos | C133: 23720353 | D133: 14967247.22
B134: 0008 - CUERPO DE BOMBEROS DE SANTO DOMINGO DE LOS ALCARRIZOS | C134: 20621767 | D134: 13991274.22
B135: 13 - Atencion de Emergencia a Ciudadanos | C135: 20621767 | D135: 13991274.22
B136: 0009 - CUERPO DE BOMBEROS DE SANTO DOMINGO DE PEDRO BRAND | C136: 18931906 | D136: 9193634.24
B137: 13 - Atencion de Emergencia a Ciudadanos | C137: 18931906 | D137: 9193634.24
B138: 0010 - CUERPO DE BOMBEROS DE SANTO DOMINGO OESTE | C138: 27208040 | D138: 12492719.71
B139: 13 - Atencion de Emergencia a Ciudadanos | C139: 27208040 | D139: 12492719.71
B140: 02 - POLICIA NACIONAL | C140: 19898686598 | D140: 1.242936452e+10
B141: 0001 - POLICIA NACIONAL | C141: 17627691155 | D141: 1.103184757e+10
B142: 11 - SERVICIOS DE SEGURIDAD CIUDADANA Y ORDEN PUBLICO | C142: 17533191155 | D142: 1.099863897e+10
B143: 50 - Reducción de crímenes y delitos que afectan a la seguridad ciudadana | C143: 94500000 | D143: 33208602.39
B144: 0002 - INSTITUTO POLICIAL DE EDUCACION | C144: 155781640 | D144: 104284659.9
B145: 13 - Formación y cultura de la P.N | C145: 155781640 | D145: 104284659.9
B146: 0004 - DIRECCIÓN CENTRAL DE POLICÍA DE TURISMO | C146: 511730765 | D146: 278550934.4
B147: 11 - SERVICIOS DE SEGURIDAD CIUDADANA Y ORDEN PUBLICO | C147: 511730765 | D147: 278550934.4
B148: 0005 - DIRECCIÓN GENERAL DE SEGURIDAD DE TRÁNSITO Y TRANSPORTE TERRESTRE (DIGESETT) | C148: 1236014221 | D148: 729864223.9
B149: 12 - Servicios de ordenamiento y asistencia del transporte terreste | C149: 1236014221 | D149: 729864223.9
B150: 0007 - DIRECCIÓN GENERAL DE LA RESERVA DE LA POLICÍA NACIONAL | C150: 66082470 | D150: 40868253.41
B151: 14 - Servicios de salud, seguridad y bienestar social de la P.N | C151: 66082470 | D151: 40868253.41
B152: 0008 - HOSPITAL GENERAL DOCENTE DE LA POLICIA NACIONAL | C152: 242619379 | D152: 156308290.5
B153: 14 - Servicios de salud, seguridad y bienestar social de la P.N | C153: 242619379 | D153: 156308290.6
B154: 0009 - JUNTA DE RETIRO DE LA P.N | C154: 58766968 | D154: 87640585.95
B155: 14 - Servicios de salud, seguridad y bienestar social de la P.N | C155: 58766968 | D155: 87640585.95
B156: 0203 - MINISTERIO DE DEFENSA | C156: 35341482117 | D156: 2.267491087e+10
B157: 01 - MINISTERIO DE DEFENSA | C157: 14646224616 | D157: 8207289849
B158: 0001 - MINISTERIO DE DEFENSA | C158: 10797178877 | D158: 5800459815
B159: 01 - Actividades Centrales | C159: 4330250329 | D159: 1336496691
B160: 98 - Administración de Contribuciones Especiales | C160: 6466928548 | D160: 4463963124
B161: 0002 - DIRECCION GENERAL DE ESCUELAS VOCACIONALES | C161: 739537415 | D161: 480335474.7
B162: 13 - Educación y Capacitacion Militar | C162: 739537415 | D162: 480335474.7
B163: 0003 - FOMENTO Y PRODUCCION CUNARIA | C163: 31985687 | D163: 22314810.25
B164: 12 - Servicios de salud y asistencia social | C164: 31985687 | D164: 22314810.25
B165: 0004 - INSTITUTO DE SEGURIDAD SOCIAL DE LAS FUERZAS ARMADAS | C165: 92375608 | D165: 63651590.34
B166: 12 - Servicios de salud y asistencia social | C166: 92375608 | D166: 63651590.34
B167: 0005 - HOSPITAL CENTRAL FUERZAS ARMADAS | C167: 488993566 | D167: 233934670
B168: 12 - Servicios de salud y asistencia social | C168: 488993566 | D168: 233934670
B169: 0006 - INSTITUTO CARTOGRÁFICO MILITAR DE LAS FUERZAS ARMADAS | C169: 40015102 | D169: 26769915.46
B170: 11 - Defensa Nacional | C170: 40015102 | D170: 26769915.46
B171: 0007 - ESC DE GRAD.DE COM.Y ESTADO MAYOR CONJ.'GRAL DE DIV. GREGORIO LUPERON' | C171: 46837945 | D171: 29001560.66
B172: 13 - Educación y Capacitacion Militar | C172: 46837945 | D172: 29001560.66
B173: 0008 - CÍRCULO DEPORTIVO DE LAS FUERZAS ARMADAS Y LA POLICÍA NACIONAL | C173: 21482784 | D173: 13749811.13
B174: 13 - Educación y Capacitacion Militar | C174: 21482784 | D174: 13749811.13
B175: 0009 - INSTITUTO MILITAR DE LOS DERECHOS HUMANOS | C175: 25207328 | D175: 17725298.34
B176: 13 - Educación y Capacitacion Militar | C176: 25207328 | D176: 17725298.34
B177: 0010 - INSTITUTO DE ALTOS ESTUDIOS PARA LA DEFENSA Y LA SEGURIDAD NACIONAL | C177: 34526503 | D177: 21282112.9
B178: 13 - Educación y Capacitacion Militar | C178: 34526503 | D178: 21282112.9
B179: 0011 - COMISIÓN PERMANENTE PARA LA REFORMA Y MODERNIZACIÓN DE LAS FF. AA. Y P.N. | C179: 21499103 | D179: 15183992.5
B180: 01 - Actividades Centrales | C180: 21499103 | D180: 15183992.5
B181: 0012 - CUERPO ESPECIALIZADO DE SEGURIDAD FRONTERIZA TERRESTRE | C181: 302971722 | D181: 212311913.8
B182: 11 - Defensa Nacional | C182: 302971722 | D182: 212311913.8
B183: 0014 - DIRECCIÓN GENERAL DE LAS RESERVAS DE LAS FUERZAS ARMADAS Y LA POLICÍA NACIONAL | C183: 53789029 | D183: 33437807.32
B184: 11 - Defensa Nacional | C184: 53789029 | D184: 33437807.32
B185: 0015 - CUERPOS ESPECIALIZADOS DE SEGURIDAD PORTUARIA | C185: 105825008 | D185: 67609416.64
B186: 11 - Defensa Nacional | C186: 105825008 | D186: 67609416.64
B187: 0017 - SERVICIO MILITAR VOLUNTARIO | C187: 54386605 | D187: 38275260.37
B188: 13 - Educación y Capacitacion Militar | C188: 54386605 | D188: 38275260.37
B189: 0019 - SUPERINTENDENCIA DE VIGILANCIA Y SEGURIDAD PRIVADA | C189: 65703751 | D189: 46567972.73
B190: 11 - Defensa Nacional | C190: 65703751 | D190: 46567972.73
B191: 0020 - CUERPO ESPECIALIZADO PARA LA SEGURIDAD DEL METRO DE SANTO DOMINGO | C191: 282981191 | D191: 224148392.6
B192: 11 - Defensa Nacional | C192: 282981191 | D192: 224148392.6
B193: 0026 - Cuerpo Especializado de Seguridad Aeroportuaria y de Aviación Civil (CESAC) | C193: 1160768311 | D193: 672720771.1
B194: 11 - Defensa Nacional | C194: 1160768311 | D194: 672720771.1
B195: 0027 - DIRECCION GENERAL DEL PLAN SOCIAL DEL MINISTERIO DE DEFENSA | C195: 46863360 | D195: 34112411.39
B196: 01 - Actividades Centrales | C196: 46863360 | D196: 34112411.39
B197: 0028 - INSTITUTO SUPERIOR PARA LA DEFENSA ' GENERAL JUAN PABLO DUARTE DIEZ' INSUDE. | C197: 70575164 | D197: 37340203.84
B198: 13 - Educación y Capacitacion Militar | C198: 70575164 | D198: 37340203.84
B199: 0030 - SERVICIO NACIONAL DE PROTECCIÓN AMBIENTAL | C199: 116947738 | D199: 81789224.28
B200: 11 - Defensa Nacional | C200: 116947738 | D200: 81789224.28
B201: 0031 - DIRECCIÓN GENERAL DE LA INDUSTRIA MILITAR DE LAS FUERZAS ARMADAS | C201: 45772819 | D201: 34567423.49
B202: 13 - Educación y Capacitacion Militar | C202: 45772819 | D202: 34567423.49
B203: 02 - EJÉRCITO DE LA REPÚBLICA DOMINICANA | C203: 9078062614 | D203: 6889836138
B204: 0001 - EJÉRCITO DE REPÚBLICA DOMINICANA | C204: 8960906274 | D204: 6822093169
B205: 11 - Defensa Terrestre | C205: 8960906274 | D205: 6822093169
... 362 more rows

Sheet Recursos COVID (hidden)
A1: MINISTERIO DE HACIENDA
A2: DIRECCIÓN GENERAL DE PRESUPUESTO
A3: DIRECCIÓN DE ESTUDIOS ECONÓMICOS Y SEGUIMIENTO FINANCIERO
A5: Recursos Ejecutados COVID-19
A6: Acumulado al 15 de Octubre
A7: En Millones RD$
B9: Capítulo/Sub-Capítulo/Fuente Específica | C9: Presupuesto Ejecutado | M9: Total Ejecución
C10: Enero | D10: Febrero | E10: Marzo | F10: Abril | G10: Mayo | H10: Junio | I10: Julio | J10: Agosto | K10: Septiembre | L10: Octubre
B11: GOBIERNO CENTRAL | C11: =C12+C21+C24+C33+C36+C40+C43+C49+C52+C55+C58+C65+C61 -> 3942.042398 | D11: 8379.079971 | E11: 3976.539956 | F11: 11683.33447 | G11: 8205.917875 | H11: 3091.41759 | I11: 5171.706584 | J11: 9678.241514 | K11: =K12+K21+K24+K33+K36+K40+K43+K49+K52+K55+K58+K65+K61 -> 5452.286125 | L11: =L12+L21+L24+L33+L36+L40+L43+L49+L52+L55+L58+L65+L61 -> 39.3218815 | M11: =SUM(C11:L11) -> 59619.88836
B12: 0201 - PRESIDENCIA DE LA REPÚBLICA | C12: =C13+C15+C18 -> 3308.611 | D12: =D13+D15+D18 -> 3575.84905 | E12: 3239.427441 | F12: 2698.745066 | G12: 2229.11057 | H12: 2225.25575 | I12: 0.088264 | J12: 2207.2466 | K12: 4341.460953 | L12: 0.0944 | M12: =SUM(C12:L12) -> 23825.88909
B13: 01 - MINISTERIO ADMINISTRATIVO DE LA PRESIDENCIA | C13: 0 | D13: 0 | E13: 0 | F13: 0.057466 | G13: 0.1422195 | H13: 0 | I13: 0.01416 | J13: 0 | K13: 0 | L13: 0.0944 | M13: =SUM(C13:L13) -> 0.3082455
B14: 0100 - FONDO GENERAL | C14: 0 | D14: 0 | E14: 0 | F14: 0.057466 | G14: 0.1422195 | H14: 0 | I14: 0.01416 | J14: 0 | K14: 0 | L14: 0.0944 | M14: 0.3082455
B15: 02 - GABINETE DE LA POLÍTICA SOCIAL | C15: 3308.611 | D15: 3575.84905 | E15: 3239.2811 | F15: 2698.6876 | G15: 2228.96835 | H15: 2224.58315 | I15: 0.074104 | J15: =J16+J17 -> 2207.2466 | K15: =K16+K17 -> 4341.460953 | L15: 0 | M15: 23824.76191
B16: 0100 - FONDO GENERAL | C16: 3308.611 | D16: 3575.84905 | E16: 3239.2811 | F16: 2698.6876 | G16: 2228.96835 | H16: 2224.58315 | I16: 0.074104 | J16: 0 | K16: 4341.460953 | L16: 0 | M16: 21617.51531
B17: 0814 - APOYO PRESUPUESTARIO (RECURSOS EXTERNOS) | C17: 0 | D17: 0 | E17: 0 | F17: 0 | G17: 0 | H17: 0 | I17: 0 | J17: 2207.2466 | K17: 0 | L17: 0 | M17: =SUM(C17:L17) -> 2207.2466
B18: 06 - MINISTERIO DE LA PRESIDENCIA | C18: 0 | D18: 0 | E18: 0.146341 | F18: 0 | G18: 0 | H18: 0.6726 | I18: 0 | J18: 0 | K18: 0 | L18: 0 | M18: 0.818941
B19: 0100 - FONDO GENERAL | C19: 0 | D19: 0 | E19: 0.081361 | F19: 0 | G19: 0 | H19: 0.6726 | I19: 0 | J19: 0 | K19: 0 | L19: 0 | M19: 0.753961
B20: 7301 - FORTALECIMIENTO DE CAPACIDADES DEL CENTRO DE OPERACIONES DE EMERGENCIAS PARA EL COVID - 19 | C20: 0 | D20: 0 | E20: 0.06498 | F20: 0 | G20: 0 | H20: 0 | I20: 0 | J20: 0 | K20: 0 | L20: 0 | M20: 0.06498
B21: 0202 - MINISTERIO DE INTERIOR Y POLICÍA | C21: 0 | D21: 0 | E21: 0.096996 | F21: 0 | G21: 0 | H21: 0 | I21: 0.1284135 | J21: 0 | K21: 0 | L21: 0.08 | M21: 0.3054095
B22: 02 - POLICIA NACIONAL | C22: 0 | D22: 0 | E22: 0.096996 | F22: 0 | G22: 0 | H22: 0 | I22: 0.1284135 | J22: 0 | K22: 0 | L22: 0.08 | M22: 0.3054095
B23: 0100 - FONDO GENERAL | C23: 0 | D23: 0 | E23: 0.096996 | F23: 0 | G23: 0 | H23: 0 | I23: 0.1284135 | J23: 0 | K23: 0 | L23: 0.08 | M23: 0.3054095
B24: 0203 - MINISTERIO DE DEFENSA | C24: 0 | D24: 139.1807 | E24: 69.6518 | F24: 0 | G24: 0 | H24: 53.1181 | I24: 16.2302 | J24: 0 | K24: 0 | L24: 0 | M24: 278.1808
B25: 01 - MINISTERIO DE DEFENSA | C25: 0 | D25: 37.7409 | E25: 18.898 | F25: 0 | G25: 0 | H25: 16.0261 | I25: 2.841 | J25: 0 | K25: 0 | L25: 0 | M25: 75.506
B26: 0100 - FONDO GENERAL | C26: 0 | D26: 37.7409 | E26: 18.898 | F26: 0 | G26: 0 | H26: 16.0261 | I26: 2.841 | J26: 0 | K26: 0 | L26: 0 | M26: 75.506
B27: 02 - EJERCITO DE LA REPUBLICA DOMINICANA | C27: 0 | D27: 62.1896 | E27: 31.0968 | F27: 0 | G27: 0 | H27: 31.0937 | I27: 0 | J27: 0 | K27: 0 | L27: 0 | M27: 124.3801
B28: 0100 - FONDO GENERAL | C28: 0 | D28: 62.1896 | E28: 31.0968 | F28: 0 | G28: 0 | H28: 31.0937 | I28: 0 | J28: 0 | K28: 0 | L28: 0 | M28: 124.3801
B29: 03 - ARMADA DE LA REPUBLICA DOMINICANA | C29: 0 | D29: 11.9746 | E29: 5.9873 | F29: 0 | G29: 0 | H29: 5.9983 | I29: 0 | J29: 0 | K29: 0 | L29: 0 | M29: 23.9602
B30: 0100 - FONDO GENERAL | C30: 0 | D30: 11.9746 | E30: 5.9873 | F30: 0 | G30: 0 | H30: 5.9983 | I30: 0 | J30: 0 | K30: 0 | L30: 0 | M30: 23.9602
B31: 04 - FUERZA AEREA DE LA REPUBLICA DOMINICANA | C31: 0 | D31: 27.2756 | E31: 13.6697 | F31: 0 | G31: 0 | H31: 0 | I31: 13.3892 | J31: 0 | K31: 0 | L31: 0 | M31: 54.3345
B32: 0100 - FONDO GENERAL | C32: 0 | D32: 27.2756 | E32: 13.6697 | F32: 0 | G32: 0 | H32: 0 | I32: 13.3892 | J32: 0 | K32: 0 | L32: 0 | M32: 54.3345
B33: 0204 - MINISTERIO DE RELACIONES EXTERIORES | C33: 0 | D33: 0 | E33: 0 | F33: 0.38586 | G33: 0 | H33: 0 | I33: 0 | J33: 0 | K33: 0 | L33: 0 | M33: 0.38586
B34: 01 - MINISTERIO DE RELACIONES EXTERIORES | C34: 0 | D34: 0 | E34: 0 | F34: 0.38586 | G34: 0 | H34: 0 | I34: 0 | J34: 0 | K34: 0 | L34: 0 | M34: 0.38586
B35: 2087 - RECURSOS DE CAPTACION DIRECTA DE LA DIRECCION GENERAL DE PASAPORTES LEY 144 - 99 | C35: 0 | D35: 0 | E35: 0 | F35: 0.38586 | G35: 0 | H35: 0 | I35: 0 | J35: 0 | K35: 0 | L35: 0 | M35: 0.38586
B36: 0205 - MINISTERIO DE HACIENDA | C36: 0 | D36: 0 | E36: 0 | F36: 0 | G36: 0.20153 | H36: 0 | I36: 0 | J36: 0.299661 | K36: 0.17818 | M36: 0.679371
B37: 01 - MINISTERIO DE HACIENDA | C37: 0 | D37: 0 | E37: 0 | F37: 0 | G37: 0.20153 | H37: 0 | I37: 0 | J37: 0.299661 | K37: 0.17818 | L37: 0 | M37: 0.679371
B38: 0100 - FONDO GENERAL | C38: 0 | D38: 0 | E38: 0 | F38: 0 | G38: 0.15753 | H38: 0 | I38: 0 | J38: 0.172575 | K38: 0.17818 | L38: 0 | M38: 0.508285
B39: 2085 - RECURSOS DE CAPTACION DIRECTA DE LA DIRECCION GENERAL DE BIENES NACIONALES LEY 1832 - 1948 | C39: 0 | D39: 0 | E39: 0 | F39: 0 | G39: 0.044 | H39: 0 | I39: 0 | J39: 0.127086 | K39: 0 | L39: 0 | M39: 0.171086
B40: 0206 - MINISTERIO DE EDUCACIÓN | C40: 0 | D40: 2.34342 | E40: 2.33435506 | F40: 0 | G40: 0.1947 | H40: 0.3775 | I40: 0.06398597 | J40: 0 | K40: 0 | L40: 0 | M40: 5.31396103
B41: 01 - MINISTERIO DE EDUCACION | C41: 0 | D41: 2.34342 | E41: 2.33435506 | F41: 0 | G41: 0.1947 | H41: 0.3775 | I41: 0.06398597 | J41: 0 | K41: 0 | L41: 0 | M41: 5.31396103
B42: 0100 - FONDO GENERAL | C42: 0 | D42: 2.34342 | E42: 2.33435506 | F42: 0 | G42: 0.1947 | H42: 0.3775 | I42: 0.06398597 | J42: 0 | K42: 0 | L42: 0 | M42: 5.31396103
B43: 0207 - MINISTERIO DE SALUD PÚBLICA Y ASISTENCIA SOCIAL | C43: 110.6316398 | D43: 4163.537935 | E43: 249.3278534 | F43: 8648.695047 | G43: 1314.834528 | H43: 774.6975512 | I43: 5124.572549 | J43: 2008.063115 | K43: 1110.646992 | L43: 39.1422895 | M43: 23544.1495
B44: 01 - MINISTERIO DE SALUD PUBLICA Y ASISTENCIA SOCIAL | C44: 110.6316398 | D44: 4163.537935 | E44: 249.3278534 | F44: 8648.695047 | G44: 1314.834528 | H44: 774.6975512 | I44: 5124.572549 | J44: 2008.063115 | K44: 1110.646992 | L44: 39.1422895 | M44: 23544.1495
B45: 0100 - FONDO GENERAL | C45: 110.6316398 | D45: 4163.537935 | E45: 238.2678534 | F45: 8648.695047 | G45: 1314.834528 | H45: 774.6975512 | I45: 5124.572549 | J45: 653.7348599 | K45: 407.9363281 | L45: 5.1422895 | M45: 21442.05058
B46: 2092 - RECURSOS DE CAPTACION DIRECTA DEL PROGRAMA ESCENCIALES (PROMESE CAL) DECRECTO 308 - 97 | C46: 0 | D46: 0 | E46: 0 | F46: 0 | G46: 0 | H46: 0 | I46: 0 | J46: 128.8 | K46: 0 | L46: 0 | M46: 128.8
B47: 4001 - DONACIONES PECUNARIAS PRIVADAS DE PERSONAS FISICAS Y JURIDICAS POR COVID-19 | C47: 0 | D47: 0 | E47: 0 | F47: 0 | G47: 0 | H47: 0 | I47: 0 | J47: 1225.528255 | K47: 702.7106634 | L47: 34 | M47: 1962.238918
B48: 0814 - APOYO PRESUPUESTARIO (RECURSOS EXTERNOS) | C48: 0 | D48: 0 | E48: 11.06 | F48: 0 | G48: 0 | H48: 0 | I48: 0 | J48: 0 | K48: 0 | L48: 0 | M48: 11.06
B49: 0211 - MINISTERIO DE OBRAS PÚBLICAS Y COMUNICACIONES | C49: 0 | D49: 0 | E49: 0 | F49: 0.39 | G49: 0 | H49: 0 | I49: 0.1311 | J49: 0 | K49: 0 | M49: 0.5211
B50: 01 - MINISTERIO DE OBRAS PUBLICAS Y COMUNICACIONES | C50: 0 | D50: 0 | E50: 0 | F50: 0.39 | G50: 0 | H50: 0 | I50: 0.1311 | J50: 0 | K50: 0 | L50: 0 | M50: 0.5211
B51: 0100 - FONDO GENERAL | C51: 0 | D51: 0 | E51: 0 | F51: 0.39 | G51: 0 | H51: 0 | I51: 0.1311 | J51: 0 | K51: 0 | L51: 0 | M51: 0.5211
B52: 0216 - MINISTERIO DE CULTURA | C52: 0 | D52: 0 | E52: 0.067142 | F52: 0 | G52: 0 | H52: 0 | I52: 0 | J52: 0 | K52: 0 | L52: 0 | M52: 0.067142
B53: 01 - MINISTERIO DE CULTURA | C53: 0 | D53: 0 | E53: 0.067142 | F53: 0 | G53: 0 | H53: 0 | I53: 0 | J53: 0 | K53: 0 | L53: 0 | M53: 0.067142
B54: 0100 - FONDO GENERAL | C54: 0 | D54: 0 | E54: 0.067142 | F54: 0 | G54: 0 | H54: 0 | I54: 0 | J54: 0 | K54: 0 | L54: 0 | M54: 0.067142
B55: 0220 - MINISTERIO DE ECONOMÍA, PLANIFICACIÓN Y DESARROLLO | C55: 0 | D55: 0 | E55: 0 | F55: 0 | G55: 0 | H55: 0 | I55: 0 | J55: 0 | K55: 0 | L55: 0 | M55: 0
B56: 01 - MINISTERIO DE ECONOMIA, PLANIFICACION Y DESARROLLO | C56: 0 | D56: 0 | E56: 0 | F56: 0 | G56: 0 | H56: 0 | I56: 0 | J56: 0 | K56: 0 | L56: 0 | M56: 0
B57: 0100 - FONDO GENERAL | C57: 0 | D57: 0 | E57: 0 | F57: 0 | G57: 0 | H57: 0 | I57: 0 | J57: 0 | K57: 0 | L57: 0 | M57: 0
B58: 0221 - MINISTERIO DE ADMINISTRACIÓN PÚBLICA | C58: 0 | D58: 0 | E58: 0.06136 | F58: 0 | G58: 0.0283498 | H58: 0 | I58: 0 | J58: 0 | K58: 0 | L58: 0 | M58: 0.0897098
B59: 01 - MINISTERIO DE ADMINISTRACION PUBLICA (MAP) | C59: 0 | D59: 0 | E59: 0.06136 | F59: 0 | G59: 0.0283498 | H59: 0 | I59: 0 | J59: 0 | K59: 0 | L59: 0 | M59: 0.0897098
B60: 0100 - FONDO GENERAL | C60: 0 | D60: 0 | E60: 0.06136 | F60: 0 | G60: 0.0283498 | H60: 0 | I60: 0 | J60: 0 | K60: 0 | L60: 0 | M60: 0.0897098
B61: 0222 - MINISTERIO DE ENERGIA Y MINAS | C61: 0 | D61: 0 | E61: 0 | F61: 0.01593 | G61: 0 | H61: 0.03599 | I61: 0 | J61: 0 | K61: 0 | L61: 0.005192 | M61: 0.057112
B62: 01 - MINISTERIO DE ENERGIA Y MINAS | C62: 0 | D62: 0 | E62: 0 | F62: 0.01593 | G62: 0 | H62: 0.03599 | I62: 0 | J62: 0 | K62: 0 | L62: 0.005192 | M62: 0.057112
B63: 0100 - FONDO GENERAL | C63: 0 | D63: 0 | E63: 0 | F63: 0 | G63: 0 | H63: 0 | I63: 0 | J63: 0 | K63: 0 | L63: 0.005192 | M63: 0.005192
B64: 1974 - FOM. DE PROG. DE ENERG. ALT. Y AHOR. DE ENERG. | C64: 0 | D64: 0 | E64: 0 | F64: 0.01593 | G64: 0 | H64: 0.03599 | I64: 0 | J64: 0 | K64: 0 | L64: 0 | M64: 0.05192
B65: 0999 - ADMINISTRACION DE OBLIGACIONES DEL TESORO NACIONAL | C65: 522.7997581 | D65: 498.1688656 | E65: 415.5730085 | F65: 335.1025656 | G65: 4661.548198 | H65: 37.93269849 | I65: 30.4920717 | J65: 5462.632138 | K65: 0 | L65: 0 | M65: 11964.2493
B66: 01 - ADM. DE OBLIGACIONES DEL TESORO | C66: 522.7997581 | D66: 498.1688656 | E66: 415.5730085 | F66: 335.1025656 | G66: 4661.548198 | H66: 37.93269849 | I66: 30.4920717 | J66: 5462.632138 | K66: 0 | L66: 0 | M66: 11964.2493
B67: 5010 - BONOS INTERNOS PARA APOYO PRESUPUESTARIO | C67: 522.7997581 | D67: 498.1688656 | E67: 415.5730085 | F67: 335.1025656 | G67: 4661.548198 | H67: 37.93269849 | I67: 30.4920717 | J67: 0 | K67: 0 | L67: 0 | M67: 6501.617166
B68: 0100 - FONDO GENERAL | C68: 0 | D68: 0 | E68: 0 | F68: 0 | G68: 0 | H68: 0 | I68: 0 | J68: 5462.632138 | K68: 0 | L68: 0 | M68: 5462.632138
B69: ORGANISMOS DESCENTRALIZADOS Y AUTONOMOS NO FINANCIEROS | C69: =C70+C73+C76+C79+C82+C88+C92 -> 0 | D69: 460.922534 | E69: 882.49361 | F69: 21.89635925 | G69: 2.11283232 | H69: 1.13299657 | I69: 3.78936297 | J69: =J70+J73+J76+J79+J82+J88+J92+J95 -> 2.52414168 | K69: =K70+K73+K76+K79+K82+K88+K92+K95 -> 0.62986085 | L69: =L70+L73+L76+L79+L82+L88+L92+L95 -> 0.09099983 | M69: 1375.592697
B70: 5102 - CENTRO DE EXPORTACIONES E INVERSIONES DE LA REP. DOM. | C70: 0 | D70: 0 | E70: 0 | F70: 0 | G70: 0 | H70: 0.0210925 | I70: 0 | J70: 0.133 | K70: 0 | L70: 0 | M70: 0.1540925
B71: 01 - CENTRO DE EXPORTACION E INVERSION DE LA REPUBLICA DOMINICANA | C71: 0 | D71: 0 | E71: 0 | F71: 0 | G71: 0 | H71: 0.0210925 | I71: 0 | J71: 0.133 | K71: 0 | L71: 0 | M71: 0.1540925
B72: 0100 - FONDO GENERAL | C72: 0 | D72: 0 | E72: 0 | F72: 0 | G72: 0 | H72: 0.0210925 | I72: 0 | J72: 0.133 | K72: 0 | L72: 0 | M72: =SUM(C72:L72) -> 0.1540925
B73: 5111 - INSTITUTO AGRARIO DOMINICANO | C73: 0 | D73: 0 | E73: 0 | F73: 0 | G73: 0 | H73: 0 | I73: 0.16480145 | J73: 0.17228 | K73: 0.0320016 | L73: 0 | M73: 0.36908305
B74: 01 - INSTITUTO AGRARIO DOMINICANO | C74: 0 | D74: 0 | E74: 0 | F74: 0 | G74: 0 | H74: 0 | I74: 0.16480145 | J74: 0.17228 | K74: 0.0320016 | L74: 0 | M74: 0.36908305
B75: 10 - FONDO GENERAL | C75: 0 | D75: 0 | E75: 0 | F75: 0 | G75: 0 | H75: 0 | I75: 0.16480145 | J75: 0.17228 | K75: 0.0320016 | L75: 0 | M75: 0.36908305
B76: 5161 - INSTITUTO DE PROTECCION DE LOS DERECHOS AL CONSUMIDOR | C76: 0 | D76: 0 | E76: 0 | F76: 0.09 | G76: 0 | H76: 0 | I76: 0 | J76: 0 | K76: 0 | L76: 0 | M76: 0.09
B77: 01 - INSTITUTO NACIONAL DE PROTECCION DE LOS DERECHOS DEL CONSUMIDOR | C77: 0 | D77: 0 | E77: 0 | F77: 0.09 | G77: 0 | H77: 0 | I77: 0 | J77: 0 | K77: 0 | L77: 0 | M77: =SUM(C77:L77) -> 0.09
B78: 0100 - FONDO GENERAL | C78: 0 | D78: 0 | E78: 0 | F78: 0.09 | G78: 0 | H78: 0 | I78: 0 | J78: 0 | K78: 0 | L78: 0 | M78: 0.09
B79: 5167 - OFICINA NACIONAL DE DEFENSA PUBLICA | C79: 0 | D79: 0 | E79: 0.21618997 | F79: 0 | G79: 0 | H79: 0 | I79: 0.0413 | J79: 0 | K79: 0 | L79: 0 | M79: 0.25748997
B80: 01 - OFICINA NACIONAL DE DEFENSA PUBLICA | C80: 0 | D80: 0 | E80: 0.21618997 | F80: 0 | G80: 0 | H80: 0 | I80: 0.0413 | J80: 0 | K80: 0 | L80: 0 | M80: 0.25748997
B81: 0100 - FONDO GENERAL | C81: 0 | D81: 0 | E81: 0.21618997 | F81: 0 | G81: 0 | H81: 0 | I81: 0.0413 | J81: 0 | K81: 0 | L81: 0 | M81: 0.25748997
B82: 5168 - ARCHIVO GENERAL DE LA NACIÓN | C82: 0 | D82: 0 | E82: 0 | F82: 0 | G82: 0.1048194 | H82: 0 | I82: 0 | J82: 0 | K82: 0 | L82: 0 | M82: 0.1048194
B83: 01 - ARCHIVO GENERAL DE LA NACION | C83: 0 | D83: 0 | E83: 0 | F83: 0 | G83: 0.1048194 | H83: 0 | I83: 0 | J83: 0 | K83: 0 | L83: 0 | M83: 0.1048194
B84: 0100 - FONDO GENERAL | C84: 0 | D84: 0 | E84: 0 | F84: 0 | G84: 0.1048194 | H84: 0 | I84: 0 | J84: 0 | K84: 0 | L84: 0 | M84: 0.1048194
B85: 5169 - DIRECCIÓN GENERAL DE CINE (DGCINE) | C85: 0 | D85: 0 | E85: 0 | F85: 0 | G85: 0 | H85: 0 | I85: 0 | J85: 0 | K85: 0 | L85: 0 | M85: 0
B86: 01 - DIRECCION GENERAL DE CINE (DGCINE) | C86: 0 | D86: 0 | E86: 0 | F86: 0 | G86: 0 | H86: 0 | I86: 0 | J86: 0 | K86: 0 | L86: 0 | M86: 0
B87: 0100 - FONDO GENERAL | C87: 0 | D87: 0 | E87: 0 | F87: 0 | G87: 0 | H87: 0 | I87: 0 | J87: 0 | K87: 0 | L87: 0 | M87: 0
B88: 5180 - DIRECCION CENTRAL DEL SERVICIO NACIONAL DE SALUD | C88: 0 | D88: 460.922534 | E88: 882.1916 | F88: 21.72133425 | G88: 1.99993292 | H88: 1.08170407 | I88: 3.55546152 | J88: 2.21326168 | K88: 0.4914595 | L88: 0 | M88: 1374.177288
B89: 01 - DIRECCION CENTRAL DEL SERVICIO NACIONAL DE SALUD | C89: 0 | D89: 460.922534 | E89: 882.1916 | F89: 21.72133425 | G89: 1.99993292 | H89: 1.08170407 | I89: 3.55546152 | J89: 2.21326168 | K89: 0.4914595 | M89: 1374.177288
B90: 0100 - FONDO GENERAL | C90: 0 | D90: 460.7456 | E90: 881.1416 | F90: 15.072 | G90: 0 | H90: 0 | I90: 0 | J90: 0 | K90: 0 | L90: 0 | M90: 1356.9592
B91: 9995 - VENTAS DE SERVICIOS | C91: 0 | D91: 0.176934 | E91: 1.05 | F91: 6.64933425 | G91: 1.99993292 | H91: 1.08170407 | I91: 3.55546152 | J91: 2.21326168 | K91: 0.4914595 | L91: 0 | M91: 17.21808794
B92: 5183 - UNIDAD DE ANÁLISIS FINANCIERO (UAF) | C92: 0 | D92: 0 | E92: 0.08582 | F92: 0.085025 | G92: 0.00808 | H92: 0.0302 | I92: 0.0278 | J92: 0.0056 | K92: 0.10639975 | L92: 0 | M92: 0.34892475
B93: 01 - UNIDAD DE ANÁLISIS FINANCIERO (UAF) | C93: 0 | D93: 0 | E93: 0.08582 | F93: 0.085025 | G93: 0.00808 | H93: 0.0302 | I93: 0.0278 | J93: 0.0056 | K93: 0.10639975 | M93: 0.34892475
B94: 0100 - FONDO GENERAL | C94: 0 | D94: 0 | E94: 0.08582 | F94: 0.085025 | G94: 0.00808 | H94: 0.0302 | I94: 0.0278 | J94: 0.0056 | K94: 0.10639975 | L94: 0 | M94: 0.34892475
B95: 5209 - DIRECCIÓN GENERAL DE INFORMACIÓN Y DEFENSA DE LOS AFILIADOS | C95: 0 | D95: 0 | E95: 0 | F95: 0 | G95: 0 | H95: 0 | I95: 0 | K95: 0 | L95: 0.09099983 | M95: 0.09099983
B96: 01 - DIRECCIÓN GENERAL DE INFORMACIÓN Y DEFENSA DE LOS AFILIADOS | C96: 0 | D96: 0 | E96: 0 | F96: 0 | G96: 0 | H96: 0 | I96: 0 | K96: 0 | L96: 0.09099983 | M96: 0.09099983
B97: 3002 - RECURSOS SEGURIDAD SOCIAL LEY 13-20 | C97: 0 | D97: 0 | E97: 0 | F97: 0 | G97: 0 | H97: 0 | I97: 0 | K97: 0 | L97: 0.09099983 | M97: 0.09099983
B98: Total General | C98: =C11+C69 -> 3942.042398 | D98: 8840.002505 | E98: 4859.033566 | F98: 11705.23083 | G98: 8208.030708 | H98: 3092.550586 | I98: 5175.495947 | J98: 9680.765655 | K98: 5452.915986 | L98: 39.41288133 | M98: =SUM(C98:L98) -> 60995.48106
B99: Fuente: Sistema de Información de la Gestión Financiera
B100: El programa Supérate se incluye por el incremento de beneficiarios generado por la situación del COVID-19 .
B101: Ejecución Gastos: Por fecha de imputación y registro al 15/10/2021.
